Supplier ID,Invoice ID,Supplier Name,Paid Date,Subjective Code,Subjective Name,Service Area,Cost Centre Name,Invoiced
6807,3453438,2SIMPLE SOFTWARE LTD,22/06/2015,45433,ECDL Courseware Hosting,Childrens Services,Admin IT (Schools),500.00
2684316,3446789,4way Consulting Ltd,11/06/2015,Z1051,Work in Progress Additions,Highways,Stores,649.20
2109299,3441865,62 Wright Street#Mencap,02/06/2015,54301,Residential Provision,Adult Service,LD Purchaser Residential Care,"22,076.00"
2109302,3441866,7 Crawford Street#Mencap,02/06/2015,54301,Residential Provision,Adult Service,LD Purchaser Residential Care,"8,899.20"
2109302,3441867,7 Crawford Street#Mencap,02/06/2015,54301,Residential Provision,Adult Service,LD Purchaser Residential Care,"4,264.20"
6050,3448050,A E YATES LTD,11/06/2015,Z1051,Work in Progress Additions,Environmental Services,Environmental Services Balance sheet,"113,068.14"
6050,3450361,A E YATES LTD,15/06/2015,20501,Engineering Work,Environmental Services,Lighting / Stores Billable Costs,"7,578.74"
2694364,3442711,A P Broome Landscapes Ltd,04/06/2015,52200,Contracted Services,Environmental Services,Activities and Operations,"10,718.55"
2694364,3450364,A P Broome Landscapes Ltd,15/06/2015,53000,Private Contracted Services,Environmental Services,Activities and Operations,977.00
2694364,3450337,A P Broome Landscapes Ltd,15/06/2015,47103,Miscellaneous Grants,Environmental Services,Neighbourhood Management Programme,942.00
2694364,3449571,A P Broome Landscapes Ltd,15/06/2015,40609,Horticultural Materials,Environmental Services,Neighbourhood Management Programme,"1,299.65"
2694364,3450335,A P Broome Landscapes Ltd,15/06/2015,40609,Horticultural Materials,Environmental Services,Neighbourhood Management Programme,703.12
6055,3441749,ABAFIELDS RESIDENTIAL HOME,02/06/2015,Z6011,Z6011 - CR Bal Hold A/c Exp,Adult Service,ADZ1201 - 3rd Party Social Care Contributions,"1,563.76"
6055,3441749,ABAFIELDS RESIDENTIAL HOME,02/06/2015,54301,Residential Provision,Adult Service,LD Purchaser Residential Care,"1,625.96"
6055,3441749,ABAFIELDS RESIDENTIAL HOME,02/06/2015,54301,Residential Provision,Adult Service,OA  External Provision Residential,"27,435.72"
2348298,3441885,ABBEY HEALTHCARE (FARNWORTH) LIMITED,02/06/2015,Z6011,Z6011 - CR Bal Hold A/c Exp,Adult Service,ADZ0802 - Health - Funded Nursing Care,"6,097.97"
2348298,3441885,ABBEY HEALTHCARE (FARNWORTH) LIMITED,02/06/2015,54301,Residential Provision,Adult Service,MH Residential External Provision,"1,647.08"
2348298,3441885,ABBEY HEALTHCARE (FARNWORTH) LIMITED,02/06/2015,54301,Residential Provision,Adult Service,OA  External Provision Residential,"59,897.62"
2348298,3441885,ABBEY HEALTHCARE (FARNWORTH) LIMITED,02/06/2015,54302,Nursing Provision,Adult Service,OA  External Provision Residential,"24,026.44"
2348298,3441885,ABBEY HEALTHCARE (FARNWORTH) LIMITED,02/06/2015,54301,Residential Provision,Adult Service,PD Purchaser Residential Care,"1,647.08"
2348298,3441884,ABBEY HEALTHCARE (FARNWORTH) LIMITED,02/06/2015,54302,Nursing Provision,Adult Service,OA  External Provision Residential,652.83
2341303,3441882,ABBEYCLIFFE RESIDENTIAL CARE HOME,02/06/2015,54301,Residential Provision,Adult Service,OA  External Provision Residential,"6,735.04"
6894,3441801,ABBEYDALE RESIDENTIAL CARE HOME,02/06/2015,54301,Residential Provision,Adult Service,OA  External Provision Residential,"5,051.28"
6895,3441778,ABBEYWOOD TOTTINGTON LTD,02/06/2015,54301,Residential Provision,Adult Service,OA  External Provision Residential,"1,022.28"
6895,3441779,ABBEYWOOD TOTTINGTON LTD,02/06/2015,54301,Residential Provision,Adult Service,OA  External Provision Residential,"5,051.28"
2794304,3441736,Abermad Nursing Home Ltd,02/06/2015,54301,Residential Provision,Adult Service,OA  External Provision Residential,"1,932.00"
156135,3443017,ACCESS TO CARE LTD,04/06/2015,52200,Contracted Services,Adult Service,LD Purchaser Supported Housing,850.00
156135,3443013,ACCESS TO CARE LTD,04/06/2015,52200,Contracted Services,Adult Service,LD Purchaser Supported Housing,850.00
156135,3447034,ACCESS TO CARE LTD,11/06/2015,52200,Contracted Services,Adult Service,LD Purchaser Supported Housing,850.00
156135,3453473,ACCESS TO CARE LTD,18/06/2015,52200,Contracted Services,Adult Service,LD Purchaser Supported Housing,850.00
156135,3454836,ACCESS TO CARE LTD,22/06/2015,52000,Vol Assoc Grants  General,Childrens Services,Res Serv Agency Placements,850.00
156135,3454833,ACCESS TO CARE LTD,22/06/2015,52000,Vol Assoc Grants  General,Childrens Services,Res Serv Agency Placements,850.00
156135,3454838,ACCESS TO CARE LTD,22/06/2015,52000,Vol Assoc Grants  General,Childrens Services,Res Serv Agency Placements,850.00
156135,3454839,ACCESS TO CARE LTD,22/06/2015,52000,Vol Assoc Grants  General,Childrens Services,Res Serv Agency Placements,850.00
156135,3454832,ACCESS TO CARE LTD,22/06/2015,52000,Vol Assoc Grants  General,Childrens Services,Res Serv Agency Placements,850.00
156135,3454835,ACCESS TO CARE LTD,22/06/2015,52000,Vol Assoc Grants  General,Childrens Services,Res Serv Agency Placements,850.00
156135,3455983,ACCESS TO CARE LTD,25/06/2015,52200,Contracted Services,Adult Service,LD Purchaser Supported Housing,850.00
156135,3455981,ACCESS TO CARE LTD,25/06/2015,52200,Contracted Services,Adult Service,LD Purchaser Supported Housing,850.00
156135,3456041,ACCESS TO CARE LTD,25/06/2015,52000,Vol Assoc Grants  General,Childrens Services,Res Serv Agency Placements,850.00
156135,3456040,ACCESS TO CARE LTD,25/06/2015,52000,Vol Assoc Grants  General,Childrens Services,Res Serv Agency Placements,850.00
156135,3456043,ACCESS TO CARE LTD,25/06/2015,52000,Vol Assoc Grants  General,Childrens Services,Res Serv Agency Placements,850.00
156135,3456042,ACCESS TO CARE LTD,25/06/2015,52000,Vol Assoc Grants  General,Childrens Services,Res Serv Agency Placements,850.00
156135,3456044,ACCESS TO CARE LTD,25/06/2015,52000,Vol Assoc Grants  General,Childrens Services,Res Serv Agency Placements,850.00
959,3441781,ACORNS CARE CENTRE,02/06/2015,54301,Residential Provision,Adult Service,OA  External Provision Residential,"1,814.00"
959,3441781,ACORNS CARE CENTRE,02/06/2015,54302,Nursing Provision,Adult Service,OA  External Provision Residential,"1,556.00"
248862,3450695,ACTION FOR CHILDREN,15/06/2015,48509,Other Fees,Public Health,Public Health Core,"12,180.00"
101393,3456020,ADAMS SELFSTORE,25/06/2015,22006,Rent of Storage Facilities,Development & Regeneration,DR67260 - Museum Premises,624.00
2221292,3441872,ADLINGTON MANOR,02/06/2015,54302,Nursing Provision,Adult Service,OA  External Provision Residential,"1,868.40"
86130,3459178,Adoption Matters Northwest,29/06/2015,54102,54102 - Inter Agency Fees,Childrens Services,Child Prot CAHMS Grant,592.50
245759,3445876,ADVANCED BUILDING (NW) LTD,11/06/2015,53100,Agency Staff  Fulltime,Property Services,Operational Facilities Management,605.00
245759,3445873,ADVANCED BUILDING (NW) LTD,11/06/2015,20100,Day To Day Maintenance,Property Services,Admin Buildings  General,551.00
245759,3445879,ADVANCED BUILDING (NW) LTD,11/06/2015,53100,Agency Staff  Fulltime,Property Services,Operational Facilities Management,675.00
245759,3445873,ADVANCED BUILDING (NW) LTD,18/06/2015,20100,Day To Day Maintenance,Property Services,Admin Buildings  General,551.00
124443,3454844,ADVANCED CHILDCARE ASSESSMENTS LTD#MARK WEBB,22/06/2015,48509,Other Fees,Childrens Services,Management Team,546.03
2052291,3446817,AGGREGATE INDUSTRIES UK LIMITED,11/06/2015,Z6008,Expense AP Accrual,Bolton MBC Balance Sheet,Bolton MBC Balance Sheet,808.50
871655,3444418,AGILISYS LIMITED,08/06/2015,52200,Contracted Services,Chief Executives,CX58800 - Corporate I.C.T.,"11,096.10"
871655,3444414,AGILISYS LIMITED,08/06/2015,45400,Computer Purchase,Chief Executives,CX43004 - Corporate Asset Planning,"11,619.11"
871655,3452711,AGILISYS LIMITED,18/06/2015,45400,Computer Purchase,Chief Executives,CX58809 - Agilysis Refreshed Assets,"11,619.11"
871655,3457886,AGILISYS LIMITED,25/06/2015,Z5211,Z5211 - Debit Bal Holding A/c Exp,Chief Executives,CXZ5001 - ICT Supplies Suspense,"74,215.86"
1772297,3455867,AGR BUILDING & FENCING CONTRACTORS LIMITED,22/06/2015,Z6008,Expense AP Accrual,Bolton MBC Balance Sheet,Bolton MBC Balance Sheet,"2,092.50"
1772297,3455867,AGR BUILDING & FENCING CONTRACTORS LIMITED,22/06/2015,Z5608,Inv Invoice Price Variance,Property Services,EAM Holding,"1,838.05"
1772297,3455859,AGR BUILDING & FENCING CONTRACTORS LIMITED,22/06/2015,Z6008,Expense AP Accrual,Bolton MBC Balance Sheet,Bolton MBC Balance Sheet,"1,944.00"
1772297,3455870,AGR BUILDING & FENCING CONTRACTORS LIMITED,22/06/2015,Z6008,Expense AP Accrual,Bolton MBC Balance Sheet,Bolton MBC Balance Sheet,"1,305.00"
6063,3450354,AGR CARE SERVICES,15/06/2015,52000,Vol Assoc Grants  General,Childrens Services,Res Serv Agency Placements,"11,935.00"
6063,3450351,AGR CARE SERVICES,15/06/2015,52000,Vol Assoc Grants  General,Childrens Services,Res Serv Agency Placements,"11,532.00"
6063,3450350,AGR CARE SERVICES,15/06/2015,52000,Vol Assoc Grants  General,Childrens Services,Res Serv Agency Placements,"8,370.00"
6960,3443179,AIDAPT BATHROOMS LTD,04/06/2015,44051,Clients Aids & Adaptations,Adult Service,ICES,541.12
6960,3443185,AIDAPT BATHROOMS LTD,08/06/2015,44051,Clients Aids & Adaptations,Adult Service,ICES,602.40
6960,3453994,AIDAPT BATHROOMS LTD,22/06/2015,44051,Clients Aids & Adaptations,Adult Service,ICES,"1,610.00"
6064,3441787,AINSWORTH NURSING HOME,02/06/2015,54301,Residential Provision,Adult Service,MH Residential External Provision,"5,051.28"
6064,3441787,AINSWORTH NURSING HOME,02/06/2015,54302,Nursing Provision,Adult Service,MH Residential External Provision,"3,367.52"
2878301,3442805,AK Artist Management,04/06/2015,48203,Marketing,Chief Executives,CX24002 - Marketing - Holding Code,750.00
2284331,3451707,ALEXANDRA CAROLAN,18/06/2015,48509,Other Fees,Public Health,Get Active,"1,563.50"
2261290,3458945,AL-FAL MEDICAL GROUP#P82640,29/06/2015,52200,Contracted Services,Public Health,Primary Care,568.00
110901,3444256,ALLPAY.NET LTD,08/06/2015,48509,Other Fees,Chief Executives,CX59600 - CSD Cashiers,"5,530.78"
110901,3447165,ALLPAY.NET LTD,11/06/2015,48509,Other Fees,Chief Executives,CX59600 - CSD Cashiers,"3,589.95"
110901,3447168,ALLPAY.NET LTD,11/06/2015,48509,Other Fees,Chief Executives,CX59600 - CSD Cashiers,688.21
1671329,3441701,ALLSTAR BUSINESS SOLUTIONS,04/06/2015,31301,Vehicle Fuel,Environmental Services,Activities and Operations,"8,894.42"
1671329,3441701,ALLSTAR BUSINESS SOLUTIONS,04/06/2015,31301,Vehicle Fuel,Environmental Services,Highway Works  Unallocated Costs,"2,037.92"
1671329,3441701,ALLSTAR BUSINESS SOLUTIONS,04/06/2015,31301,Vehicle Fuel,Environmental Services,SNT Childrens Servs,"1,524.74"
1671329,3441701,ALLSTAR BUSINESS SOLUTIONS,04/06/2015,31301,Vehicle Fuel,Environmental Services,Vulnerable Persons Transport,"3,357.65"
1671329,3441701,ALLSTAR BUSINESS SOLUTIONS,04/06/2015,31301,Vehicle Fuel,Environmental Services,Waste,"20,636.43"
1671329,3444591,ALLSTAR BUSINESS SOLUTIONS,08/06/2015,31301,Vehicle Fuel,Environmental Services,Activities and Operations,"8,553.88"
1671329,3444591,ALLSTAR BUSINESS SOLUTIONS,08/06/2015,31301,Vehicle Fuel,Environmental Services,Highway Works  Unallocated Costs,"1,976.53"
1671329,3444591,ALLSTAR BUSINESS SOLUTIONS,08/06/2015,31301,Vehicle Fuel,Environmental Services,SNT Childrens Servs,980.61
1671329,3444591,ALLSTAR BUSINESS SOLUTIONS,08/06/2015,31301,Vehicle Fuel,Environmental Services,Vulnerable Persons Transport,"2,991.89"
1671329,3444591,ALLSTAR BUSINESS SOLUTIONS,08/06/2015,31301,Vehicle Fuel,Environmental Services,Waste,"21,665.42"
1671329,3454635,ALLSTAR BUSINESS SOLUTIONS,22/06/2015,31301,Vehicle Fuel,Environmental Services,Activities and Operations,"8,982.49"
1671329,3454635,ALLSTAR BUSINESS SOLUTIONS,22/06/2015,31301,Vehicle Fuel,Environmental Services,Highway Works  Unallocated Costs,"2,205.34"
1671329,3454635,ALLSTAR BUSINESS SOLUTIONS,22/06/2015,31301,Vehicle Fuel,Adult Service,ICES,539.50
1671329,3454635,ALLSTAR BUSINESS SOLUTIONS,22/06/2015,31301,Vehicle Fuel,Environmental Services,SNT Childrens Servs,"1,198.10"
1671329,3454635,ALLSTAR BUSINESS SOLUTIONS,22/06/2015,31301,Vehicle Fuel,Environmental Services,Vulnerable Persons Transport,"3,012.50"
1671329,3454635,ALLSTAR BUSINESS SOLUTIONS,22/06/2015,31301,Vehicle Fuel,Environmental Services,Waste,"19,837.13"
2564295,3441718,Almond Villas Ltd,02/06/2015,54301,Residential Provision,Adult Service,MH Residential External Provision,"5,040.00"
8115,3456099,ALPHATEC 2000 LTD,25/06/2015,40143,Office Equipment Leased Rental,Chief Executives,CX15002 - Printing Services,590.00
25274,3442675,ALSECURE GROUP LTD,04/06/2015,44401,Other Security Expenses,Housing GRF,Benjamin Court Accommodation,909.10
25274,3442914,ALSECURE GROUP LTD,04/06/2015,44401,Other Security Expenses,Housing GRF,Benjamin Court Accommodation,"1,018.98"
25274,3454896,ALSECURE GROUP LTD,22/06/2015,44401,Other Security Expenses,Housing GRF,Benjamin Court Accommodation,948.16
25274,3458150,ALSECURE GROUP LTD,25/06/2015,44401,Other Security Expenses,Housing GRF,Benjamin Court Accommodation,922.32
22972,3443693,AMBEROL LTD,08/06/2015,Z1051,Work in Progress Additions,Development & Regeneration,Development & Regeneration Capital,"6,922.71"
2845302,3441745,Ambleside Bank Care Home,02/06/2015,54301,Residential Provision,Adult Service,OA  External Provision Residential,"1,814.00"
6077,3442749,ANCHOR TRUST#2,04/06/2015,52200,Contracted Services,Adult Service,Supporting People  Capital Financing,"9,215.71"
6077,3442752,ANCHOR TRUST#2,04/06/2015,52200,Contracted Services,Adult Service,Supporting People  Capital Financing,"6,625.58"
6079,3446959,ANIMAL WARDENS,11/06/2015,52200,Contracted Services,Environmental Services,Activities and Operations,796.00
6079,3446960,ANIMAL WARDENS,11/06/2015,52200,Contracted Services,Environmental Services,Activities and Operations,960.00
2246414,3441875,ANSAR PROJECTS,02/06/2015,54301,Residential Provision,Adult Service,MH Residential External Provision,"4,536.00"
6082,3443215,Anthony Axford Ltd,04/06/2015,44051,Clients Aids & Adaptations,Adult Service,ICES,686.11
46373,3442858,APCOM,04/06/2015,43032,Office Stationery,Chief Executives,CX15001 - Text & Reprographics,635.00
8407,3442195,APETITO LTD,04/06/2015,41101,Catering ProvisionsFood,Adult Service,OA  Community Meals,805.30
8407,3442191,APETITO LTD,04/06/2015,41101,Catering ProvisionsFood,Adult Service,OA  Community Meals,"1,170.28"
8407,3445780,APETITO LTD,08/06/2015,41101,Catering ProvisionsFood,Adult Service,OA  Community Meals,981.39
8407,3445778,APETITO LTD,08/06/2015,41101,Catering ProvisionsFood,Adult Service,OA  Community Meals,946.48
8407,3445743,APETITO LTD,08/06/2015,41101,Catering ProvisionsFood,Adult Service,OA  Community Meals,801.30
8407,3446944,APETITO LTD,11/06/2015,41101,Catering ProvisionsFood,Adult Service,OA  Community Meals,"1,159.69"
8407,3446813,APETITO LTD,11/06/2015,41101,Catering ProvisionsFood,Adult Service,OA  Community Meals,"1,073.84"
8407,3453684,APETITO LTD,18/06/2015,41101,Catering ProvisionsFood,Adult Service,OA  Community Meals,"1,216.48"
8407,3458324,APETITO LTD,25/06/2015,41101,Catering ProvisionsFood,Adult Service,OA  Community Meals,"1,029.19"
8407,3458588,APETITO LTD,25/06/2015,41101,Catering ProvisionsFood,Adult Service,OA  Community Meals,864.48
8407,3458590,APETITO LTD,25/06/2015,41101,Catering ProvisionsFood,Adult Service,OA  Community Meals,934.50
1568137,3458782,arc4 Limited,25/06/2015,48203,Marketing,Housing GRF,HG02001 - Housing Contingency,"5,714.17"
259116,3456711,ARCH INITIATIVES,25/06/2015,52200,Contracted Services,Adult Service,Drugs Pooled Treatment Budget,"55,750.00"
6089,3442188,ARCO LIMITED,04/06/2015,Z6007,Z6007 - Inventory AP Accrual,Highways,Stores,636.00
6089,3453509,ARCO LIMITED,18/06/2015,Z6007,Z6007 - Inventory AP Accrual,Highways,Stores,684.00
2491295,3442154,Ardencom Limited,04/06/2015,45100,Telephones Direct Rental,Environmental Services,Markets  Rent Account,899.56
2491295,3454878,Ardencom Limited,22/06/2015,45100,Telephones Direct Rental,Environmental Services,Markets  Rent Account,903.85
236866,3446828,ASDA PHARMACY,11/06/2015,52200,Contracted Services,Public Health,PH03150 - Tobacco Control,745.99
2338498,3441881,ASHTREE HOUSE,02/06/2015,54301,Residential Provision,Adult Service,OA  External Provision Residential,"3,370.00"
6100,3454039,ASSOCIATED CLEANING CONTRACTORS,22/06/2015,26101,Contract Cleaning,Childrens Services,Technical Innovation Centre,"1,997.75"
2515336,3441900,ASTLEY GRANGE HOMES LIMITED,02/06/2015,Z6011,Z6011 - CR Bal Hold A/c Exp,Adult Service,ADZ0802 - Health - Funded Nursing Care,"1,931.33"
2515336,3441900,ASTLEY GRANGE HOMES LIMITED,02/06/2015,54302,Nursing Provision,Adult Service,OA  External Provision Residential,"7,081.63"
6104,3442251,AUTOMATIC ALARMS LIMITED,04/06/2015,Z6008,Expense AP Accrual,Bolton MBC Balance Sheet,Bolton MBC Balance Sheet,740.79
6104,3447601,AUTOMATIC ALARMS LIMITED,11/06/2015,Z6008,Expense AP Accrual,Bolton MBC Balance Sheet,Bolton MBC Balance Sheet,664.87
6104,3455699,AUTOMATIC ALARMS LIMITED,29/06/2015,Z6008,Expense AP Accrual,Bolton MBC Balance Sheet,Bolton MBC Balance Sheet,562.11
2457290,3446718,AXCIS EDUCATION RECRUITMENT,11/06/2015,53100,Agency Staff  Fulltime,Childrens Services,Early Intervention Team,694.00
2457290,3446721,AXCIS EDUCATION RECRUITMENT,11/06/2015,53100,Agency Staff  Fulltime,Childrens Services,Early Intervention Team,"2,120.70"
2457290,3448063,AXCIS EDUCATION RECRUITMENT,25/06/2015,53100,Agency Staff  Fulltime,Childrens Services,Early Intervention Team,552.25
2246472,3453890,B & D PRINT SERVICES LTD,18/06/2015,48203,Marketing,Chief Executives,CX24002 - Marketing - Holding Code,932.00
6107,3442637,B & M DAVIES (PLANT HIRE) LTD,04/06/2015,Z6008,Expense AP Accrual,Bolton MBC Balance Sheet,Bolton MBC Balance Sheet,724.50
6107,3442598,B & M DAVIES (PLANT HIRE) LTD,04/06/2015,33202,Plant Hire,Environmental Services,Bereavement Services,703.00
6107,3442639,B & M DAVIES (PLANT HIRE) LTD,04/06/2015,Z6008,Expense AP Accrual,Bolton MBC Balance Sheet,Bolton MBC Balance Sheet,684.50
6107,3444654,B & M DAVIES (PLANT HIRE) LTD,08/06/2015,33202,Plant Hire,Environmental Services,Bereavement Services,696.00
6107,3446987,B & M DAVIES (PLANT HIRE) LTD,11/06/2015,33202,Plant Hire,Environmental Services,Bereavement Services,703.00
6107,3447033,B & M DAVIES (PLANT HIRE) LTD,11/06/2015,Z6008,Expense AP Accrual,Bolton MBC Balance Sheet,Bolton MBC Balance Sheet,545.75
6107,3447040,B & M DAVIES (PLANT HIRE) LTD,11/06/2015,Z6008,Expense AP Accrual,Bolton MBC Balance Sheet,Bolton MBC Balance Sheet,684.50
6107,3446113,B & M DAVIES (PLANT HIRE) LTD,11/06/2015,33202,Plant Hire,Environmental Services,Bereavement Services,560.50
6107,3458227,B & M DAVIES (PLANT HIRE) LTD,25/06/2015,Z6008,Expense AP Accrual,Bolton MBC Balance Sheet,Bolton MBC Balance Sheet,545.75
6107,3456058,B & M DAVIES (PLANT HIRE) LTD,25/06/2015,33202,Plant Hire,Environmental Services,Bereavement Services,703.00
7280,3464697,BAKER ROSS LTD,29/06/2015,40601,General Materials,Public Health,PH01020 - Public Health - Centralised Budgets,"1,004.94"
2709325,3441730,Bannister Farm Cottage,02/06/2015,54301,Residential Provision,Adult Service,LD Purchaser Residential Care,"22,478.16"
898694,3445676,BATHGATE SILICA SAND LTD,08/06/2015,40601,General Materials,Environmental Services,Activities and Operations,550.36
6122,3446153,BCL,18/06/2015,20101,Programmed Maint. Work,Chief Executives,CX43008 - Accomm Rationalisation Strategy,"2,232.00"
2610465,3457651,Beacon Reach Limited,25/06/2015,52000,Vol Assoc Grants  General,Childrens Services,Disability Serv External Provision,"8,305.00"
39733,3441829,BEDFORD RESIDENTIAL NURSING CARE HOME,02/06/2015,54301,Residential Provision,Adult Service,OA  External Provision Residential,"1,814.00"
39733,3441829,BEDFORD RESIDENTIAL NURSING CARE HOME,02/06/2015,54302,Nursing Provision,Adult Service,OA  External Provision Residential,"1,814.00"
1544379,3441855,BEECHFIELD LODGE#ANCHOR TRUST,02/06/2015,54301,Residential Provision,Adult Service,OA  External Provision Residential,"1,557.63"
1544379,3441856,BEECHFIELD LODGE#ANCHOR TRUST,02/06/2015,54301,Residential Provision,Adult Service,OA  External Provision Residential,"2,365.29"
247279,3441846,BEECHVILLE CARE HOME,02/06/2015,Z6011,Z6011 - CR Bal Hold A/c Exp,Adult Service,ADZ1201 - 3rd Party Social Care Contributions,"1,188.84"
247279,3441846,BEECHVILLE CARE HOME,02/06/2015,54301,Residential Provision,Adult Service,OA  External Provision Residential,"7,039.00"
185697,3446156,BELL GROUP UK,11/06/2015,Z6008,Expense AP Accrual,Bolton MBC Balance Sheet,Bolton MBC Balance Sheet,999.35
1552722,3441858,BELONG ATHERTON#EPH,02/06/2015,Z6011,Z6011 - CR Bal Hold A/c Exp,Adult Service,ADZ1201 - 3rd Party Social Care Contributions,"1,360.44"
1552722,3441858,BELONG ATHERTON#EPH,02/06/2015,54302,Nursing Provision,Adult Service,MH Residential External Provision,"2,565.12"
1552722,3441858,BELONG ATHERTON#EPH,02/06/2015,54302,Nursing Provision,Adult Service,OA  External Provision Residential,"1,814.00"
2394295,3442316,BERENDSEN UK LTD#FORMERLY SUNLIGHT SERVICES GRP LTD,18/06/2015,40610,Direct Materials,Environmental Services,Depots,509.73
2387309,3441888,BERKELEY HOUSE,02/06/2015,54302,Nursing Provision,Adult Service,LD Purchaser Residential Care,"12,327.60"
66470,3443698,BERTRAM TRADING LTD#BERTRAM LIBRARY SERVICES,08/06/2015,40753,Book Fund Expenditure,Development & Regeneration,DR67420 - Libraries Info. Services,"11,075.43"
1493076,3445903,BES REHAB LTD,11/06/2015,44051,Clients Aids & Adaptations,Adult Service,ICES,530.00
6126,3443796,BETHELL CONSTRUCTION LTD,08/06/2015,Z1051,Work in Progress Additions,Highways,Stores,"39,997.76"
6126,3445721,BETHELL CONSTRUCTION LTD,08/06/2015,Z6008,Expense AP Accrual,Bolton MBC Balance Sheet,Bolton MBC Balance Sheet,"2,510.35"
6126,3445725,BETHELL CONSTRUCTION LTD,08/06/2015,20501,Engineering Work,Environmental Services,Highway Services,"3,499.20"
6126,3443660,BETHELL CONSTRUCTION LTD,08/06/2015,Z1051,Work in Progress Additions,Highways,Stores,"51,746.03"
6126,3443651,BETHELL CONSTRUCTION LTD,08/06/2015,Z1051,Work in Progress Additions,Highways,Stores,"144,172.44"
6126,3446824,BETHELL CONSTRUCTION LTD,11/06/2015,20501,Engineering Work,Environmental Services,Highway Services,"2,799.36"
6126,3446876,BETHELL CONSTRUCTION LTD,11/06/2015,Z6008,Expense AP Accrual,Bolton MBC Balance Sheet,Bolton MBC Balance Sheet,"4,016.56"
6126,3450233,BETHELL CONSTRUCTION LTD,15/06/2015,Z1051,Work in Progress Additions,Highways,Stores,"24,742.76"
6126,3450237,BETHELL CONSTRUCTION LTD,15/06/2015,Z1051,Work in Progress Additions,Highways,Stores,"101,605.84"
6126,3450235,BETHELL CONSTRUCTION LTD,15/06/2015,Z1051,Work in Progress Additions,Highways,Stores,"66,911.51"
6126,3450239,BETHELL CONSTRUCTION LTD,15/06/2015,Z1051,Work in Progress Additions,Highways,Stores,"30,438.63"
6126,3450238,BETHELL CONSTRUCTION LTD,15/06/2015,Z1051,Work in Progress Additions,Highways,Stores,"14,345.92"
6126,3457696,BETHELL CONSTRUCTION LTD,25/06/2015,Z1051,Work in Progress Additions,Highways,Stores,"44,341.82"
6126,3457947,BETHELL CONSTRUCTION LTD,25/06/2015,20501,Engineering Work,Environmental Services,Highway Services,"4,199.04"
6126,3457942,BETHELL CONSTRUCTION LTD,25/06/2015,Z6008,Expense AP Accrual,Bolton MBC Balance Sheet,Bolton MBC Balance Sheet,"5,020.70"
6126,3457699,BETHELL CONSTRUCTION LTD,25/06/2015,Z1051,Work in Progress Additions,Highways,Stores,"134,703.08"
6126,3457945,BETHELL CONSTRUCTION LTD,25/06/2015,Z6008,Expense AP Accrual,Bolton MBC Balance Sheet,Bolton MBC Balance Sheet,"5,020.70"
6126,3462213,BETHELL CONSTRUCTION LTD,29/06/2015,Z6008,Expense AP Accrual,Bolton MBC Balance Sheet,Bolton MBC Balance Sheet,"5,020.70"
2787313,3465701,Bevan Brittan LLP,30/06/2015,48509,Other Fees,Development & Regeneration,Spatial Data  from GIS,"139,476.49"
2438298,3441895,Birch Hall Care Centre,02/06/2015,54302,Nursing Provision,Adult Service,OA  External Provision Residential,"1,954.00"
2438298,3441895,Birch Hall Care Centre,02/06/2015,54301,Residential Provision,Adult Service,PD Purchaser Residential Care,"2,236.00"
814638,3443859,BIRKDALE DESIGN LTD,08/06/2015,40150,Office Furniture Purchase,Housing GRF,Furnished Tenancies,844.00
814638,3444462,BIRKDALE DESIGN LTD,08/06/2015,40150,Office Furniture Purchase,Housing GRF,Furnished Tenancies,620.00
814638,3443839,BIRKDALE DESIGN LTD,08/06/2015,40150,Office Furniture Purchase,Housing GRF,Local Welfare Provision Pilot,534.00
814638,3444618,BIRKDALE DESIGN LTD,08/06/2015,40150,Office Furniture Purchase,Housing GRF,Furnished Tenancies,928.00
814638,3444609,BIRKDALE DESIGN LTD,08/06/2015,40150,Office Furniture Purchase,Housing GRF,Furnished Tenancies,844.00
814638,3444460,BIRKDALE DESIGN LTD,08/06/2015,40150,Office Furniture Purchase,Housing GRF,Furnished Tenancies,844.00
814638,3444464,BIRKDALE DESIGN LTD,08/06/2015,40150,Office Furniture Purchase,Housing GRF,Furnished Tenancies,713.00
814638,3444620,BIRKDALE DESIGN LTD,08/06/2015,40150,Office Furniture Purchase,Housing GRF,Furnished Tenancies,760.00
814638,3444623,BIRKDALE DESIGN LTD,08/06/2015,40150,Office Furniture Purchase,Housing GRF,Furnished Tenancies,713.00
814638,3444599,BIRKDALE DESIGN LTD,08/06/2015,40150,Office Furniture Purchase,Housing GRF,Furnished Tenancies,760.00
814638,3447978,BIRKDALE DESIGN LTD,11/06/2015,40150,Office Furniture Purchase,Housing GRF,Furnished Tenancies,948.00
814638,3448007,BIRKDALE DESIGN LTD,11/06/2015,40150,Office Furniture Purchase,Housing GRF,Furnished Tenancies,760.00
814638,3448039,BIRKDALE DESIGN LTD,11/06/2015,40150,Office Furniture Purchase,Housing GRF,Local Welfare Provision Pilot,534.00
814638,3448031,BIRKDALE DESIGN LTD,11/06/2015,40150,Office Furniture Purchase,Housing GRF,Furnished Tenancies,760.00
814638,3447983,BIRKDALE DESIGN LTD,11/06/2015,40150,Office Furniture Purchase,Housing GRF,Furnished Tenancies,665.00
814638,3448037,BIRKDALE DESIGN LTD,11/06/2015,40150,Office Furniture Purchase,Housing GRF,Furnished Tenancies,760.00
814638,3448028,BIRKDALE DESIGN LTD,11/06/2015,40150,Office Furniture Purchase,Housing GRF,Furnished Tenancies,760.00
814638,3454831,BIRKDALE DESIGN LTD,22/06/2015,25000,Fixed Equipment Purchase,Housing GRF,Dispersed Properties,620.00
7948,3441789,BLACKROD HOUSE,02/06/2015,Z6011,Z6011 - CR Bal Hold A/c Exp,Adult Service,ADZ1201 - 3rd Party Social Care Contributions,"1,842.89"
7948,3441789,BLACKROD HOUSE,02/06/2015,54301,Residential Provision,Adult Service,MH Residential External Provision,"1,625.96"
7948,3441789,BLACKROD HOUSE,02/06/2015,54301,Residential Provision,Adult Service,OA  External Provision Residential,"31,920.06"
2655298,3445776,Bolinda UK Limited,08/06/2015,40753,Book Fund Expenditure,Development & Regeneration,DR67420 - Libraries Info. Services,"1,158.55"
811732,3454132,BOLMOOR INDUSTRIES LTD,22/06/2015,42001,Uniforms,Environmental Services,Catering,630.00
38557,3444437,BOLTON & DISTRICT CITIZENS ADVICE BUREAU LTD,08/06/2015,48509,Other Fees,Public Health,PH01012 - PSR – Public Health,"25,000.00"
38557,3450711,BOLTON & DISTRICT CITIZENS ADVICE BUREAU LTD,15/06/2015,52200,Contracted Services,Chief Executives,CX56104 - Anti Poverty Measures,"14,520.00"
43938,3452706,BOLTON AT HOME#137,18/06/2015,48509,Other Fees,Development & Regeneration,DR67120 - LMA External Funded Projects,"6,750.00"
43938,3464799,BOLTON AT HOME#137,29/06/2015,48203,Marketing,Chief Executives,CX24002 - Marketing - Holding Code,524.88
247297,3447900,BOLTON BULLETS,11/06/2015,52000,Vol Assoc Grants  General,Childrens Services,Admin Commissioning,"1,250.00"
44024,3450768,Bolton Care 4(LD),15/06/2015,52200,Contracted Services,Adult Service,OA  Carers Grant,"10,000.00"
44024,3450352,Bolton Care 4(LD),15/06/2015,52200,Contracted Services,Adult Service,OA  Carers Grant,"1,500.00"
8990,3442877,BOLTON CARPET WAREHOUSE,04/06/2015,40150,Office Furniture Purchase,Housing GRF,Furnished Tenancies,508.89
8990,3442883,BOLTON CARPET WAREHOUSE,04/06/2015,40150,Office Furniture Purchase,Housing GRF,Furnished Tenancies,508.89
8990,3442416,BOLTON CARPET WAREHOUSE,04/06/2015,40150,Office Furniture Purchase,Housing GRF,Local Welfare Provision Pilot,625.50
8990,3442421,BOLTON CARPET WAREHOUSE,04/06/2015,40150,Office Furniture Purchase,Housing GRF,Local Welfare Provision Pilot,625.50
8990,3442424,BOLTON CARPET WAREHOUSE,04/06/2015,40150,Office Furniture Purchase,Housing GRF,Local Welfare Provision Pilot,751.59
8990,3442430,BOLTON CARPET WAREHOUSE,04/06/2015,40150,Office Furniture Purchase,Housing GRF,Local Welfare Provision Pilot,625.50
8990,3442435,BOLTON CARPET WAREHOUSE,04/06/2015,40150,Office Furniture Purchase,Housing GRF,Local Welfare Provision Pilot,508.89
8990,3442571,BOLTON CARPET WAREHOUSE,04/06/2015,40150,Office Furniture Purchase,Housing GRF,Furnished Tenancies,508.89
8990,3442890,BOLTON CARPET WAREHOUSE,04/06/2015,40150,Office Furniture Purchase,Housing GRF,Furnished Tenancies,543.15
8990,3442916,BOLTON CARPET WAREHOUSE,04/06/2015,40150,Office Furniture Purchase,Housing GRF,Local Welfare Provision Pilot,751.59
8990,3442902,BOLTON CARPET WAREHOUSE,04/06/2015,40150,Office Furniture Purchase,Housing GRF,Local Welfare Provision Pilot,625.50
8990,3442561,BOLTON CARPET WAREHOUSE,08/06/2015,40150,Office Furniture Purchase,Housing GRF,Furnished Tenancies,899.82
8990,3442576,BOLTON CARPET WAREHOUSE,08/06/2015,40150,Office Furniture Purchase,Housing GRF,Furnished Tenancies,901.91
8990,3453134,BOLTON CARPET WAREHOUSE,18/06/2015,40150,Office Furniture Purchase,Housing GRF,Furnished Tenancies,578.94
8990,3453141,BOLTON CARPET WAREHOUSE,18/06/2015,40150,Office Furniture Purchase,Housing GRF,Furnished Tenancies,508.89
8990,3453087,BOLTON CARPET WAREHOUSE,18/06/2015,40150,Office Furniture Purchase,Housing GRF,Local Welfare Provision Pilot,625.50
8990,3453142,BOLTON CARPET WAREHOUSE,18/06/2015,40150,Office Furniture Purchase,Housing GRF,Furnished Tenancies,508.89
8990,3453117,BOLTON CARPET WAREHOUSE,18/06/2015,40150,Office Furniture Purchase,Housing GRF,Local Welfare Provision Pilot,751.59
8990,3453663,BOLTON CARPET WAREHOUSE,18/06/2015,40150,Office Furniture Purchase,Housing GRF,Local Welfare Provision Pilot,625.50
8990,3453667,BOLTON CARPET WAREHOUSE,18/06/2015,40150,Office Furniture Purchase,Housing GRF,Local Welfare Provision Pilot,625.50
8990,3453676,BOLTON CARPET WAREHOUSE,18/06/2015,40150,Office Furniture Purchase,Housing GRF,Furnished Tenancies,751.59
8990,3453683,BOLTON CARPET WAREHOUSE,18/06/2015,40150,Office Furniture Purchase,Housing GRF,Furnished Tenancies,508.89
8990,3453679,BOLTON CARPET WAREHOUSE,18/06/2015,40150,Office Furniture Purchase,Housing GRF,Furnished Tenancies,625.50
8990,3453671,BOLTON CARPET WAREHOUSE,18/06/2015,40150,Office Furniture Purchase,Housing GRF,Local Welfare Provision Pilot,625.50
7436,3450084,Bolton College#Was Community College,15/06/2015,43032,Office Stationery,Chief Executives,CX55530 - Payroll,"5,519.84"
7436,3458246,Bolton College#Was Community College,30/06/2015,52200,Contracted Services,Development & Regeneration,Adult Education,"178,677.07"
43551,3452687,BOLTON COMMUNITY LEISURE LTD,18/06/2015,22004,Room Hire,Public Health,Get Active,500.00
1956291,3459109,BOLTON COMMUNITY PRACTICE C.I.C#Y03079,29/06/2015,52200,Contracted Services,Public Health,PH04460 - PH Commissioning,"18,468.00"
1956291,3458947,BOLTON COMMUNITY PRACTICE C.I.C#Y03079,29/06/2015,52200,Contracted Services,Public Health,Primary Care,510.00
8439,3450700,BOLTON CVS#BOLTON COMMUNITY & VOLUNTARY SERVICES,15/06/2015,52200,Contracted Services,Public Health,PH04460 - PH Commissioning,"236,801.00"
7418,3442309,BOLTON MIDDLEBROOK LEISURE TRUST,04/06/2015,79000,Election Expenses,Chief Executives,CX13101 - Elections,"2,126.75"
6149,3442098,BOLTON STONE RESTORATION LTD,04/06/2015,Z6008,Expense AP Accrual,Bolton MBC Balance Sheet,Bolton MBC Balance Sheet,795.82
6149,3442114,BOLTON STONE RESTORATION LTD,04/06/2015,Z6008,Expense AP Accrual,Bolton MBC Balance Sheet,Bolton MBC Balance Sheet,623.00
6149,3453656,BOLTON STONE RESTORATION LTD,18/06/2015,20405,NonScheduled Work,Environmental Services,Highway Management,"2,493.60"
6149,3453826,BOLTON STONE RESTORATION LTD,18/06/2015,Z6008,Expense AP Accrual,Bolton MBC Balance Sheet,Bolton MBC Balance Sheet,699.22
6149,3453891,BOLTON STONE RESTORATION LTD,18/06/2015,Z6008,Expense AP Accrual,Bolton MBC Balance Sheet,Bolton MBC Balance Sheet,750.75
6149,3453209,BOLTON STONE RESTORATION LTD,22/06/2015,20100,Day To Day Maintenance,Chief Executives,CX41000 - Admin Buildings Portfolio,627.10
7950,3453189,BOLTON TOY LIBRARY,18/06/2015,52000,Vol Assoc Grants  General,Childrens Services,Admin Commissioning,"6,250.00"
6152,3442131,BOLTON WALL & FLOORING LTD,04/06/2015,20102,Health & Safety,Environmental Services,Markets  Rent Account,"1,353.00"
6152,3445716,BOLTON WALL & FLOORING LTD,18/06/2015,Z6008,Expense AP Accrual,Bolton MBC Balance Sheet,Bolton MBC Balance Sheet,"2,063.00"
2428292,3442857,BOLTON WHITES HOTEL LTD,04/06/2015,79000,Election Expenses,Chief Executives,CX13101 - Elections,"6,113.00"
2053,3446834,BOOTS THE CHEMIST,11/06/2015,52200,Contracted Services,Public Health,Sexual Health Improvement,543.60
2053,3446835,BOOTS THE CHEMIST,11/06/2015,52200,Contracted Services,Public Health,Sexual Health Improvement,677.82
2053,3450024,BOOTS THE CHEMIST,15/06/2015,52200,Contracted Services,Adult Service,Drugs Pooled Treatment Budget,649.00
2053,3450022,BOOTS THE CHEMIST,15/06/2015,52200,Contracted Services,Adult Service,Drugs Pooled Treatment Budget,799.30
2053,3457652,BOOTS THE CHEMIST,25/06/2015,52200,Contracted Services,Adult Service,Drugs Pooled Treatment Budget,"1,027.00"
2087293,3442243,Boss Interior Design (NW) Ltd T/A Global Interiors,04/06/2015,52300,Client Support Costs,Adult Service,LD Provider  Supported Housing,692.00
2087293,3450074,Boss Interior Design (NW) Ltd T/A Global Interiors,15/06/2015,52300,Client Support Costs,Adult Service,LD Provider  Supported Housing,809.00
2855311,3441746,Bradley House Care Home,02/06/2015,54301,Residential Provision,Adult Service,OA  External Provision Residential,"1,640.00"
1548543,3441857,BRIDEOAKE CARE HOME,02/06/2015,54301,Residential Provision,Adult Service,OA  External Provision Residential,"1,814.00"
20980,3452851,BRITISH GAS BUSINESS,18/06/2015,21200,Gas  General,Housing GRF,Access & Advice Housing Options Centre,742.17
20980,3452851,BRITISH GAS BUSINESS,18/06/2015,21200,Gas  General,Environmental Services,Assets,"1,208.39"
20980,3452851,BRITISH GAS BUSINESS,18/06/2015,21200,Gas  General,Chief Executives,CX40000 - Land and Property Portfolios,697.01
20980,3452851,BRITISH GAS BUSINESS,18/06/2015,21200,Gas  General,Chief Executives,CX41200 - Adult Social Care Portfolio,717.03
20980,3452851,BRITISH GAS BUSINESS,18/06/2015,21200,Gas  General,Environmental Services,Depots,"5,435.30"
20980,3452851,BRITISH GAS BUSINESS,18/06/2015,21200,Gas  General,Development & Regeneration,The Leverhulme Centre,555.18
20980,3452849,BRITISH GAS BUSINESS,18/06/2015,21200,Gas  General,Environmental Services,Assets,883.73
20980,3452849,BRITISH GAS BUSINESS,18/06/2015,21200,Gas  General,Environmental Services,Bereavement Services,"8,068.67"
20980,3452849,BRITISH GAS BUSINESS,18/06/2015,21200,Gas  General,Environmental Services,Cobden Street Community Centre,"1,307.15"
20980,3452849,BRITISH GAS BUSINESS,18/06/2015,21200,Gas  General,Chief Executives,CX23003 - Halliwell UCAN,641.20
20980,3452849,BRITISH GAS BUSINESS,18/06/2015,21200,Gas  General,Chief Executives,CX40000 - Land and Property Portfolios,"3,063.17"
20980,3452849,BRITISH GAS BUSINESS,18/06/2015,21200,Gas  General,Chief Executives,CX41000 - Admin Buildings Portfolio,"30,089.92"
20980,3452849,BRITISH GAS BUSINESS,18/06/2015,21200,Gas  General,Chief Executives,CX41100 - Other Buildings Portfolio,677.29
20980,3452849,BRITISH GAS BUSINESS,18/06/2015,21200,Gas  General,Chief Executives,CX41200 - Adult Social Care Portfolio,"22,165.50"
20980,3452849,BRITISH GAS BUSINESS,18/06/2015,21200,Gas  General,Chief Executives,CX42000 - Castle Hill,"4,463.72"
20980,3452849,BRITISH GAS BUSINESS,18/06/2015,21200,Gas  General,Chief Executives,CX44002 - Energy Payments Account,"2,340.45"
20980,3452849,BRITISH GAS BUSINESS,18/06/2015,21200,Gas  General,Environmental Services,Depots,"6,085.76"
20980,3452849,BRITISH GAS BUSINESS,18/06/2015,21200,Gas  General,Childrens Services,Disability Serv Avondale Street,508.66
20980,3452849,BRITISH GAS BUSINESS,18/06/2015,21200,Gas  General,Development & Regeneration,DR67213 - Libraries - Horwich,575.01
20980,3452849,BRITISH GAS BUSINESS,18/06/2015,21200,Gas  General,Development & Regeneration,DR67221 - Smithills Hall Museum,"3,497.93"
20980,3452849,BRITISH GAS BUSINESS,18/06/2015,21200,Gas  General,Childrens Services,Farnworth Youth Centre (Yth Srv),927.14
20980,3452849,BRITISH GAS BUSINESS,18/06/2015,21200,Gas  General,Childrens Services,Gt Lever CC,834.58
20980,3452849,BRITISH GAS BUSINESS,18/06/2015,21200,Gas  General,Childrens Services,Harvey CC,"1,118.94"
20980,3452849,BRITISH GAS BUSINESS,18/06/2015,21200,Gas  General,Childrens Services,Heaton & Lostock CC,771.00
20980,3452849,BRITISH GAS BUSINESS,18/06/2015,21200,Gas  General,Childrens Services,Lord Street and Grosvenor CC,676.54
20980,3452849,BRITISH GAS BUSINESS,18/06/2015,21200,Gas  General,Environmental Services,Mngmnt & Admin Overhead,519.38
20980,3452849,BRITISH GAS BUSINESS,18/06/2015,21200,Gas  General,Childrens Services,Oxford Grove CC,733.05
20980,3452849,BRITISH GAS BUSINESS,18/06/2015,21200,Gas  General,Childrens Services,Technical Innovation Centre,656.52
20980,3452849,BRITISH GAS BUSINESS,18/06/2015,21200,Gas  General,Childrens Services,Tonge CC,906.51
20980,3452850,BRITISH GAS BUSINESS,18/06/2015,21200,Gas  General,Housing GRF,Access & Advice Housing Options Centre,554.21
20980,3452850,BRITISH GAS BUSINESS,18/06/2015,21200,Gas  General,Environmental Services,Assets,"1,482.62"
20980,3452850,BRITISH GAS BUSINESS,18/06/2015,21200,Gas  General,Chief Executives,CX40000 - Land and Property Portfolios,"2,519.46"
20980,3452850,BRITISH GAS BUSINESS,18/06/2015,21200,Gas  General,Chief Executives,CX41000 - Admin Buildings Portfolio,"5,274.31"
20980,3452850,BRITISH GAS BUSINESS,18/06/2015,21200,Gas  General,Chief Executives,CX41100 - Other Buildings Portfolio,551.13
20980,3452850,BRITISH GAS BUSINESS,18/06/2015,21200,Gas  General,Chief Executives,CX41200 - Adult Social Care Portfolio,"14,611.33"
20980,3452850,BRITISH GAS BUSINESS,18/06/2015,21200,Gas  General,Chief Executives,CX42000 - Castle Hill,"2,556.10"
20980,3452850,BRITISH GAS BUSINESS,18/06/2015,21200,Gas  General,Environmental Services,Depots,"1,678.03"
20980,3452850,BRITISH GAS BUSINESS,18/06/2015,21200,Gas  General,Development & Regeneration,DR67221 - Smithills Hall Museum,"2,036.01"
20980,3452850,BRITISH GAS BUSINESS,18/06/2015,21200,Gas  General,Childrens Services,Harvey CC,753.32
20980,3452850,BRITISH GAS BUSINESS,18/06/2015,21200,Gas  General,Childrens Services,Little Lever CC,"1,464.59"
20980,3452850,BRITISH GAS BUSINESS,18/06/2015,21200,Gas  General,Childrens Services,Technical Innovation Centre,652.67
20980,3452850,BRITISH GAS BUSINESS,18/06/2015,21200,Gas  General,Development & Regeneration,The Leverhulme Centre,514.81
20980,3452850,BRITISH GAS BUSINESS,18/06/2015,21200,Gas  General,Childrens Services,Tonge CC,572.38
20980,3463091,BRITISH GAS BUSINESS,29/06/2015,21200,Gas  General,Childrens Services,Brightmeadows CC,754.21
20980,3463090,BRITISH GAS BUSINESS,29/06/2015,21200,Gas  General,Childrens Services,Barlow Park YC,506.77
2412,3445697,BRITISH GAS TRADING LIMITED,08/06/2015,21200,Gas  General,Housing GRF,Dispersed Properties,561.31
264233,3441849,BROOKFIELD RESIDENTIAL CARE HOME LTD,02/06/2015,54301,Residential Provision,Adult Service,MH Residential External Provision,"2,200.00"
2590306,3441720,Brookside Care Home#1,02/06/2015,54301,Residential Provision,Adult Service,OA  External Provision Residential,"1,712.00"
7524,3441813,BROOKVALE,02/06/2015,54301,Residential Provision,Adult Service,LD Purchaser Residential Care,"7,138.64"
6169,3441809,BROTHERS OF CHARITY SERVICES,02/06/2015,54302,Nursing Provision,Adult Service,LD Purchaser Residential Care,"3,617.20"
6169,3459023,BROTHERS OF CHARITY SERVICES,29/06/2015,52200,Contracted Services,Adult Service,LD Purchaser Domiciliary Care,"3,691.12"
7528,3441775,BROUGHTON HOUSE#EPH,02/06/2015,54301,Residential Provision,Adult Service,OA  External Provision Residential,"1,615.32"
7529,3441776,BROWFIELD RESIDENTIAL CARE HOME,02/06/2015,54301,Residential Provision,Adult Service,MH Residential External Provision,"5,233.58"
7530,3442688,BROXAP LIMITED,04/06/2015,Z1051,Work in Progress Additions,Environmental Services,Environmental Services Balance sheet,"4,285.70"
2775307,3457702,Bryn Melyn Care Ltd,25/06/2015,52000,Vol Assoc Grants  General,Childrens Services,Res Serv Agency Placements,"20,108.57"
2775307,3457932,Bryn Melyn Care Ltd,25/06/2015,52000,Vol Assoc Grants  General,Childrens Services,Res Serv Agency Placements,"6,857.14"
2118292,3447129,BS SUPPORT SERVICES LIMITED,11/06/2015,52200,Contracted Services,Childrens Services,Youth Offending Team,"2,560.75"
7538,3447877,BUCHANAN COMPUTING,11/06/2015,45432,Computer Software Installation,Environmental Services,Highway Management,"2,976.00"
2152297,3442700,Building A New Direction#BAND,04/06/2015,52200,Contracted Services,Adult Service,MH Day Care External Provision,"18,750.00"
2152297,3450342,Building A New Direction#BAND,15/06/2015,52200,Contracted Services,Adult Service,MH Day Care External Provision,"18,750.00"
2794563,3441737,Burger Court,02/06/2015,54301,Residential Provision,Adult Service,MH Residential External Provision,"3,200.00"
67885,3458949,BURNSIDE SURGERY#P82025,29/06/2015,52200,Contracted Services,Public Health,Primary Care,"2,212.00"
67885,3459111,BURNSIDE SURGERY#P82025,29/06/2015,52200,Contracted Services,Public Health,PH04460 - PH Commissioning,"1,560.00"
6179,3442116,BURNT TREE GROUP,04/06/2015,33201,Transport Hire,Environmental Services,Transport Support Service,508.20
6179,3442127,BURNT TREE GROUP,04/06/2015,33201,Transport Hire,Environmental Services,Transport Support Service,514.80
6179,3442134,BURNT TREE GROUP,04/06/2015,33201,Transport Hire,Environmental Services,Transport Support Service,677.60
6179,3442136,BURNT TREE GROUP,04/06/2015,33201,Transport Hire,Environmental Services,Transport Support Service,532.40
6179,3442104,BURNT TREE GROUP,04/06/2015,33201,Transport Hire,Environmental Services,Transport Support Service,677.60
6179,3453515,BURNT TREE GROUP,18/06/2015,33201,Transport Hire,Environmental Services,Transport Support Service,508.20
6179,3453516,BURNT TREE GROUP,18/06/2015,33201,Transport Hire,Environmental Services,Transport Support Service,646.80
6179,3453518,BURNT TREE GROUP,18/06/2015,33201,Transport Hire,Environmental Services,Transport Support Service,646.80
6179,3453517,BURNT TREE GROUP,18/06/2015,33201,Transport Hire,Environmental Services,Transport Support Service,508.20
6179,3453519,BURNT TREE GROUP,18/06/2015,33201,Transport Hire,Environmental Services,Transport Support Service,912.00
6179,3453525,BURNT TREE GROUP,18/06/2015,33201,Transport Hire,Environmental Services,Transport Support Service,912.00
1551594,3458164,BY THE BRIDGE NORTH WEST,25/06/2015,52000,Vol Assoc Grants  General,Childrens Services,Res Serv Agency Placements,"3,969.00"
1551594,3458165,BY THE BRIDGE NORTH WEST,25/06/2015,52000,Vol Assoc Grants  General,Childrens Services,Res Serv Agency Placements,"3,702.86"
163197,3447472,BYROM CLARK ROBERTS,11/06/2015,48509,Other Fees,Chief Executives,CX43011 - Corporate Property Revenue Project Transfers to Other Projects,"1,140.00"
2532338,3447016,C D Chauffeur Hire,11/06/2015,53102,Agency Staff  Other,Chief Executives,CX13003 - Mayoralty,588.00
6185,3453631,C P DAVIDSON & SONS LTD,18/06/2015,33203,Contract Hire,Environmental Services,Transport Support Service,"1,980.00"
6185,3453634,C P DAVIDSON & SONS LTD,18/06/2015,33203,Contract Hire,Environmental Services,Transport Support Service,"1,980.00"
6185,3453632,C P DAVIDSON & SONS LTD,18/06/2015,33203,Contract Hire,Environmental Services,Transport Support Service,"1,980.00"
2267458,3447050,CAIS LTD,11/06/2015,54301,Residential Provision,Adult Service,Drugs Pooled Treatment Budget,"3,220.00"
2719307,3441732,Cambrian House,02/06/2015,54301,Residential Provision,Adult Service,OA  External Provision Residential,"1,668.00"
7612,3441803,CAMERON HOUSE CARE HOME,02/06/2015,54301,Residential Provision,Adult Service,OA  External Provision Residential,"2,585.77"
6191,3457630,CAPITA BUSINESS SERVICES LTD,25/06/2015,48510,Consultancy Fees,Chief Executives,CX55410 - Directorate,"7,995.00"
283495,3453490,CARE MONITORING 2000 LTD,18/06/2015,45409,Information and Communication Technology,Adult Service,AD41403 - Reablement,"3,648.10"
6196,3444439,CARE TODAY CHILDRENS SERVICE,08/06/2015,52000,Vol Assoc Grants  General,Childrens Services,Res Serv Agency Placements,"13,741.99"
6196,3444440,CARE TODAY CHILDRENS SERVICE,08/06/2015,52000,Vol Assoc Grants  General,Childrens Services,Res Serv Agency Placements,"14,326.34"
63390,3443790,CARE UK HOMECARE#CARE UK (BOLTON),08/06/2015,52200,Contracted Services,Adult Service,OA  Home Care Services external provision,"62,343.07"
63390,3450310,CARE UK HOMECARE#CARE UK (BOLTON),15/06/2015,52200,Contracted Services,Adult Service,OA  Home Care Services external provision,"60,950.50"
229284,3456706,CAREERVISION LIMITED,25/06/2015,45431,Computer Software Licences,Childrens Services,Admin Info Mgemnt Unit,"9,664.24"
78906,3444421,CAREWATCH (BOLTON),08/06/2015,52200,Contracted Services,Adult Service,OA  Home Care Services external provision,"61,192.66"
566695,3447025,CARING ALTERNATIVES LIMITED,11/06/2015,52200,Contracted Services,Adult Service,MH Residential External Provision,"1,847.36"
566695,3447056,CARING ALTERNATIVES LIMITED,11/06/2015,52200,Contracted Services,Adult Service,MH Residential External Provision,"1,393.76"
566695,3447053,CARING ALTERNATIVES LIMITED,11/06/2015,52200,Contracted Services,Adult Service,MH Residential External Provision,"1,393.76"
566695,3447021,CARING ALTERNATIVES LIMITED,11/06/2015,52200,Contracted Services,Adult Service,MH Residential External Provision,"1,897.76"
566695,3447061,CARING ALTERNATIVES LIMITED,11/06/2015,52200,Contracted Services,Adult Service,MH Residential External Provision,"1,672.00"
566695,3447017,CARING ALTERNATIVES LIMITED,11/06/2015,52200,Contracted Services,Adult Service,MH Residential External Provision,"1,672.00"
566695,3447024,CARING ALTERNATIVES LIMITED,11/06/2015,52200,Contracted Services,Adult Service,MH Residential External Provision,"2,099.36"
566695,3447058,CARING ALTERNATIVES LIMITED,11/06/2015,52200,Contracted Services,Adult Service,MH Residential External Provision,"1,393.76"
566695,3447062,CARING ALTERNATIVES LIMITED,11/06/2015,52200,Contracted Services,Adult Service,MH Residential External Provision,"2,806.84"
266353,3457890,CARITAS CARE LIMITED T/A CATHOLIC CARING SERVICES,25/06/2015,52000,Vol Assoc Grants  General,Childrens Services,Res Serv Agency Placements,"2,214.29"
2441321,3446093,REDACTED - PERSONAL DATA,11/06/2015,53000,Private Contracted Services,Childrens Services,CH84800 - Educational Improvement - Sec,500.00
2299300,3442313,REDACTED - PERSONAL DATA,04/06/2015,48509,Other Fees,Childrens Services,Education Psychology Service,"2,550.00"
252578,3441847,CARR BANK HOUSE#PAULINE JONES,02/06/2015,54301,Residential Provision,Adult Service,MH Residential External Provision,"1,568.68"
372619,3443504,CARRYLIFT MATERIALS HANDLING LTD,08/06/2015,52200,Contracted Services,Environmental Services,Transport Support Service,524.48
2070,3451712,CASH FRIDAY,18/06/2015,53102,Agency Staff  Other,Development & Regeneration,The Work Programme,"1,369.00"
2070,3451709,CASH FRIDAY,18/06/2015,53102,Agency Staff  Other,Development & Regeneration,The Work Programme,"1,369.00"
2070,3451711,CASH FRIDAY,18/06/2015,53102,Agency Staff  Other,Development & Regeneration,The Work Programme,"1,369.00"
2070,3451714,CASH FRIDAY,18/06/2015,53102,Agency Staff  Other,Development & Regeneration,The Work Programme,"1,369.00"
2070,3455004,CASH FRIDAY,22/06/2015,53102,Agency Staff  Other,Development & Regeneration,Adult Education,"1,369.00"
2620304,3441722,Castle Mount,02/06/2015,54301,Residential Provision,Adult Service,OA  External Provision Residential,"2,252.00"
482511,3447875,CATEREPAIR LTD,11/06/2015,Z6008,Expense AP Accrual,Bolton MBC Balance Sheet,Bolton MBC Balance Sheet,"1,027.90"
1571303,3443213,CELLHIRE PLC,04/06/2015,79000,Election Expenses,Chief Executives,CX13101 - Elections,"1,840.88"
75516,3443012,CEMEX UK MATERIALS LTD,04/06/2015,Z6007,Z6007 - Inventory AP Accrual,Highways,Stores,903.11
75516,3442414,CEMEX UK MATERIALS LTD,04/06/2015,Z6007,Z6007 - Inventory AP Accrual,Highways,Stores,"1,062.62"
75516,3442418,CEMEX UK MATERIALS LTD,04/06/2015,Z6007,Z6007 - Inventory AP Accrual,Highways,Stores,653.92
75516,3442415,CEMEX UK MATERIALS LTD,04/06/2015,Z6007,Z6007 - Inventory AP Accrual,Highways,Stores,"1,042.52"
75516,3443530,CEMEX UK MATERIALS LTD,08/06/2015,Z6007,Z6007 - Inventory AP Accrual,Highways,Stores,"1,067.98"
75516,3446754,CEMEX UK MATERIALS LTD,11/06/2015,Z6007,Z6007 - Inventory AP Accrual,Highways,Stores,697.84
75516,3446755,CEMEX UK MATERIALS LTD,11/06/2015,Z6007,Z6007 - Inventory AP Accrual,Highways,Stores,697.84
75516,3446751,CEMEX UK MATERIALS LTD,11/06/2015,Z6007,Z6007 - Inventory AP Accrual,Highways,Stores,"1,072.00"
75516,3446747,CEMEX UK MATERIALS LTD,11/06/2015,Z6007,Z6007 - Inventory AP Accrual,Highways,Stores,991.10
75516,3448046,CEMEX UK MATERIALS LTD,11/06/2015,Z6007,Z6007 - Inventory AP Accrual,Highways,Stores,"3,276.30"
75516,3453756,CEMEX UK MATERIALS LTD,18/06/2015,Z6007,Z6007 - Inventory AP Accrual,Highways,Stores,"1,047.88"
75516,3453757,CEMEX UK MATERIALS LTD,18/06/2015,Z6007,Z6007 - Inventory AP Accrual,Highways,Stores,644.54
75516,3453754,CEMEX UK MATERIALS LTD,18/06/2015,Z6007,Z6007 - Inventory AP Accrual,Highways,Stores,"1,027.78"
75516,3453752,CEMEX UK MATERIALS LTD,18/06/2015,Z6007,Z6007 - Inventory AP Accrual,Highways,Stores,639.18
75516,3464685,CEMEX UK MATERIALS LTD,29/06/2015,Z6007,Z6007 - Inventory AP Accrual,Highways,Stores,629.80
9175,3442728,CH Bolton Limited,04/06/2015,22002,Management Fee,Chief Executives,CX42000 - Castle Hill,"144,987.82"
9175,3444258,CH Bolton Limited,08/06/2015,48511,Management Fees,Chief Executives,CX42000 - Castle Hill,"9,412.61"
9175,3455860,CH Bolton Limited,22/06/2015,20100,Day To Day Maintenance,Chief Executives,CX42000 - Castle Hill,"2,800.00"
9175,3457936,CH Bolton Limited,25/06/2015,20101,Programmed Maint. Work,Chief Executives,CX43008 - Accomm Rationalisation Strategy,"6,342.00"
13252,3446962,CHALLENGER SITE SERVICES,11/06/2015,52200,Contracted Services,Environmental Services,Assets,"1,680.00"
13252,3446730,CHALLENGER SITE SERVICES,11/06/2015,40102,Operational Equipment Rental,Environmental Services,Assets,590.00
13252,3446729,CHALLENGER SITE SERVICES,11/06/2015,40102,Operational Equipment Rental,Environmental Services,Assets,590.00
2267473,3458648,CHANGE POINT LTD,25/06/2015,19100,Training Exps Tuition Fees,Childrens Services,CH43727 - WPD Project Link,"1,953.00"
6205,3442867,CHASSIS & CAB SPECIALISTS,04/06/2015,52200,Contracted Services,Environmental Services,Transport Support Service,"2,820.00"
6205,3456081,CHASSIS & CAB SPECIALISTS,25/06/2015,52200,Contracted Services,Environmental Services,Transport Support Service,"1,010.00"
16039,3446694,CHEMSEARCH#NCH (UK) LTD,11/06/2015,20100,Day To Day Maintenance,Environmental Services,Markets  Rent Account,"1,640.00"
6131,3453931,CHILD ACTION NORTHWEST,22/06/2015,52000,Vol Assoc Grants  General,Childrens Services,Res Serv Agency Placements,"3,100.00"
6131,3453930,CHILD ACTION NORTHWEST,22/06/2015,52000,Vol Assoc Grants  General,Childrens Services,Disability Serv External Provision,"4,448.19"
6131,3458532,CHILD ACTION NORTHWEST,25/06/2015,52200,Contracted Services,Childrens Services,Youth Offending Team,"1,373.75"
6131,3458535,CHILD ACTION NORTHWEST,25/06/2015,52200,Contracted Services,Childrens Services,Youth Offending Team,"1,377.50"
191679,3441840,CHORLEY LODGE#ORCHARD CARE HOMES.COM LIMITED,02/06/2015,54301,Residential Provision,Adult Service,OA  External Provision Residential,651.43
191679,3441841,CHORLEY LODGE#ORCHARD CARE HOMES.COM LIMITED,02/06/2015,Z6011,Z6011 - CR Bal Hold A/c Exp,Adult Service,ADZ1201 - 3rd Party Social Care Contributions,600.00
191679,3441841,CHORLEY LODGE#ORCHARD CARE HOMES.COM LIMITED,02/06/2015,54301,Residential Provision,Adult Service,OA  External Provision Residential,"1,824.00"
214401,3453352,CIRCUS ZAPPARELLI,18/06/2015,48203,Marketing,Chief Executives,CX24002 - Marketing - Holding Code,"1,500.00"
126648,3445741,CIVICA UK LTD,08/06/2015,45401,Computer Maintenance,Development & Regeneration,DR67410 - Libraries Info. Systems,597.31
126648,3445744,CIVICA UK LTD,08/06/2015,45401,Computer Maintenance,Development & Regeneration,DR67410 - Libraries Info. Systems,685.29
126648,3446733,CIVICA UK LTD,11/06/2015,45430,Computer Software,Environmental Services,Regulatory Services Licensing,"1,155.00"
2566295,3441719,Claremont Lodge,02/06/2015,54301,Residential Provision,Adult Service,OA  External Provision Residential,"1,615.32"
195012,3453502,CMA SOLICITORS#3,18/06/2015,48509,Other Fees,Childrens Services,Management Team,500.00
130480,3446840,COHENS CHEMIST#GORGEMEAD LTD,11/06/2015,52200,Contracted Services,Public Health,PH03150 - Tobacco Control,754.15
130480,3450026,COHENS CHEMIST#GORGEMEAD LTD,15/06/2015,52200,Contracted Services,Adult Service,Drugs Pooled Treatment Budget,564.80
130480,3450028,COHENS CHEMIST#GORGEMEAD LTD,15/06/2015,52200,Contracted Services,Adult Service,Drugs Pooled Treatment Budget,680.50
130480,3457656,COHENS CHEMIST#GORGEMEAD LTD,25/06/2015,52200,Contracted Services,Adult Service,Drugs Pooled Treatment Budget,512.90
6216,3443700,COLAS LTD,08/06/2015,Z6008,Expense AP Accrual,Bolton MBC Balance Sheet,Bolton MBC Balance Sheet,"4,942.08"
123269,3447075,COLE SECURITY SERVICES LTD#FACTOR BIBBY,11/06/2015,44401,Other Security Expenses,Chief Executives,CX59500 - C.R.M. Operations,905.00
123269,3458160,COLE SECURITY SERVICES LTD#FACTOR BIBBY,25/06/2015,44401,Other Security Expenses,Chief Executives,CX59500 - C.R.M. Operations,905.00
123269,3458158,COLE SECURITY SERVICES LTD#FACTOR BIBBY,25/06/2015,44401,Other Security Expenses,Chief Executives,CX59500 - C.R.M. Operations,742.10
123269,3458159,COLE SECURITY SERVICES LTD#FACTOR BIBBY,25/06/2015,44401,Other Security Expenses,Chief Executives,CX59500 - C.R.M. Operations,905.00
2675,3453169,COLOURS WHOLESALE FLOWERS,18/06/2015,40609,Horticultural Materials,Environmental Services,Heaton Fold,500.25
2588314,3453943,Compass Fostering North West Ltd,22/06/2015,52000,Vol Assoc Grants  General,Childrens Services,Res Serv Agency Placements,"1,977.12"
2588314,3453929,Compass Fostering North West Ltd,22/06/2015,52000,Vol Assoc Grants  General,Childrens Services,Res Serv Agency Placements,"3,830.67"
2588314,3458170,Compass Fostering North West Ltd,25/06/2015,52000,Vol Assoc Grants  General,Childrens Services,Res Serv Agency Placements,"3,707.10"
1862301,3441861,CONISTON HOUSE CARE HOME,02/06/2015,54301,Residential Provision,Adult Service,OA  External Provision Residential,"3,232.00"
21285,3442264,CONSERVATION CONTRACTS NORTH WEST LTD,04/06/2015,52200,Contracted Services,Environmental Services,Assets,"1,672.25"
21285,3458114,CONSERVATION CONTRACTS NORTH WEST LTD,25/06/2015,52200,Contracted Services,Environmental Services,Assets,912.25
91550,3459112,CORNERSTONE SURGERY#P82627,29/06/2015,52200,Contracted Services,Public Health,PH04460 - PH Commissioning,"1,080.00"
91550,3458951,CORNERSTONE SURGERY#P82627,29/06/2015,52200,Contracted Services,Public Health,Primary Care,"1,134.00"
6227,3441810,CORNERSTONE TRUST,02/06/2015,54301,Residential Provision,Adult Service,LD Purchaser Residential Care,"15,910.40"
65759,3450226,COSMO GRAPHIS IMAGING LTD,15/06/2015,48509,Other Fees,Environmental Services,Bereavement Services,"9,780.00"
37038,3453895,Country Rhodes Property Investments,18/06/2015,48629,Miscellaneous Expenses,Chief Executives,CX56100 - Housing Benefits,653.53
37038,3454795,Country Rhodes Property Investments,22/06/2015,48629,Miscellaneous Expenses,Chief Executives,CX56100 - Housing Benefits,653.53
2876322,3457714,Courtyard Care Ltd#1,25/06/2015,52000,Vol Assoc Grants  General,Childrens Services,Res Serv Agency Placements,"15,793.20"
1609294,3463000,CRAEMER UK LTD,29/06/2015,Z1051,Work in Progress Additions,Environmental Services,Environmental Services Balance sheet,"10,560.00"
419294,3442702,CRAVEN ROOFING CONTRACTORS,04/06/2015,Z6008,Expense AP Accrual,Bolton MBC Balance Sheet,Bolton MBC Balance Sheet,"7,838.00"
6233,3444532,CREATIVE SUPPORT LTD#3,08/06/2015,52200,Contracted Services,Adult Service,LD Purchaser Supported Housing,"7,964.60"
6233,3444527,CREATIVE SUPPORT LTD#3,08/06/2015,52200,Contracted Services,Adult Service,MH Residential External Provision,"10,494.65"
6233,3444530,CREATIVE SUPPORT LTD#3,08/06/2015,52200,Contracted Services,Adult Service,LD Purchaser Supported Housing,"26,839.68"
6233,3444528,CREATIVE SUPPORT LTD#3,08/06/2015,52200,Contracted Services,Adult Service,LD Purchaser Supported Housing,"32,685.97"
6233,3444531,CREATIVE SUPPORT LTD#3,08/06/2015,52200,Contracted Services,Adult Service,LD Purchaser Supported Housing,"18,308.16"
6233,3444529,CREATIVE SUPPORT LTD#3,08/06/2015,52200,Contracted Services,Adult Service,LD Purchaser Supported Housing,"39,912.92"
6233,3450190,CREATIVE SUPPORT LTD#3,15/06/2015,52200,Contracted Services,Adult Service,OA Extra Care Housing External Provision,"9,642.69"
6233,3450187,CREATIVE SUPPORT LTD#3,15/06/2015,52200,Contracted Services,Adult Service,OA Extra Care Housing External Provision,"10,621.38"
6233,3450185,CREATIVE SUPPORT LTD#3,15/06/2015,52200,Contracted Services,Adult Service,OA Extra Care Housing External Provision,"8,567.53"
6233,3450189,CREATIVE SUPPORT LTD#3,15/06/2015,52200,Contracted Services,Adult Service,OA Extra Care Housing External Provision,"11,343.57"
6233,3450186,CREATIVE SUPPORT LTD#3,15/06/2015,52200,Contracted Services,Adult Service,OA Extra Care Housing External Provision,"13,459.27"
6233,3450188,CREATIVE SUPPORT LTD#3,15/06/2015,52200,Contracted Services,Adult Service,OA Extra Care Housing External Provision,"10,748.06"
6233,3451690,CREATIVE SUPPORT LTD#3,18/06/2015,52200,Contracted Services,Adult Service,MH Residential External Provision,"2,100.00"
6233,3456028,CREATIVE SUPPORT LTD#3,25/06/2015,52200,Contracted Services,Adult Service,LD Purchaser Supported Housing,"32,654.24"
6233,3456031,CREATIVE SUPPORT LTD#3,25/06/2015,52200,Contracted Services,Adult Service,LD Purchaser Supported Housing,"18,707.52"
6233,3456027,CREATIVE SUPPORT LTD#3,25/06/2015,52200,Contracted Services,Adult Service,MH Residential External Provision,"9,719.48"
6233,3456032,CREATIVE SUPPORT LTD#3,25/06/2015,52200,Contracted Services,Adult Service,LD Purchaser Supported Housing,"7,552.76"
6233,3456030,CREATIVE SUPPORT LTD#3,25/06/2015,52200,Contracted Services,Adult Service,LD Purchaser Supported Housing,"26,839.68"
6233,3456029,CREATIVE SUPPORT LTD#3,25/06/2015,52200,Contracted Services,Adult Service,LD Purchaser Supported Housing,"39,912.92"
2511617,3450281,CRG Limited#Homecare,15/06/2015,52200,Contracted Services,Adult Service,OA  Home Care Services external provision,"20,728.14"
2124292,3445849,CRYSTAL CARE SOLUTIONS LTD,11/06/2015,52000,Vol Assoc Grants  General,Childrens Services,Disability Serv External Provision,"1,669.29"
2124292,3445852,CRYSTAL CARE SOLUTIONS LTD,11/06/2015,52000,Vol Assoc Grants  General,Childrens Services,Disability Serv External Provision,"3,895.00"
2124292,3445854,CRYSTAL CARE SOLUTIONS LTD,11/06/2015,52000,Vol Assoc Grants  General,Childrens Services,Disability Serv External Provision,"3,895.00"
242608,3450234,CYCLESCHEME.CO.UK,16/06/2015,31150,Cycle Purchase,Chief Executives,CX21103 - Cycle to Work Scheme,"3,894.26"
6247,3442713,D2 DIGITAL BY DESIGN LTD#1,04/06/2015,52200,Contracted Services,Adult Service,Drugs Pooled Treatment Budget,"10,000.00"
6247,3448053,D2 DIGITAL BY DESIGN LTD#1,11/06/2015,52200,Contracted Services,Adult Service,Drugs Pooled Treatment Budget,"10,000.00"
6247,3445992,D2 DIGITAL BY DESIGN LTD#1,11/06/2015,45401,Computer Maintenance,Development & Regeneration,DR67410 - Libraries Info. Systems,500.00
1115807,3459114,DALEFIELD SURGERY#P82010,29/06/2015,52200,Contracted Services,Public Health,PH04460 - PH Commissioning,"2,148.00"
1115807,3458953,DALEFIELD SURGERY#P82010,29/06/2015,52200,Contracted Services,Public Health,Primary Care,716.00
302830,3446026,DATASPACE,11/06/2015,48506,Records Storage,Chief Executives,CX11000 - Legal Services Trading Account,782.50
302830,3454698,DATASPACE,22/06/2015,48506,Records Storage,Childrens Services,Business Support  Children Social Care,791.61
2878313,3442408,David I Hillier Limited,04/06/2015,Z1051,Work in Progress Additions,Chief Executives,CXZ9999 - Chief Execs Balance Sheet,"1,620.00"
2878313,3450975,David I Hillier Limited,18/06/2015,Z1051,Work in Progress Additions,Chief Executives,CXZ9999 - Chief Execs Balance Sheet,"1,485.00"
2852305,3444252,David Phillips Furniture Ltd,25/06/2015,40150,Office Furniture Purchase,Housing GRF,Furnished Tenancies,561.74
225897,3458954,DEANE CLINIC HEALTHCARE LIMITED#P82660,29/06/2015,52200,Contracted Services,Public Health,Primary Care,548.00
225897,3459115,DEANE CLINIC HEALTHCARE LIMITED#P82660,29/06/2015,52200,Contracted Services,Public Health,PH04460 - PH Commissioning,900.00
139082,3446845,DEANE PHARMACY#WILKINSON PHARMACY LTD,11/06/2015,52200,Contracted Services,Public Health,PH03150 - Tobacco Control,559.88
139082,3450033,DEANE PHARMACY#WILKINSON PHARMACY LTD,15/06/2015,52200,Contracted Services,Adult Service,Drugs Pooled Treatment Budget,734.20
139082,3449710,DEANE PHARMACY#WILKINSON PHARMACY LTD,15/06/2015,52200,Contracted Services,Adult Service,Drugs Pooled Treatment Budget,510.40
1645336,3442143,DEFENSIVE DRIVER TRAINING LTD,04/06/2015,19100,Training Exps Tuition Fees,Environmental Services,Transport Support Service,"1,481.25"
1645336,3442140,DEFENSIVE DRIVER TRAINING LTD,04/06/2015,19100,Training Exps Tuition Fees,Environmental Services,Transport Support Service,745.00
1645336,3442137,DEFENSIVE DRIVER TRAINING LTD,04/06/2015,19100,Training Exps Tuition Fees,Environmental Services,Transport Support Service,745.00
1645336,3446796,DEFENSIVE DRIVER TRAINING LTD,11/06/2015,19100,Training Exps Tuition Fees,Environmental Services,Transport Support Service,"1,481.25"
1645336,3455902,DEFENSIVE DRIVER TRAINING LTD,22/06/2015,19100,Training Exps Tuition Fees,Environmental Services,Transport Support Service,736.25
34596,3447130,DEMENTIA SUPPORT GROUP,11/06/2015,52200,Contracted Services,Adult Service,OA  Carers Grant,"3,333.33"
2028315,3442845,Department of Energy and Climate Change#DECC,04/06/2015,56103,56103 - Climate Change Levy,Chief Executives,CX44005 - CRC - Carbon Trading,"280,220.50"
398011,3458434,DESIGN SURVEYING PARTNERSHIP LTD,25/06/2015,Z5212,Z5212 - Debit Bal Holding A/c Income,Property Services,PSZ8415 - Bolton at Home Holding Account,500.00
398011,3458427,DESIGN SURVEYING PARTNERSHIP LTD,25/06/2015,Z5212,Z5212 - Debit Bal Holding A/c Income,Property Services,PSZ8415 - Bolton at Home Holding Account,500.00
398011,3458432,DESIGN SURVEYING PARTNERSHIP LTD,25/06/2015,Z5212,Z5212 - Debit Bal Holding A/c Income,Property Services,PSZ8415 - Bolton at Home Holding Account,500.00
2991,3455884,DESTITUTE ANIMAL SHELTER,22/06/2015,52200,Contracted Services,Environmental Services,Activities and Operations,703.50
2695324,3445827,Develop Training Ltd,11/06/2015,19103,Training Exp  In House,Environmental Services,Highway Management,"1,364.00"
192525,3450034,DIAMOND HEALTHCARE (NW) LTD#DERBY STREET PHARMACY,15/06/2015,52200,Contracted Services,Adult Service,Drugs Pooled Treatment Budget,"1,245.00"
192525,3457663,DIAMOND HEALTHCARE (NW) LTD#DERBY STREET PHARMACY,25/06/2015,52200,Contracted Services,Adult Service,Drugs Pooled Treatment Budget,"1,584.70"
2218304,3450347,DISCLOSURE AND BARRING SERVICE,15/06/2015,19400,Disclosure Monitoring,Chief Executives,CX21005 - HR - Corporate,"11,044.00"
2218304,3453903,DISCLOSURE AND BARRING SERVICE,18/06/2015,48528,CRB Checks  External,Environmental Services,Regulatory Services,"2,508.00"
241487,3441845,DOUGLAS BANK NURSING HOME#TUDOR BANK LTD,02/06/2015,54302,Nursing Provision,Adult Service,OA  External Provision Residential,"1,906.60"
72100,3441831,DOVE COURT RESIDENTIAL & NURSING HOME,02/06/2015,54301,Residential Provision,Adult Service,OA  External Provision Residential,"1,484.00"
231808,3441843,DOWNSHAW LODGE,02/06/2015,54302,Nursing Provision,Adult Service,OA  External Provision Residential,"1,960.92"
2428294,3459126,DR A KUMAR PRACTICE ACCOUNT#P82030,29/06/2015,52200,Contracted Services,Public Health,PH04460 - PH Commissioning,840.00
2428294,3458965,DR A KUMAR PRACTICE ACCOUNT#P82030,29/06/2015,52200,Contracted Services,Public Health,Primary Care,526.00
98,3458974,DR BERNARD NEWGROSH#P82633,29/06/2015,52200,Contracted Services,Public Health,Primary Care,620.00
35811,3459128,DR LANCASHIRE & PARTNERS#P82016,29/06/2015,52200,Contracted Services,Public Health,PH04460 - PH Commissioning,684.00
2164296,3459132,DR LOWE & PARTNERS#P82011,29/06/2015,52200,Contracted Services,Public Health,PH04460 - PH Commissioning,"2,172.00"
2164296,3458971,DR LOWE & PARTNERS#P82011,29/06/2015,52200,Contracted Services,Public Health,Primary Care,524.00
2428299,3459133,DR LYON & PARTNERS#P82012,29/06/2015,52200,Contracted Services,Public Health,PH04460 - PH Commissioning,"3,192.00"
2428299,3458972,DR LYON & PARTNERS#P82012,29/06/2015,52200,Contracted Services,Public Health,Primary Care,772.00
2215296,3458981,DR N SIDDA#P82625,29/06/2015,52200,Contracted Services,Public Health,Primary Care,"1,400.00"
151164,3459121,DR P K JAIN#P82036,29/06/2015,52200,Contracted Services,Public Health,PH04460 - PH Commissioning,792.00
151164,3458960,DR P K JAIN#P82036,29/06/2015,52200,Contracted Services,Public Health,Primary Care,924.00
2789324,3459151,Dr Uddin & Partners#P82626,29/06/2015,52200,Contracted Services,Public Health,PH04460 - PH Commissioning,528.00
199321,3459149,DR WALMSLEY & PARTNERS,29/06/2015,52200,Contracted Services,Public Health,PH04460 - PH Commissioning,"1,416.00"
199321,3458989,DR WALMSLEY & PARTNERS,29/06/2015,52200,Contracted Services,Public Health,Primary Care,696.00
3174,3459131,DR Y LOOMBA#P82013,29/06/2015,52200,Contracted Services,Public Health,PH04460 - PH Commissioning,"1,584.00"
24798,3442334,DRAIN DOCTOR PLUMBING DRAINAGE INVESTIGATIONS & SOLUTIONS NW LTD,04/06/2015,Z6008,Expense AP Accrual,Bolton MBC Balance Sheet,Bolton MBC Balance Sheet,"1,405.00"
24798,3453640,DRAIN DOCTOR PLUMBING DRAINAGE INVESTIGATIONS & SOLUTIONS NW LTD,18/06/2015,Z6008,Expense AP Accrual,Bolton MBC Balance Sheet,Bolton MBC Balance Sheet,630.00
24798,3453642,DRAIN DOCTOR PLUMBING DRAINAGE INVESTIGATIONS & SOLUTIONS NW LTD,18/06/2015,Z6008,Expense AP Accrual,Bolton MBC Balance Sheet,Bolton MBC Balance Sheet,687.07
2427304,3458944,DRS AGARWAL CHARIDEMOU & GEORGE#P82037,29/06/2015,52200,Contracted Services,Public Health,Primary Care,618.00
2427317,3459120,DRS HENDY & RIZWAN#P82022,29/06/2015,52200,Contracted Services,Public Health,PH04460 - PH Commissioning,720.00
2427321,3459122,DRS JEYAM & JESUDAS#P82029,29/06/2015,52200,Contracted Services,Public Health,PH04460 - PH Commissioning,"1,560.00"
3042,3459125,DRS KIRBY PAGE MCMILLEN & TOMKINSON & WALL#P82021,29/06/2015,52200,Contracted Services,Public Health,PH04460 - PH Commissioning,684.00
3042,3458964,DRS KIRBY PAGE MCMILLEN & TOMKINSON & WALL#P82021,29/06/2015,52200,Contracted Services,Public Health,Primary Care,540.00
16070,3459129,DRS LITTLEWOOD GREENHALGH COUNSELL MIRZA BOODHUN#P82002,29/06/2015,52200,Contracted Services,Public Health,PH04460 - PH Commissioning,"1,212.00"
16070,3458968,DRS LITTLEWOOD GREENHALGH COUNSELL MIRZA BOODHUN#P82002,29/06/2015,52200,Contracted Services,Public Health,Primary Care,"1,026.00"
2428297,3459130,DRS LIVERSEDGE MCCURDIE WONG#P82643,29/06/2015,52200,Contracted Services,Public Health,PH04460 - PH Commissioning,"1,824.00"
2428297,3458969,DRS LIVERSEDGE MCCURDIE WONG#P82643,29/06/2015,52200,Contracted Services,Public Health,Primary Care,828.00
3171,3459147,DRS SYMES SYMES HUSSAIN & HALL#P82005,29/06/2015,52200,Contracted Services,Public Health,PH04460 - PH Commissioning,"1,272.00"
6265,3447103,DTZ DEBENHAM TIE LEUNG,11/06/2015,48510,Consultancy Fees,Chief Executives,CX42001 - Castle Hill Training Rooms,"3,395.00"
6270,3442632,DUVAL SECURITY,04/06/2015,44401,Other Security Expenses,Environmental Services,Markets  Rent Account,"2,267.51"
6270,3446687,DUVAL SECURITY,11/06/2015,44401,Other Security Expenses,Environmental Services,Markets  Rent Account,589.92
6270,3446688,DUVAL SECURITY,11/06/2015,44401,Other Security Expenses,Environmental Services,Markets  Rent Account,"2,316.67"
3209,3442205,E N COXHEAD LTD,04/06/2015,40609,Horticultural Materials,Environmental Services,Heaton Fold,885.70
3209,3443035,E N COXHEAD LTD,04/06/2015,40609,Horticultural Materials,Environmental Services,Heaton Fold,"1,764.00"
3209,3446715,E N COXHEAD LTD,18/06/2015,40609,Horticultural Materials,Environmental Services,Heaton Fold,"1,268.64"
3209,3446968,E N COXHEAD LTD,18/06/2015,40609,Horticultural Materials,Environmental Services,Heaton Fold,800.70
2011291,3454020,Eagley School House Nursery 2,22/06/2015,44054,Other Clients Services,Childrens Services,Safeguarding Team North,537.50
9564,3441816,ECCLESHOLME,02/06/2015,54301,Residential Provision,Adult Service,OA  External Provision Residential,"1,615.32"
798634,3443445,EDUCATION SUPPORT PROFESSIONALS,08/06/2015,53000,Private Contracted Services,Childrens Services,Admin IT (Schools),"2,902.50"
798634,3458054,EDUCATION SUPPORT PROFESSIONALS,25/06/2015,53000,Private Contracted Services,Childrens Services,Admin IT (Schools),"1,455.00"
1576374,3459521,EDUFOCUS LIMITED,29/06/2015,47200,General Subscriptions,Chief Executives,CX21302 - Health and Safety,"4,999.00"
6286,3453898,EGBERT H TAYLOR & CO LTD,18/06/2015,Z1051,Work in Progress Additions,Environmental Services,Environmental Services Balance sheet,"2,787.80"
2730306,3452692,REDACTED - PERSONAL DATA,18/06/2015,48509,Other Fees,Public Health,Get Active,576.00
40924,3457729,ELECTORAL REFORM SERVICES,25/06/2015,79000,Election Expenses,Chief Executives,CX13101 - Elections,"5,625.07"
40924,3457950,ELECTORAL REFORM SERVICES,25/06/2015,79000,Election Expenses,Chief Executives,CX13101 - Elections,"62,822.53"
40924,3458067,ELECTORAL REFORM SERVICES,25/06/2015,79000,Election Expenses,Chief Executives,CX13101 - Elections,"49,202.17"
40924,3455966,ELECTORAL REFORM SERVICES,25/06/2015,79000,Election Expenses,Chief Executives,CX13101 - Elections,"1,680.27"
6635,3441794,ELLERSHAW HOUSE LTD,02/06/2015,54301,Residential Provision,Adult Service,LD Purchaser Residential Care,"9,098.36"
186816,3441839,ELLERSLIE COURT#VITALISE,02/06/2015,54301,Residential Provision,Adult Service,PD Purchaser Residential Care,"2,722.32"
125928,3458090,EMINOX LTD,25/06/2015,40601,General Materials,Environmental Services,Transport Support Service,540.00
125928,3458089,EMINOX LTD,25/06/2015,40601,General Materials,Environmental Services,Transport Support Service,550.00
8412,3447377,EMO OIL LTD#WAS SHELL OIL,11/06/2015,Z6007,Z6007 - Inventory AP Accrual,Highways,Stores,"1,825.73"
56251,3442606,ENFORCE TECHNOLOGY LIMITED,04/06/2015,40100,Operational Equipment Purchase,Childrens Services,Admin IT (Schools),"4,207.50"
2775304,3457701,Eric Wright Civil Engineering Ltd,25/06/2015,Z1051,Work in Progress Additions,Highways,Stores,"42,665.67"
2315304,3443785,EUKHOST LTD,08/06/2015,45400,Computer Purchase,Chief Executives,CX59501 - Web Team,"1,430.83"
2694323,3458291,Event Technical Support Limited,25/06/2015,48203,Marketing,Chief Executives,CX24002 - Marketing - Holding Code,"3,111.07"
14818,3454061,EXPERIAN LIMITED#T/A FOOTFALL LTD,22/06/2015,48631,Office Expenses  General,Chief Executives,CX57500 - Council Tax,"3,356.00"
1330970,3464693,EXPRESS ELECTRICAL DISTRIBUTORS LTD#NEW COMPANY,29/06/2015,40610,Direct Materials,Environmental Services,Lighting / Stores Works Budget,990.00
2526502,3442322,Exterion Media (UK) Limited,04/06/2015,48203,Marketing,Chief Executives,CX24002 - Marketing - Holding Code,"1,871.00"
2610466,3445815,F Brewer & Son Ltd,08/06/2015,52200,Contracted Services,Environmental Services,Activities and Operations,882.00
3376,3445703,F R SHARROCK LTD#SHARROCKS,08/06/2015,40100,Operational Equipment Purchase,Environmental Services,Activities and Operations,"4,003.00"
3376,3446043,F R SHARROCK LTD#SHARROCKS,11/06/2015,40101,Operational Equipment Maint,Environmental Services,Activities and Operations,"1,488.67"
3376,3459427,F R SHARROCK LTD#SHARROCKS,29/06/2015,40102,Operational Equipment Rental,Environmental Services,Activities and Operations,"7,397.09"
2822422,3447182,Fast Hire & Sales Ltd,11/06/2015,Z6008,Expense AP Accrual,Bolton MBC Balance Sheet,Bolton MBC Balance Sheet,520.00
1555984,3458104,FAUN ZOELLER (UK) LTD,25/06/2015,31305,Vehicle Servicing,Environmental Services,Transport Support Service,959.55
75884,3443795,FIRST CALL COMMUNITY SYSTEMS LTD T/A SURECARE,08/06/2015,52200,Contracted Services,Adult Service,OA  Home Care Services external provision,"30,418.18"
3430,3442189,FIRST MANCHESTER LTD & FIRST TRANSFORMING TRAVEL,04/06/2015,34401,Clients  Bus Fares,Development & Regeneration,The Work Programme,598.50
3430,3458566,FIRST MANCHESTER LTD & FIRST TRANSFORMING TRAVEL,25/06/2015,34401,Clients  Bus Fares,Childrens Services,Contact & Direct Work,"1,330.00"
261782,3445989,FORTALICE LTD#BOLTON WOMENS AID,11/06/2015,55700,Grant Funded Expenditure,Environmental Services,Community Safety,"2,124.00"
2278295,3441876,FOSSE BANK HOUSE,02/06/2015,54301,Residential Provision,Adult Service,MH Residential External Provision,"4,545.88"
6320,3441751,FOUR SEASONS NURSING HOME,02/06/2015,Z6011,Z6011 - CR Bal Hold A/c Exp,Adult Service,ADZ0802 - Health - Funded Nursing Care,"7,706.36"
6320,3441751,FOUR SEASONS NURSING HOME,02/06/2015,54301,Residential Provision,Adult Service,OA  External Provision Residential,"28,000.36"
6320,3441751,FOUR SEASONS NURSING HOME,02/06/2015,54302,Nursing Provision,Adult Service,OA  External Provision Residential,"24,893.35"
6320,3441751,FOUR SEASONS NURSING HOME,02/06/2015,54301,Residential Provision,Adult Service,PD Purchaser Residential Care,"4,941.24"
3488,3442282,FREIGHT TRANSPORT ASSOC LTD,04/06/2015,31304,Vehicle Licences,Environmental Services,Transport Support Service,"1,168.00"
2727320,3445795,Funnelback UK Limited,08/06/2015,45430,Computer Software,Chief Executives,CX59501 - Web Team,"1,000.00"
23683,3456018,GALLERY SYSTEMS,25/06/2015,45401,Computer Maintenance,Development & Regeneration,DR67410 - Libraries Info. Systems,"4,200.00"
2365293,3458956,GARNET FOLD PRACTICE#P82009,29/06/2015,52200,Contracted Services,Public Health,Primary Care,626.00
155974,3447412,GEM ARBORICULTURAL SERVICES,11/06/2015,52200,Contracted Services,Environmental Services,Assets,"2,440.00"
3561,3454204,GEORGE HOUSE TRUST,22/06/2015,52200,Contracted Services,Public Health,PH04460 - PH Commissioning,"1,084.58"
3561,3454202,GEORGE HOUSE TRUST,22/06/2015,52200,Contracted Services,Public Health,PH04460 - PH Commissioning,"1,084.58"
3561,3454203,GEORGE HOUSE TRUST,22/06/2015,52200,Contracted Services,Public Health,PH04460 - PH Commissioning,"1,084.58"
1779291,3441860,GHS BROOKDALE,02/06/2015,54301,Residential Provision,Adult Service,OA  External Provision Residential,"1,683.76"
2681366,3446035,Giles Maynard-Connor,11/06/2015,48502,Legal Fees,Chief Executives,CX43005 - Estates & Property Management,"2,400.00"
6338,3441752,GLENBANK CARE HOME LTD,02/06/2015,Z6011,Z6011 - CR Bal Hold A/c Exp,Adult Service,ADZ1201 - 3rd Party Social Care Contributions,"1,211.25"
6338,3441753,GLENBANK CARE HOME LTD,02/06/2015,Z6011,Z6011 - CR Bal Hold A/c Exp,Adult Service,ADZ1201 - 3rd Party Social Care Contributions,"1,269.04"
6338,3441753,GLENBANK CARE HOME LTD,02/06/2015,54301,Residential Provision,Adult Service,OA  External Provision Residential,"22,799.44"
6242,3441791,GLENHOMES REST HOME,02/06/2015,54301,Residential Provision,Adult Service,OA  External Provision Residential,"11,857.67"
2212300,3441871,GLENROYD CARE HOME,02/06/2015,54302,Nursing Provision,Adult Service,OA  External Provision Residential,"1,674.96"
3603,3446078,G-MAP SERVICES LTD,11/06/2015,52000,Vol Assoc Grants  General,Childrens Services,Res Serv Agency Placements,"3,025.00"
2345332,3443695,GMP DRIVERCARE LTD,08/06/2015,33206,Vehicle Leasing,Public Health,Food Action Bolton,"2,620.32"
186916,3442200,GMS SERVICES LIMITED,04/06/2015,Z6007,Z6007 - Inventory AP Accrual,Property Services,EAM Holding,"4,920.00"
186916,3442260,GMS SERVICES LIMITED,08/06/2015,Z6007,Z6007 - Inventory AP Accrual,Property Services,EAM Holding,"1,350.80"
186916,3458124,GMS SERVICES LIMITED,25/06/2015,Z6008,Expense AP Accrual,Bolton MBC Balance Sheet,Bolton MBC Balance Sheet,934.56
170064,3442423,GORDON ALSTON#ALSTON ASSOCIATES,04/06/2015,52200,Contracted Services,Childrens Services,CH84324 - SIP’s,"2,970.00"
6342,3441754,GORSEY CLOUGH NURSING HOME LTD,02/06/2015,54301,Residential Provision,Adult Service,OA  External Provision Residential,"1,683.76"
6342,3441754,GORSEY CLOUGH NURSING HOME LTD,02/06/2015,54302,Nursing Provision,Adult Service,OA  External Provision Residential,"5,051.28"
2287325,3443678,GRAHAM ASSET MANAGEMENT LTD,08/06/2015,Z6008,Expense AP Accrual,Bolton MBC Balance Sheet,Bolton MBC Balance Sheet,"1,989.00"
2287325,3444816,GRAHAM ASSET MANAGEMENT LTD,08/06/2015,Z6008,Expense AP Accrual,Bolton MBC Balance Sheet,Bolton MBC Balance Sheet,"1,230.88"
2287325,3447090,GRAHAM ASSET MANAGEMENT LTD,11/06/2015,20104,Electrical Inspections,Adult Service,LD Provider  Supported Housing,"1,706.22"
2287325,3446088,GRAHAM ASSET MANAGEMENT LTD,11/06/2015,Z6008,Expense AP Accrual,Bolton MBC Balance Sheet,Bolton MBC Balance Sheet,503.00
2287325,3447047,GRAHAM ASSET MANAGEMENT LTD,11/06/2015,Z6007,Z6007 - Inventory AP Accrual,Property Services,EAM Holding,"2,861.17"
2287325,3453237,GRAHAM ASSET MANAGEMENT LTD,18/06/2015,Z6008,Expense AP Accrual,Bolton MBC Balance Sheet,Bolton MBC Balance Sheet,"1,188.00"
2287325,3444673,GRAHAM ASSET MANAGEMENT LTD,22/06/2015,Z6008,Expense AP Accrual,Bolton MBC Balance Sheet,Bolton MBC Balance Sheet,"1,496.00"
2287325,3459515,GRAHAM ASSET MANAGEMENT LTD,29/06/2015,Z6008,Expense AP Accrual,Bolton MBC Balance Sheet,Bolton MBC Balance Sheet,649.00
1845293,3454857,REDACTED - PERSONAL DATA,22/06/2015,48502,Legal Fees,Childrens Services,Management Team,500.00
1845293,3454860,REDACTED - PERSONAL DATA,22/06/2015,48502,Legal Fees,Childrens Services,Management Team,"1,900.00"
6344,3441755,GRANGE LEA RESIDENTIAL CARE HOME LTD,02/06/2015,54301,Residential Provision,Adult Service,OA  External Provision Residential,"3,000.04"
6344,3441756,GRANGE LEA RESIDENTIAL CARE HOME LTD,02/06/2015,54301,Residential Provision,Adult Service,OA  External Provision Residential,"29,357.78"
178961,3447045,GREAT PLACES HOUSING ASSOCIATION,11/06/2015,52210,Contracted Services  Rental Voids,Adult Service,LD Purchaser Supported Housing,502.72
1854290,3445733,GREENHALGH KERR,08/06/2015,48509,Other Fees,Chief Executives,CX57800 - Non-Domestic Rating,"1,833.66"
1854290,3445731,GREENHALGH KERR,08/06/2015,48509,Other Fees,Chief Executives,CX57800 - Non-Domestic Rating,585.00
2194290,3441869,GREENLANDS RESIDENTIAL HOME LTD,02/06/2015,54301,Residential Provision,Adult Service,OA  External Provision Residential,"26,691.00"
2345384,3441883,GROVE HOUSE,02/06/2015,54301,Residential Provision,Adult Service,OA  External Provision Residential,"4,148.20"
2248301,3442325,GTCREATE LIMITED,18/06/2015,48203,Marketing,Chief Executives,CX24002 - Marketing - Holding Code,980.00
2884299,3450902,Gujrat Cricket Club,15/06/2015,55700,Grant Funded Expenditure,Environmental Services,Neighbourhood Management Programme,500.00
3674,3442609,H & C (Plant Hire) Ltd,04/06/2015,Z6008,Expense AP Accrual,Bolton MBC Balance Sheet,Bolton MBC Balance Sheet,684.50
3674,3448033,H & C (Plant Hire) Ltd,11/06/2015,20100,Day To Day Maintenance,Environmental Services,Depots,966.00
7899,3462982,H W AUDIO LTD T/AS HW MUSIC MEGASTORE,29/06/2015,Z1051,Work in Progress Additions,Public Health,PHZ9999 - Public Health Balance Sheet,"4,166.67"
38584,3441826,HALF ACRE CARE HOME,02/06/2015,54301,Residential Provision,Adult Service,OA  External Provision Residential,"6,735.04"
760627,3450068,HALLIWELL LATE NIGHT PHARMACY,15/06/2015,52200,Contracted Services,Adult Service,Drugs Pooled Treatment Budget,"1,229.70"
760627,3457664,HALLIWELL LATE NIGHT PHARMACY,25/06/2015,52200,Contracted Services,Adult Service,Drugs Pooled Treatment Budget,"1,207.10"
10419,3456091,HALTON CONTAINER SERVICES LTD,25/06/2015,53000,Private Contracted Services,Environmental Services,Waste,806.20
10419,3456705,HALTON CONTAINER SERVICES LTD,25/06/2015,53000,Private Contracted Services,Environmental Services,Trade Waste,"5,415.00"
10419,3456704,HALTON CONTAINER SERVICES LTD,25/06/2015,53000,Private Contracted Services,Environmental Services,Trade Waste,"4,720.20"
10419,3456093,HALTON CONTAINER SERVICES LTD,25/06/2015,53000,Private Contracted Services,Environmental Services,Waste,540.50
3715,3443672,HANOVER HOUSING ASSOCIATION#2,08/06/2015,52200,Contracted Services,Adult Service,Supporting People  Capital Financing,"6,644.52"
2255291,3447459,HAPPY MUSIC LIMITED,11/06/2015,48517,Fees/Expenses Schools,Childrens Services,Music ServMusic Service general,"1,470.00"
148023,3441837,HARBOUR CLOSE,02/06/2015,54301,Residential Provision,Adult Service,PD Purchaser Residential Care,"3,877.88"
6360,3442578,HAROLD COOPER,04/06/2015,20100,Day To Day Maintenance,Environmental Services,Markets  Rent Account,967.12
2894300,3450008,Harvey House Social Enterprises Ltd,15/06/2015,54301,Residential Provision,Adult Service,Drugs Pooled Treatment Budget,"4,880.00"
2894300,3462967,Harvey House Social Enterprises Ltd,29/06/2015,54301,Residential Provision,Adult Service,Drugs Pooled Treatment Budget,"5,124.00"
867656,3444248,HAYS SPECIALIST RECRUITMENT,08/06/2015,53102,Agency Staff  Other,Housing GRF,Access & Advice Caravan Sites,532.80
867656,3444248,HAYS SPECIALIST RECRUITMENT,08/06/2015,53102,Agency Staff  Other,Adult Service,ACM  North,714.10
867656,3444248,HAYS SPECIALIST RECRUITMENT,08/06/2015,53102,Agency Staff  Other,Adult Service,ACM  South,759.28
867656,3444248,HAYS SPECIALIST RECRUITMENT,08/06/2015,53102,Agency Staff  Other,Environmental Services,Activities and Operations,"9,899.45"
867656,3444248,HAYS SPECIALIST RECRUITMENT,08/06/2015,53102,Agency Staff  Other,Adult Service,AD23155 - MH Early Intervention Team,"1,022.29"
867656,3444248,HAYS SPECIALIST RECRUITMENT,08/06/2015,53102,Agency Staff  Other,Adult Service,AD23156 - MH Crisis Resolution Team,610.06
867656,3444248,HAYS SPECIALIST RECRUITMENT,08/06/2015,53102,Agency Staff  Other,Adult Service,AD41401 - Darley Court,"4,186.69"
867656,3444248,HAYS SPECIALIST RECRUITMENT,08/06/2015,53102,Agency Staff  Other,Adult Service,AD41402 - Laburnum Lodge,"1,471.73"
867656,3444248,HAYS SPECIALIST RECRUITMENT,08/06/2015,53102,Agency Staff  Other,Adult Service,AD41403 - Reablement,691.56
867656,3444248,HAYS SPECIALIST RECRUITMENT,08/06/2015,53102,Agency Staff  Other,Environmental Services,Bereavement Services,"3,440.56"
867656,3444248,HAYS SPECIALIST RECRUITMENT,08/06/2015,53102,Agency Staff  Other,Childrens Services,Business Support    South District,"2,693.05"
867656,3444248,HAYS SPECIALIST RECRUITMENT,08/06/2015,53102,Agency Staff  Other,Childrens Services,Business Support    West District,"2,086.43"
867656,3444248,HAYS SPECIALIST RECRUITMENT,08/06/2015,53102,Agency Staff  Other,Childrens Services,Business Support  Children Social Care,"2,823.29"
867656,3444248,HAYS SPECIALIST RECRUITMENT,08/06/2015,53102,Agency Staff  Other,Childrens Services,Business Support  Directorate,"1,647.83"
867656,3444248,HAYS SPECIALIST RECRUITMENT,08/06/2015,53102,Agency Staff  Other,Childrens Services,Business Support  Education Services,"1,159.56"
867656,3444248,HAYS SPECIALIST RECRUITMENT,08/06/2015,53102,Agency Staff  Other,Childrens Services,CH41006 - Business Support - Provider Services,"1,832.39"
867656,3444248,HAYS SPECIALIST RECRUITMENT,08/06/2015,53102,Agency Staff  Other,Childrens Services,CH43661 - FIAT,774.27
867656,3444248,HAYS SPECIALIST RECRUITMENT,08/06/2015,53102,Agency Staff  Other,Childrens Services,CH43662 - Direct Payments,966.54
867656,3444248,HAYS SPECIALIST RECRUITMENT,08/06/2015,53102,Agency Staff  Other,Childrens Services,CH43692 - Integrated Commissioning,558.57
867656,3444248,HAYS SPECIALIST RECRUITMENT,08/06/2015,53102,Agency Staff  Other,Childrens Services,Child Prot CAHMS Grant,872.09
867656,3444248,HAYS SPECIALIST RECRUITMENT,08/06/2015,53102,Agency Staff  Other,Childrens Services,Children and Family Supp Svs North,866.70
867656,3444248,HAYS SPECIALIST RECRUITMENT,08/06/2015,53102,Agency Staff  Other,Childrens Services,Children and Family Supp Svs South,"2,863.64"
867656,3444248,HAYS SPECIALIST RECRUITMENT,08/06/2015,53102,Agency Staff  Other,Childrens Services,Children and Family Supp Svs West,"1,910.99"
867656,3444248,HAYS SPECIALIST RECRUITMENT,08/06/2015,53102,Agency Staff  Other,Environmental Services,Civic Cleaning,"1,429.78"
867656,3444248,HAYS SPECIALIST RECRUITMENT,08/06/2015,53102,Agency Staff  Other,Childrens Services,Conference and Reviewing,"1,449.44"
867656,3444248,HAYS SPECIALIST RECRUITMENT,08/06/2015,53102,Agency Staff  Other,Chief Executives,CX11000 - Legal Services Trading Account,"7,454.33"
867656,3444248,HAYS SPECIALIST RECRUITMENT,08/06/2015,53102,Agency Staff  Other,Chief Executives,CX21300 - Occupational Health Unit,740.39
867656,3444248,HAYS SPECIALIST RECRUITMENT,08/06/2015,53102,Agency Staff  Other,Chief Executives,CX43004 - Corporate Asset Planning,"1,022.21"
867656,3444248,HAYS SPECIALIST RECRUITMENT,08/06/2015,53102,Agency Staff  Other,Chief Executives,CX43005 - Estates & Property Management,"2,884.67"
867656,3444248,HAYS SPECIALIST RECRUITMENT,08/06/2015,53102,Agency Staff  Other,Chief Executives,CX43013 - CPS Shared Costs,"1,912.83"
867656,3444248,HAYS SPECIALIST RECRUITMENT,08/06/2015,53102,Agency Staff  Other,Chief Executives,CX55300 - Financial Management,"1,357.29"
867656,3444248,HAYS SPECIALIST RECRUITMENT,08/06/2015,53102,Agency Staff  Other,Chief Executives,CX55330 - Accounts Payable Shared Service Centre,928.20
867656,3444248,HAYS SPECIALIST RECRUITMENT,08/06/2015,53102,Agency Staff  Other,Chief Executives,CX55340 - Finance Dept Procurement Team,"1,386.85"
867656,3444248,HAYS SPECIALIST RECRUITMENT,08/06/2015,53102,Agency Staff  Other,Chief Executives,CX57500 - Council Tax,603.24
867656,3444248,HAYS SPECIALIST RECRUITMENT,08/06/2015,53102,Agency Staff  Other,Chief Executives,CX58800 - Corporate I.C.T.,508.90
867656,3444248,HAYS SPECIALIST RECRUITMENT,08/06/2015,53102,Agency Staff  Other,Chief Executives,CX59500 - C.R.M. Operations,"3,344.03"
867656,3444248,HAYS SPECIALIST RECRUITMENT,08/06/2015,53102,Agency Staff  Other,Development & Regeneration,Divisional Development,"2,111.78"
867656,3444248,HAYS SPECIALIST RECRUITMENT,08/06/2015,53102,Agency Staff  Other,Development & Regeneration,DR67201 - Customer Services,742.36
867656,3444248,HAYS SPECIALIST RECRUITMENT,08/06/2015,53102,Agency Staff  Other,Housing GRF,Furnished Tenancies,563.90
867656,3444248,HAYS SPECIALIST RECRUITMENT,08/06/2015,53102,Agency Staff  Other,Housing GRF,Homes for You,"1,209.75"
867656,3444248,HAYS SPECIALIST RECRUITMENT,08/06/2015,53102,Agency Staff  Other,Adult Service,LD Provider  Supported Housing,"1,723.86"
867656,3444248,HAYS SPECIALIST RECRUITMENT,08/06/2015,53102,Agency Staff  Other,Environmental Services,Markets  Rent Account,739.79
867656,3444248,HAYS SPECIALIST RECRUITMENT,08/06/2015,53102,Agency Staff  Other,Housing GRF,Mediation,940.48
867656,3444248,HAYS SPECIALIST RECRUITMENT,08/06/2015,53102,Agency Staff  Other,Adult Service,MH North Fieldwork Team,"3,704.64"
867656,3444248,HAYS SPECIALIST RECRUITMENT,08/06/2015,53102,Agency Staff  Other,Adult Service,OA  Laburnum Lodge  Residential,654.29
867656,3444248,HAYS SPECIALIST RECRUITMENT,08/06/2015,53102,Agency Staff  Other,Childrens Services,Quality & inclusion,"1,968.10"
867656,3444248,HAYS SPECIALIST RECRUITMENT,08/06/2015,53102,Agency Staff  Other,Childrens Services,Referral & Assmt Team North,848.32
867656,3444248,HAYS SPECIALIST RECRUITMENT,08/06/2015,53102,Agency Staff  Other,Childrens Services,Safeguarding Team North,"1,736.58"
867656,3444248,HAYS SPECIALIST RECRUITMENT,08/06/2015,53102,Agency Staff  Other,Childrens Services,Safeguarding Team South,821.98
867656,3444248,HAYS SPECIALIST RECRUITMENT,08/06/2015,53102,Agency Staff  Other,Childrens Services,Safeguarding Team West,"1,858.14"
867656,3444248,HAYS SPECIALIST RECRUITMENT,08/06/2015,53102,Agency Staff  Other,Environmental Services,Strategy & Service Development,885.92
867656,3444248,HAYS SPECIALIST RECRUITMENT,08/06/2015,53102,Agency Staff  Other,Childrens Services,Targeted Youth Support,"1,373.92"
867656,3444248,HAYS SPECIALIST RECRUITMENT,08/06/2015,53102,Agency Staff  Other,Environmental Services,Waste,"15,925.92"
867656,3444248,HAYS SPECIALIST RECRUITMENT,08/06/2015,53102,Agency Staff  Other,Childrens Services,Youth Offending Team,"1,867.60"
867656,3449497,HAYS SPECIALIST RECRUITMENT,15/06/2015,53102,Agency Staff  Other,Housing GRF,Access & Advice Caravan Sites,650.00
867656,3449497,HAYS SPECIALIST RECRUITMENT,15/06/2015,53102,Agency Staff  Other,Adult Service,ACM  North,885.11
867656,3449497,HAYS SPECIALIST RECRUITMENT,15/06/2015,53102,Agency Staff  Other,Adult Service,ACM  South,922.69
867656,3449497,HAYS SPECIALIST RECRUITMENT,15/06/2015,53102,Agency Staff  Other,Environmental Services,Activities and Operations,"16,021.85"
867656,3449497,HAYS SPECIALIST RECRUITMENT,15/06/2015,53102,Agency Staff  Other,Adult Service,AD23155 - MH Early Intervention Team,863.43
867656,3449497,HAYS SPECIALIST RECRUITMENT,15/06/2015,53102,Agency Staff  Other,Adult Service,AD23156 - MH Crisis Resolution Team,623.04
867656,3449497,HAYS SPECIALIST RECRUITMENT,15/06/2015,53102,Agency Staff  Other,Adult Service,AD41401 - Darley Court,"7,825.80"
867656,3449497,HAYS SPECIALIST RECRUITMENT,15/06/2015,53102,Agency Staff  Other,Adult Service,AD41402 - Laburnum Lodge,"2,395.87"
867656,3449497,HAYS SPECIALIST RECRUITMENT,15/06/2015,53102,Agency Staff  Other,Adult Service,AD41403 - Reablement,810.00
867656,3449497,HAYS SPECIALIST RECRUITMENT,15/06/2015,53102,Agency Staff  Other,Environmental Services,Bereavement Services,"1,282.35"
867656,3449497,HAYS SPECIALIST RECRUITMENT,15/06/2015,53102,Agency Staff  Other,Childrens Services,Business Support    South District,"3,093.98"
867656,3449497,HAYS SPECIALIST RECRUITMENT,15/06/2015,53102,Agency Staff  Other,Childrens Services,Business Support    West District,"2,124.17"
867656,3449497,HAYS SPECIALIST RECRUITMENT,15/06/2015,53102,Agency Staff  Other,Childrens Services,Business Support  Children Social Care,"3,086.73"
867656,3449497,HAYS SPECIALIST RECRUITMENT,15/06/2015,53102,Agency Staff  Other,Childrens Services,Business Support  Directorate,"1,054.88"
867656,3449497,HAYS SPECIALIST RECRUITMENT,15/06/2015,53102,Agency Staff  Other,Childrens Services,Business Support  Education Services,867.54
867656,3449497,HAYS SPECIALIST RECRUITMENT,15/06/2015,53102,Agency Staff  Other,Childrens Services,CH41006 - Business Support - Provider Services,"1,941.35"
867656,3449497,HAYS SPECIALIST RECRUITMENT,15/06/2015,53102,Agency Staff  Other,Childrens Services,CH43692 - Integrated Commissioning,675.60
867656,3449497,HAYS SPECIALIST RECRUITMENT,15/06/2015,53102,Agency Staff  Other,Childrens Services,Child Prot Leaving Care Team,960.14
867656,3449497,HAYS SPECIALIST RECRUITMENT,15/06/2015,53102,Agency Staff  Other,Childrens Services,Children and Family Supp Svs North,"1,649.18"
867656,3449497,HAYS SPECIALIST RECRUITMENT,15/06/2015,53102,Agency Staff  Other,Childrens Services,Children and Family Supp Svs South,"3,865.04"
867656,3449497,HAYS SPECIALIST RECRUITMENT,15/06/2015,53102,Agency Staff  Other,Childrens Services,Children and Family Supp Svs West,"2,266.63"
867656,3449497,HAYS SPECIALIST RECRUITMENT,15/06/2015,53102,Agency Staff  Other,Environmental Services,Civic Cleaning,"2,617.43"
867656,3449497,HAYS SPECIALIST RECRUITMENT,15/06/2015,53102,Agency Staff  Other,Chief Executives,CX11000 - Legal Services Trading Account,"9,168.65"
867656,3449497,HAYS SPECIALIST RECRUITMENT,15/06/2015,53102,Agency Staff  Other,Chief Executives,CX21300 - Occupational Health Unit,839.57
867656,3449497,HAYS SPECIALIST RECRUITMENT,15/06/2015,53102,Agency Staff  Other,Chief Executives,CX43005 - Estates & Property Management,"2,267.95"
867656,3449497,HAYS SPECIALIST RECRUITMENT,15/06/2015,53102,Agency Staff  Other,Chief Executives,CX55300 - Financial Management,754.05
867656,3449497,HAYS SPECIALIST RECRUITMENT,15/06/2015,53102,Agency Staff  Other,Chief Executives,CX55340 - Finance Dept Procurement Team,744.23
867656,3449497,HAYS SPECIALIST RECRUITMENT,15/06/2015,53102,Agency Staff  Other,Chief Executives,CX57500 - Council Tax,754.05
867656,3449497,HAYS SPECIALIST RECRUITMENT,15/06/2015,53102,Agency Staff  Other,Chief Executives,CX59500 - C.R.M. Operations,"4,236.18"
867656,3449497,HAYS SPECIALIST RECRUITMENT,15/06/2015,53102,Agency Staff  Other,Childrens Services,Disability Serv Fieldwork Team,"2,065.81"
867656,3449497,HAYS SPECIALIST RECRUITMENT,15/06/2015,53102,Agency Staff  Other,Development & Regeneration,Divisional Development,"1,199.36"
867656,3449497,HAYS SPECIALIST RECRUITMENT,15/06/2015,53102,Agency Staff  Other,Housing GRF,Haulgh project,553.50
867656,3449497,HAYS SPECIALIST RECRUITMENT,15/06/2015,53102,Agency Staff  Other,Adult Service,ICES,730.17
867656,3449497,HAYS SPECIALIST RECRUITMENT,15/06/2015,53102,Agency Staff  Other,Adult Service,LD Provider  Supported Housing,"1,343.97"
867656,3449497,HAYS SPECIALIST RECRUITMENT,15/06/2015,53102,Agency Staff  Other,Environmental Services,Markets  Rent Account,"2,624.66"
867656,3449497,HAYS SPECIALIST RECRUITMENT,15/06/2015,53102,Agency Staff  Other,Housing GRF,Mediation,983.25
867656,3449497,HAYS SPECIALIST RECRUITMENT,15/06/2015,53102,Agency Staff  Other,Adult Service,MH North Fieldwork Team,"1,690.00"
867656,3449497,HAYS SPECIALIST RECRUITMENT,15/06/2015,53102,Agency Staff  Other,Environmental Services,Neighbourhood Management Support,574.58
867656,3449497,HAYS SPECIALIST RECRUITMENT,15/06/2015,53102,Agency Staff  Other,Childrens Services,Referral & Assmt Team North,"1,033.43"
867656,3449497,HAYS SPECIALIST RECRUITMENT,15/06/2015,53102,Agency Staff  Other,Childrens Services,Referral & Assmt Team South,"1,038.31"
867656,3449497,HAYS SPECIALIST RECRUITMENT,15/06/2015,53102,Agency Staff  Other,Childrens Services,Referral & Assmt Team West,824.27
867656,3449497,HAYS SPECIALIST RECRUITMENT,15/06/2015,53102,Agency Staff  Other,Childrens Services,Safeguarding Team North,"2,915.50"
867656,3449497,HAYS SPECIALIST RECRUITMENT,15/06/2015,53102,Agency Staff  Other,Childrens Services,Safeguarding Team South,"1,022.30"
867656,3449497,HAYS SPECIALIST RECRUITMENT,15/06/2015,53102,Agency Staff  Other,Childrens Services,Safeguarding Team West,"2,289.34"
867656,3449497,HAYS SPECIALIST RECRUITMENT,15/06/2015,53102,Agency Staff  Other,Environmental Services,Strategy & Service Development,972.13
867656,3449497,HAYS SPECIALIST RECRUITMENT,15/06/2015,53102,Agency Staff  Other,Childrens Services,Targeted Youth Support,671.64
867656,3449497,HAYS SPECIALIST RECRUITMENT,15/06/2015,53102,Agency Staff  Other,Adult Service,Urgent Care,766.59
867656,3449497,HAYS SPECIALIST RECRUITMENT,15/06/2015,53102,Agency Staff  Other,Environmental Services,Waste,"20,387.37"
867656,3454548,HAYS SPECIALIST RECRUITMENT,22/06/2015,53102,Agency Staff  Other,Housing GRF,Access & Advice Caravan Sites,552.00
867656,3454548,HAYS SPECIALIST RECRUITMENT,22/06/2015,53102,Agency Staff  Other,Adult Service,ACM  North,881.51
867656,3454548,HAYS SPECIALIST RECRUITMENT,22/06/2015,53102,Agency Staff  Other,Environmental Services,Activities and Operations,"1,456.83"
867656,3454548,HAYS SPECIALIST RECRUITMENT,22/06/2015,53102,Agency Staff  Other,Adult Service,AD23155 - MH Early Intervention Team,"1,022.29"
867656,3454548,HAYS SPECIALIST RECRUITMENT,22/06/2015,53102,Agency Staff  Other,Adult Service,AD23156 - MH Crisis Resolution Team,661.98
867656,3454548,HAYS SPECIALIST RECRUITMENT,22/06/2015,53102,Agency Staff  Other,Childrens Services,Admin Info Mgemnt Unit,"5,326.25"
867656,3454548,HAYS SPECIALIST RECRUITMENT,22/06/2015,53102,Agency Staff  Other,Environmental Services,Bereavement Services,"1,371.67"
867656,3454548,HAYS SPECIALIST RECRUITMENT,22/06/2015,53102,Agency Staff  Other,Childrens Services,Business Support    South District,"4,900.98"
867656,3454548,HAYS SPECIALIST RECRUITMENT,22/06/2015,53102,Agency Staff  Other,Childrens Services,Business Support    West District,"2,388.74"
867656,3454548,HAYS SPECIALIST RECRUITMENT,22/06/2015,53102,Agency Staff  Other,Childrens Services,Business Support  Children Social Care,"3,676.59"
867656,3454548,HAYS SPECIALIST RECRUITMENT,22/06/2015,53102,Agency Staff  Other,Childrens Services,Business Support  Directorate,"2,574.90"
867656,3454548,HAYS SPECIALIST RECRUITMENT,22/06/2015,53102,Agency Staff  Other,Childrens Services,Business Support  Education Services,"2,066.99"
867656,3454548,HAYS SPECIALIST RECRUITMENT,22/06/2015,53102,Agency Staff  Other,Childrens Services,CH41006 - Business Support - Provider Services,"4,342.07"
867656,3454548,HAYS SPECIALIST RECRUITMENT,22/06/2015,53102,Agency Staff  Other,Childrens Services,CH43661 - FIAT,"1,229.13"
867656,3454548,HAYS SPECIALIST RECRUITMENT,22/06/2015,53102,Agency Staff  Other,Childrens Services,CH43692 - Integrated Commissioning,675.43
867656,3454548,HAYS SPECIALIST RECRUITMENT,22/06/2015,53102,Agency Staff  Other,Childrens Services,Child Prot CAHMS Grant,"1,519.82"
867656,3454548,HAYS SPECIALIST RECRUITMENT,22/06/2015,53102,Agency Staff  Other,Childrens Services,Children and Family Supp Svs North,659.40
867656,3454548,HAYS SPECIALIST RECRUITMENT,22/06/2015,53102,Agency Staff  Other,Childrens Services,Children and Family Supp Svs South,"1,494.17"
867656,3454548,HAYS SPECIALIST RECRUITMENT,22/06/2015,53102,Agency Staff  Other,Childrens Services,Children and Family Supp Svs West,"1,399.09"
867656,3454548,HAYS SPECIALIST RECRUITMENT,22/06/2015,53102,Agency Staff  Other,Environmental Services,Civic Cleaning,"2,345.90"
867656,3454548,HAYS SPECIALIST RECRUITMENT,22/06/2015,53102,Agency Staff  Other,Childrens Services,Conference and Reviewing,"3,111.99"
867656,3454548,HAYS SPECIALIST RECRUITMENT,22/06/2015,53102,Agency Staff  Other,Chief Executives,CX11000 - Legal Services Trading Account,"8,130.60"
867656,3454548,HAYS SPECIALIST RECRUITMENT,22/06/2015,53102,Agency Staff  Other,Chief Executives,CX21300 - Occupational Health Unit,839.57
867656,3454548,HAYS SPECIALIST RECRUITMENT,22/06/2015,53102,Agency Staff  Other,Chief Executives,CX43002 - Projects,841.65
867656,3454548,HAYS SPECIALIST RECRUITMENT,22/06/2015,53102,Agency Staff  Other,Chief Executives,CX43004 - Corporate Asset Planning,"1,938.08"
867656,3454548,HAYS SPECIALIST RECRUITMENT,22/06/2015,53102,Agency Staff  Other,Chief Executives,CX43013 - CPS Shared Costs,"2,054.78"
867656,3454548,HAYS SPECIALIST RECRUITMENT,22/06/2015,53102,Agency Staff  Other,Chief Executives,CX55300 - Financial Management,754.05
867656,3454548,HAYS SPECIALIST RECRUITMENT,22/06/2015,53102,Agency Staff  Other,Chief Executives,CX55330 - Accounts Payable Shared Service Centre,"1,160.25"
867656,3454548,HAYS SPECIALIST RECRUITMENT,22/06/2015,53102,Agency Staff  Other,Chief Executives,CX55340 - Finance Dept Procurement Team,"2,343.00"
867656,3454548,HAYS SPECIALIST RECRUITMENT,22/06/2015,53102,Agency Staff  Other,Chief Executives,CX57500 - Council Tax,754.05
867656,3454548,HAYS SPECIALIST RECRUITMENT,22/06/2015,53102,Agency Staff  Other,Chief Executives,CX57800 - Non-Domestic Rating,734.86
867656,3454548,HAYS SPECIALIST RECRUITMENT,22/06/2015,53102,Agency Staff  Other,Chief Executives,CX58800 - Corporate I.C.T.,508.89
867656,3454548,HAYS SPECIALIST RECRUITMENT,22/06/2015,53102,Agency Staff  Other,Chief Executives,CX59500 - C.R.M. Operations,"3,999.08"
867656,3454548,HAYS SPECIALIST RECRUITMENT,22/06/2015,53102,Agency Staff  Other,Childrens Services,Disability Serv Fieldwork Team,"2,126.36"
867656,3454548,HAYS SPECIALIST RECRUITMENT,22/06/2015,53102,Agency Staff  Other,Development & Regeneration,Divisional Development,"1,232.37"
867656,3454548,HAYS SPECIALIST RECRUITMENT,22/06/2015,53102,Agency Staff  Other,Development & Regeneration,DR67201 - Customer Services,728.62
867656,3454548,HAYS SPECIALIST RECRUITMENT,22/06/2015,53102,Agency Staff  Other,Housing GRF,Haulgh project,565.90
867656,3454548,HAYS SPECIALIST RECRUITMENT,22/06/2015,53102,Agency Staff  Other,Adult Service,Independent,756.08
867656,3454548,HAYS SPECIALIST RECRUITMENT,22/06/2015,53102,Agency Staff  Other,Environmental Services,Markets  Rent Account,"2,006.16"
867656,3454548,HAYS SPECIALIST RECRUITMENT,22/06/2015,53102,Agency Staff  Other,Housing GRF,Mediation,983.25
867656,3454548,HAYS SPECIALIST RECRUITMENT,22/06/2015,53102,Agency Staff  Other,Environmental Services,Neighbourhood Management Support,740.34
867656,3454548,HAYS SPECIALIST RECRUITMENT,22/06/2015,53102,Agency Staff  Other,Childrens Services,Quality & inclusion,866.56
867656,3454548,HAYS SPECIALIST RECRUITMENT,22/06/2015,53102,Agency Staff  Other,Childrens Services,Referral & Assmt Team South,"1,032.91"
867656,3454548,HAYS SPECIALIST RECRUITMENT,22/06/2015,53102,Agency Staff  Other,Childrens Services,Safeguarding Team North,"3,219.18"
867656,3454548,HAYS SPECIALIST RECRUITMENT,22/06/2015,53102,Agency Staff  Other,Childrens Services,Safeguarding Team South,"1,229.53"
867656,3454548,HAYS SPECIALIST RECRUITMENT,22/06/2015,53102,Agency Staff  Other,Childrens Services,Safeguarding Team West,"2,431.58"
867656,3454548,HAYS SPECIALIST RECRUITMENT,22/06/2015,53102,Agency Staff  Other,Environmental Services,Strategy & Service Development,"1,107.40"
867656,3454548,HAYS SPECIALIST RECRUITMENT,22/06/2015,53102,Agency Staff  Other,Adult Service,Urgent Care,627.50
867656,3454548,HAYS SPECIALIST RECRUITMENT,22/06/2015,53102,Agency Staff  Other,Environmental Services,Waste,"4,299.94"
867656,3454548,HAYS SPECIALIST RECRUITMENT,22/06/2015,53102,Agency Staff  Other,Childrens Services,Youth Offending Team,"1,168.60"
867656,3458601,HAYS SPECIALIST RECRUITMENT,25/06/2015,53102,Agency Staff  Other,Housing GRF,Access & Advice Caravan Sites,666.00
867656,3458601,HAYS SPECIALIST RECRUITMENT,25/06/2015,53102,Agency Staff  Other,Adult Service,ACM  North,"1,520.64"
867656,3458601,HAYS SPECIALIST RECRUITMENT,25/06/2015,53102,Agency Staff  Other,Environmental Services,Activities and Operations,"8,217.94"
867656,3458601,HAYS SPECIALIST RECRUITMENT,25/06/2015,53102,Agency Staff  Other,Adult Service,AD10112 - Wilfred Geere (2),"6,189.33"
867656,3458601,HAYS SPECIALIST RECRUITMENT,25/06/2015,53102,Agency Staff  Other,Adult Service,AD23155 - MH Early Intervention Team,"1,022.29"
867656,3458601,HAYS SPECIALIST RECRUITMENT,25/06/2015,53102,Agency Staff  Other,Adult Service,AD23156 - MH Crisis Resolution Team,649.00
867656,3458601,HAYS SPECIALIST RECRUITMENT,25/06/2015,53102,Agency Staff  Other,Adult Service,AD41401 - Darley Court,919.50
867656,3458601,HAYS SPECIALIST RECRUITMENT,25/06/2015,53102,Agency Staff  Other,Adult Service,AD41402 - Laburnum Lodge,"2,932.72"
867656,3458601,HAYS SPECIALIST RECRUITMENT,25/06/2015,53102,Agency Staff  Other,Environmental Services,Bereavement Services,"1,608.37"
867656,3458601,HAYS SPECIALIST RECRUITMENT,25/06/2015,53102,Agency Staff  Other,Childrens Services,Business Support    South District,"4,442.15"
867656,3458601,HAYS SPECIALIST RECRUITMENT,25/06/2015,53102,Agency Staff  Other,Childrens Services,Business Support    West District,"3,432.24"
867656,3458601,HAYS SPECIALIST RECRUITMENT,25/06/2015,53102,Agency Staff  Other,Childrens Services,Business Support  Children Social Care,"3,136.41"
867656,3458601,HAYS SPECIALIST RECRUITMENT,25/06/2015,53102,Agency Staff  Other,Childrens Services,Business Support  Directorate,899.85
867656,3458601,HAYS SPECIALIST RECRUITMENT,25/06/2015,53102,Agency Staff  Other,Childrens Services,Business Support  Education Services,"1,270.59"
867656,3458601,HAYS SPECIALIST RECRUITMENT,25/06/2015,53102,Agency Staff  Other,Childrens Services,CH41006 - Business Support - Provider Services,"1,412.98"
867656,3458601,HAYS SPECIALIST RECRUITMENT,25/06/2015,53102,Agency Staff  Other,Childrens Services,CH43661 - FIAT,"1,011.68"
867656,3458601,HAYS SPECIALIST RECRUITMENT,25/06/2015,53102,Agency Staff  Other,Childrens Services,CH43662 - Direct Payments,"1,223.11"
867656,3458601,HAYS SPECIALIST RECRUITMENT,25/06/2015,53102,Agency Staff  Other,Childrens Services,CH43692 - Integrated Commissioning,675.60
867656,3458601,HAYS SPECIALIST RECRUITMENT,25/06/2015,53102,Agency Staff  Other,Childrens Services,Child Prot CAHMS Grant,872.11
867656,3458601,HAYS SPECIALIST RECRUITMENT,25/06/2015,53102,Agency Staff  Other,Childrens Services,Children and Family Supp Svs North,553.40
867656,3458601,HAYS SPECIALIST RECRUITMENT,25/06/2015,53102,Agency Staff  Other,Childrens Services,Children and Family Supp Svs South,"2,147.20"
867656,3458601,HAYS SPECIALIST RECRUITMENT,25/06/2015,53102,Agency Staff  Other,Childrens Services,Children and Family Supp Svs West,"3,158.22"
867656,3458601,HAYS SPECIALIST RECRUITMENT,25/06/2015,53102,Agency Staff  Other,Environmental Services,Civic Cleaning,"1,197.90"
867656,3458601,HAYS SPECIALIST RECRUITMENT,25/06/2015,53102,Agency Staff  Other,Chief Executives,CX11000 - Legal Services Trading Account,"7,339.34"
867656,3458601,HAYS SPECIALIST RECRUITMENT,25/06/2015,53102,Agency Staff  Other,Chief Executives,CX21300 - Occupational Health Unit,839.57
867656,3458601,HAYS SPECIALIST RECRUITMENT,25/06/2015,53102,Agency Staff  Other,Chief Executives,CX43001 - Operational Facilities Management,"1,382.23"
867656,3458601,HAYS SPECIALIST RECRUITMENT,25/06/2015,53102,Agency Staff  Other,Chief Executives,CX43002 - Projects,827.25
867656,3458601,HAYS SPECIALIST RECRUITMENT,25/06/2015,53102,Agency Staff  Other,Chief Executives,CX43005 - Estates & Property Management,"2,816.85"
867656,3458601,HAYS SPECIALIST RECRUITMENT,25/06/2015,53102,Agency Staff  Other,Chief Executives,CX43013 - CPS Shared Costs,"1,065.46"
867656,3458601,HAYS SPECIALIST RECRUITMENT,25/06/2015,53102,Agency Staff  Other,Chief Executives,CX55300 - Financial Management,754.05
867656,3458601,HAYS SPECIALIST RECRUITMENT,25/06/2015,53102,Agency Staff  Other,Chief Executives,CX55330 - Accounts Payable Shared Service Centre,541.45
867656,3458601,HAYS SPECIALIST RECRUITMENT,25/06/2015,53102,Agency Staff  Other,Chief Executives,CX55340 - Finance Dept Procurement Team,"1,106.76"
867656,3458601,HAYS SPECIALIST RECRUITMENT,25/06/2015,53102,Agency Staff  Other,Chief Executives,CX57500 - Council Tax,754.05
867656,3458601,HAYS SPECIALIST RECRUITMENT,25/06/2015,53102,Agency Staff  Other,Chief Executives,CX59500 - C.R.M. Operations,"4,168.01"
867656,3458601,HAYS SPECIALIST RECRUITMENT,25/06/2015,53102,Agency Staff  Other,Childrens Services,Disability Serv Fieldwork Team,"1,038.95"
867656,3458601,HAYS SPECIALIST RECRUITMENT,25/06/2015,53102,Agency Staff  Other,Development & Regeneration,DR67201 - Customer Services,"1,050.37"
867656,3458601,HAYS SPECIALIST RECRUITMENT,25/06/2015,53102,Agency Staff  Other,Housing GRF,Furnished Tenancies,"1,169.64"
867656,3458601,HAYS SPECIALIST RECRUITMENT,25/06/2015,53102,Agency Staff  Other,Adult Service,ICES,653.31
867656,3458601,HAYS SPECIALIST RECRUITMENT,25/06/2015,53102,Agency Staff  Other,Adult Service,LD Provider  Supported Housing,"1,848.00"
867656,3458601,HAYS SPECIALIST RECRUITMENT,25/06/2015,53102,Agency Staff  Other,Environmental Services,Markets  Rent Account,"1,537.20"
867656,3458601,HAYS SPECIALIST RECRUITMENT,25/06/2015,53102,Agency Staff  Other,Housing GRF,Mediation,790.88
867656,3458601,HAYS SPECIALIST RECRUITMENT,25/06/2015,53102,Agency Staff  Other,Adult Service,MH North Fieldwork Team,650.64
867656,3458601,HAYS SPECIALIST RECRUITMENT,25/06/2015,53102,Agency Staff  Other,Environmental Services,Neighbourhood Management Support,"1,071.83"
867656,3458601,HAYS SPECIALIST RECRUITMENT,25/06/2015,53102,Agency Staff  Other,Childrens Services,Referral & Assmt Team South,"1,022.31"
867656,3458601,HAYS SPECIALIST RECRUITMENT,25/06/2015,53102,Agency Staff  Other,Childrens Services,Referral & Assmt Team West,724.86
867656,3458601,HAYS SPECIALIST RECRUITMENT,25/06/2015,53102,Agency Staff  Other,Childrens Services,Safeguarding Team North,"3,120.53"
867656,3458601,HAYS SPECIALIST RECRUITMENT,25/06/2015,53102,Agency Staff  Other,Childrens Services,Safeguarding Team South,"1,870.33"
867656,3458601,HAYS SPECIALIST RECRUITMENT,25/06/2015,53102,Agency Staff  Other,Childrens Services,Safeguarding Team West,"1,252.73"
867656,3458601,HAYS SPECIALIST RECRUITMENT,25/06/2015,53102,Agency Staff  Other,Environmental Services,Strategy & Service Development,"1,107.40"
867656,3458601,HAYS SPECIALIST RECRUITMENT,25/06/2015,53102,Agency Staff  Other,Childrens Services,Substance Misuse,530.72
867656,3458601,HAYS SPECIALIST RECRUITMENT,25/06/2015,53102,Agency Staff  Other,Childrens Services,Targeted Youth Support,"1,451.14"
867656,3458601,HAYS SPECIALIST RECRUITMENT,25/06/2015,53102,Agency Staff  Other,Environmental Services,Trade Waste,888.00
867656,3458601,HAYS SPECIALIST RECRUITMENT,25/06/2015,53102,Agency Staff  Other,Environmental Services,Transport Support Service,"1,217.67"
867656,3458601,HAYS SPECIALIST RECRUITMENT,25/06/2015,53102,Agency Staff  Other,Adult Service,Urgent Care,743.36
867656,3458601,HAYS SPECIALIST RECRUITMENT,25/06/2015,53102,Agency Staff  Other,Environmental Services,Waste,"29,853.83"
867656,3458601,HAYS SPECIALIST RECRUITMENT,25/06/2015,53102,Agency Staff  Other,Childrens Services,Youth Offending Team,"1,909.20"
6367,3442080,HAZELBROOK CHRISTIAN NURSING HOME,02/06/2015,Z6011,Z6011 - CR Bal Hold A/c Exp,Adult Service,ADZ0802 - Health - Funded Nursing Care,920.00
6367,3442080,HAZELBROOK CHRISTIAN NURSING HOME,02/06/2015,Z6011,Z6011 - CR Bal Hold A/c Exp,Adult Service,ADZ1201 - 3rd Party Social Care Contributions,600.00
6367,3442080,HAZELBROOK CHRISTIAN NURSING HOME,02/06/2015,54301,Residential Provision,Adult Service,OA  External Provision Residential,"8,015.00"
6367,3442080,HAZELBROOK CHRISTIAN NURSING HOME,02/06/2015,54302,Nursing Provision,Adult Service,OA  External Provision Residential,"3,347.12"
6367,3442818,HAZELBROOK CHRISTIAN NURSING HOME,04/06/2015,54301,Residential Provision,Adult Service,OA  External Provision Residential,"4,543.03"
6367,3442815,HAZELBROOK CHRISTIAN NURSING HOME,04/06/2015,54301,Residential Provision,Adult Service,OA  External Provision Residential,"4,543.04"
6367,3442810,HAZELBROOK CHRISTIAN NURSING HOME,04/06/2015,54301,Residential Provision,Adult Service,OA  External Provision Residential,"4,543.04"
146379,3462350,HEARTLIFT#ANDREA WOOD,29/06/2015,52000,Vol Assoc Grants  General,Childrens Services,Admin Commissioning,"14,750.00"
2845307,3442091,Heath Cottage Care Home Ltd,02/06/2015,54301,Residential Provision,Adult Service,OA  External Provision Residential,"1,526.96"
3776,3459119,HEATON MEDICAL CENTRE#P82031,29/06/2015,52200,Contracted Services,Public Health,PH04460 - PH Commissioning,780.00
3776,3458958,HEATON MEDICAL CENTRE#P82031,29/06/2015,52200,Contracted Services,Public Health,Primary Care,"1,582.00"
3786,3442294,HELPING HAND CO (LEDBURY) LTD,04/06/2015,44051,Clients Aids & Adaptations,Adult Service,ICES,"2,392.00"
6369,3441757,HENSHAWS SOCIETY FOR THE BLIND,02/06/2015,54301,Residential Provision,Adult Service,PD Purchaser Residential Care,"2,946.72"
2729316,3457708,Hexagon Care Services Ltd,25/06/2015,52000,Vol Assoc Grants  General,Childrens Services,Res Serv Agency Placements,"10,521.43"
2729316,3457709,Hexagon Care Services Ltd,25/06/2015,52000,Vol Assoc Grants  General,Childrens Services,Res Serv Agency Placements,"10,692.86"
2729316,3457707,Hexagon Care Services Ltd,25/06/2015,52000,Vol Assoc Grants  General,Childrens Services,Res Serv Agency Placements,"12,835.72"
2754301,3441734,Heywood Court Care Home,02/06/2015,54301,Residential Provision,Adult Service,OA  External Provision Residential,"1,750.72"
220505,3446724,HICOM BUSINESS SOLUTIONS,11/06/2015,45431,Computer Software Licences,Development & Regeneration,TC Leadership Board Projects,"1,250.00"
2544302,3441901,High Brake House,02/06/2015,54301,Residential Provision,Adult Service,OA  External Provision Residential,"1,712.00"
15740,3441821,HIGH PEAK LODGE#FACTOR EUROPEAN CARE GROUP,02/06/2015,54302,Nursing Provision,Adult Service,OA  External Provision Residential,"1,684.00"
258947,3441848,HIGHCLIFFE RESIDENTIAL HOME#TEAMCARE LTD,02/06/2015,54301,Residential Provision,Adult Service,OA  External Provision Residential,"1,712.00"
236248,3441844,HILLCREST VERNON,02/06/2015,54301,Residential Provision,Adult Service,LD Purchaser Residential Care,"4,870.72"
2013321,3441863,HILLVIEW CARE HOME,02/06/2015,54301,Residential Provision,Adult Service,OA  External Provision Residential,"1,712.00"
51146,3457888,HM Revenue & Customs Only#Was Inland Revenue#2,25/06/2015,48509,Other Fees,Chief Executives,CX21102 - Car Salary Sacrifice Scheme,"23,383.12"
8840,3447026,HOLIDAY INN UK,11/06/2015,46203,Civic Hospitality,Chief Executives,CX13003 - Mayoralty,"2,281.79"
8840,3447023,HOLIDAY INN UK,11/06/2015,46203,Civic Hospitality,Chief Executives,CX13003 - Mayoralty,"3,483.54"
6454,3441760,HOLLANDS NURSING HOME,02/06/2015,54302,Nursing Provision,Adult Service,MH Residential External Provision,"1,548.69"
6454,3441761,HOLLANDS NURSING HOME,02/06/2015,Z6011,Z6011 - CR Bal Hold A/c Exp,Adult Service,ADZ0802 - Health - Funded Nursing Care,"4,016.00"
6454,3441761,HOLLANDS NURSING HOME,02/06/2015,54301,Residential Provision,Adult Service,LD Purchaser Residential Care,"5,420.40"
6454,3441761,HOLLANDS NURSING HOME,02/06/2015,54301,Residential Provision,Adult Service,MH Residential External Provision,"10,753.16"
6454,3441761,HOLLANDS NURSING HOME,02/06/2015,54302,Nursing Provision,Adult Service,MH Residential External Provision,"9,004.76"
6454,3441761,HOLLANDS NURSING HOME,02/06/2015,54301,Residential Provision,Adult Service,PD Purchaser Residential Care,"5,239.56"
6454,3441761,HOLLANDS NURSING HOME,02/06/2015,54302,Nursing Provision,Adult Service,PD Purchaser Residential Care,"9,287.49"
76828,3443349,HOLTWOOD HOUSE#FACTOR ARC ADVENTURE (BURY) LTD,10/06/2015,52000,Vol Assoc Grants  General,Childrens Services,Disability Serv External Provision,"2,499.98"
76828,3443352,HOLTWOOD HOUSE#FACTOR ARC ADVENTURE (BURY) LTD,10/06/2015,52000,Vol Assoc Grants  General,Childrens Services,Disability Serv External Provision,"2,353.89"
76828,3443354,HOLTWOOD HOUSE#FACTOR ARC ADVENTURE (BURY) LTD,10/06/2015,52000,Vol Assoc Grants  General,Childrens Services,Disability Serv External Provision,"2,353.89"
76828,3443340,HOLTWOOD HOUSE#FACTOR ARC ADVENTURE (BURY) LTD,10/06/2015,52000,Vol Assoc Grants  General,Childrens Services,Disability Serv External Provision,"2,299.90"
128732,3450318,HOMECARE FOR YOU LTD#BLACKBURN,15/06/2015,52200,Contracted Services,Adult Service,OA  Home Care Services external provision,"46,307.93"
1617292,3442842,HOMECARE SUPPORT,04/06/2015,52200,Contracted Services,Adult Service,OA  Home Care Services external provision,806.40
1617292,3442851,HOMECARE SUPPORT,04/06/2015,52200,Contracted Services,Adult Service,OA  Home Care Services external provision,504.00
1617292,3444434,HOMECARE SUPPORT,08/06/2015,52200,Contracted Services,Adult Service,OA  Home Care Services external provision,"42,137.13"
1617292,3444426,HOMECARE SUPPORT,08/06/2015,52200,Contracted Services,Adult Service,OA  Home Care Services external provision,"68,887.77"
6381,3442252,HOPE EDUCATION#FINDEL EDUCATION LTD,18/06/2015,40100,Operational Equipment Purchase,Childrens Services,Harvey CC,689.09
6381,3443044,HOPE EDUCATION#FINDEL EDUCATION LTD,18/06/2015,40100,Operational Equipment Purchase,Childrens Services,Harvey CC,531.73
6381,3442331,HOPE EDUCATION#FINDEL EDUCATION LTD,25/06/2015,40100,Operational Equipment Purchase,Childrens Services,Harvey CC,542.60
1548504,3442099,HORWICH FESTIVAL OF RACING,04/06/2015,48204,Promoting Events,Development & Regeneration,Marketing,"2,500.00"
1325950,3442917,HOUSING PARTNERS LTD,04/06/2015,45431,Computer Software Licences,Housing GRF,Homes for You,571.50
6138,3441750,HYDE  LEA,02/06/2015,54301,Residential Provision,Adult Service,OA  External Provision Residential,"16,324.56"
1194842,3445999,IMPRESSION (BOLTON) LIMITED#1,11/06/2015,48203,Marketing,Chief Executives,CX24002 - Marketing - Holding Code,"1,275.00"
1194842,3459497,IMPRESSION (BOLTON) LIMITED#1,29/06/2015,48203,Marketing,Chief Executives,CX24002 - Marketing - Holding Code,904.00
1194842,3459502,IMPRESSION (BOLTON) LIMITED#1,29/06/2015,48203,Marketing,Chief Executives,CX24002 - Marketing - Holding Code,"2,706.00"
1194842,3459505,IMPRESSION (BOLTON) LIMITED#1,29/06/2015,48203,Marketing,Chief Executives,CX24002 - Marketing - Holding Code,738.00
57809,3454137,INFO TECHNOLOGY SUPPLY LIMITED,22/06/2015,45401,Computer Maintenance,Development & Regeneration,DR67410 - Libraries Info. Systems,"5,276.60"
3909,3443446,INFORMATION & DATA NETWORK SUPPLIES LTD#IDN,08/06/2015,40140,Office Equipment Purchase,Childrens Services,Admin IT (Schools),"12,244.45"
3909,3444428,INFORMATION & DATA NETWORK SUPPLIES LTD#IDN,11/06/2015,45400,Computer Purchase,Childrens Services,Admin IT (Schools),"5,309.34"
3909,3444423,INFORMATION & DATA NETWORK SUPPLIES LTD#IDN,11/06/2015,45400,Computer Purchase,Childrens Services,Admin IT (Schools),516.76
3909,3444424,INFORMATION & DATA NETWORK SUPPLIES LTD#IDN,11/06/2015,45400,Computer Purchase,Childrens Services,Admin IT (Schools),"2,018.85"
34422,3441822,Ingleborough Nursing Home LLP,02/06/2015,54301,Residential Provision,Adult Service,OA  External Provision Residential,"1,831.76"
34422,3441822,Ingleborough Nursing Home LLP,02/06/2015,54302,Nursing Provision,Adult Service,OA  External Provision Residential,"1,688.12"
2778298,3447079,Inmind Childrens Services,11/06/2015,52000,Vol Assoc Grants  General,Childrens Services,Res Serv Agency Placements,"4,560.01"
2778298,3450492,Inmind Childrens Services,15/06/2015,52000,Vol Assoc Grants  General,Childrens Services,Res Serv Agency Placements,"19,542.90"
2778298,3450494,Inmind Childrens Services,15/06/2015,52000,Vol Assoc Grants  General,Childrens Services,Res Serv Agency Placements,"20,194.33"
2854299,3452701,Inspire Childrens Services,18/06/2015,52000,Vol Assoc Grants  General,Childrens Services,Res Serv Agency Placements,"5,775.00"
2854299,3462999,Inspire Childrens Services,29/06/2015,52000,Vol Assoc Grants  General,Childrens Services,Res Serv Agency Placements,"5,775.00"
6391,3442073,INSTARMAC GROUP PLC,04/06/2015,Z6007,Z6007 - Inventory AP Accrual,Highways,Stores,554.40
3951,3457900,INTEGRATE (PRESTON & CHORLEY) LTD,25/06/2015,52200,Contracted Services,Adult Service,LD Purchaser Supported Housing,"5,719.16"
96665,3445833,INVACARE LTD,18/06/2015,44051,Clients Aids & Adaptations,Adult Service,ICES,870.00
2178306,3454939,ISG CONSTRUCTION LTD,22/06/2015,Z1051,Work in Progress Additions,Property Services,Property Services Balance Sheet,"196,235.00"
6397,3446690,J & B ELECTRIC POWER TOOL CO LTD,11/06/2015,44051,Clients Aids & Adaptations,Adult Service,ICES,570.00
6397,3453742,J & B ELECTRIC POWER TOOL CO LTD,22/06/2015,44051,Clients Aids & Adaptations,Adult Service,ICES,570.00
267154,3443484,J A TYRE SERVICE LTD,04/06/2015,31303,Tyres,Environmental Services,Transport Support Service,557.30
267154,3443478,J A TYRE SERVICE LTD,04/06/2015,31303,Tyres,Environmental Services,Transport Support Service,967.50
267154,3443498,J A TYRE SERVICE LTD,08/06/2015,31303,Tyres,Environmental Services,Transport Support Service,666.50
267154,3458116,J A TYRE SERVICE LTD,25/06/2015,31303,Tyres,Environmental Services,Transport Support Service,"1,140.00"
267154,3458108,J A TYRE SERVICE LTD,25/06/2015,31303,Tyres,Environmental Services,Transport Support Service,707.95
267154,3458109,J A TYRE SERVICE LTD,25/06/2015,31303,Tyres,Environmental Services,Transport Support Service,578.90
6399,3442151,J DICKINSON & SONS (HORWICH) LTD#2,04/06/2015,40601,General Materials,Environmental Services,Activities and Operations,507.45
6399,3442405,J DICKINSON & SONS (HORWICH) LTD#2,04/06/2015,20101,Programmed Maint. Work,Environmental Services,Highways Managers,"1,900.15"
6399,3442289,J DICKINSON & SONS (HORWICH) LTD#2,04/06/2015,40610,Direct Materials,Environmental Services,Highway Services,"1,124.64"
6399,3445772,J DICKINSON & SONS (HORWICH) LTD#2,08/06/2015,40610,Direct Materials,Environmental Services,Highway Services,"1,050.81"
6399,3445764,J DICKINSON & SONS (HORWICH) LTD#2,08/06/2015,Z6008,Expense AP Accrual,Bolton MBC Balance Sheet,Bolton MBC Balance Sheet,560.95
6399,3445753,J DICKINSON & SONS (HORWICH) LTD#2,08/06/2015,40610,Direct Materials,Environmental Services,Highway Services,767.50
6399,3445777,J DICKINSON & SONS (HORWICH) LTD#2,11/06/2015,40610,Direct Materials,Environmental Services,Highway Services,"1,366.74"
6399,3447011,J DICKINSON & SONS (HORWICH) LTD#2,11/06/2015,40601,General Materials,Environmental Services,Activities and Operations,550.45
6399,3446740,J DICKINSON & SONS (HORWICH) LTD#2,11/06/2015,20101,Programmed Maint. Work,Environmental Services,Highways Managers,936.94
6399,3446738,J DICKINSON & SONS (HORWICH) LTD#2,11/06/2015,40610,Direct Materials,Environmental Services,Highway Services,"1,040.50"
6399,3456035,J DICKINSON & SONS (HORWICH) LTD#2,25/06/2015,40601,General Materials,Environmental Services,Activities and Operations,703.48
6401,3443699,J HOPKINS (CONTRACTORS) LTD,08/06/2015,Z6008,Expense AP Accrual,Bolton MBC Balance Sheet,Bolton MBC Balance Sheet,"11,088.00"
6401,3444441,J HOPKINS (CONTRACTORS) LTD,08/06/2015,Z6008,Expense AP Accrual,Bolton MBC Balance Sheet,Bolton MBC Balance Sheet,"9,440.00"
6401,3460970,J HOPKINS (CONTRACTORS) LTD,29/06/2015,Z6008,Expense AP Accrual,Bolton MBC Balance Sheet,Bolton MBC Balance Sheet,"12,600.00"
6401,3461130,J HOPKINS (CONTRACTORS) LTD,29/06/2015,Z6008,Expense AP Accrual,Bolton MBC Balance Sheet,Bolton MBC Balance Sheet,"11,936.00"
2677300,3446981,J Rawson & Sons,11/06/2015,40610,Direct Materials,Environmental Services,Bereavement Services,558.00
4036,3456021,J W WHITTLE LIMITED#STORE-AWAY ARCHIVE FACILITIES,25/06/2015,22006,Rent of Storage Facilities,Development & Regeneration,DR67260 - Museum Premises,552.00
2112387,3453913,J W YOUNG (BUTCHERS) LIMITED,18/06/2015,41101,Catering ProvisionsFood,Environmental Services,Catering,"1,408.01"
2112387,3455904,J W YOUNG (BUTCHERS) LIMITED,22/06/2015,41101,Catering ProvisionsFood,Environmental Services,Catering,"2,751.53"
2112387,3464690,J W YOUNG (BUTCHERS) LIMITED,29/06/2015,41101,Catering ProvisionsFood,Environmental Services,Catering,"2,056.80"
2284291,3462080,JACKSON JACKSON & SONS LTD,29/06/2015,Z6008,Expense AP Accrual,Bolton MBC Balance Sheet,Bolton MBC Balance Sheet,668.40
2284291,3459426,JACKSON JACKSON & SONS LTD,29/06/2015,Z6008,Expense AP Accrual,Bolton MBC Balance Sheet,Bolton MBC Balance Sheet,522.00
2284291,3459103,JACKSON JACKSON & SONS LTD,29/06/2015,Z6008,Expense AP Accrual,Bolton MBC Balance Sheet,Bolton MBC Balance Sheet,581.80
2284291,3462998,JACKSON JACKSON & SONS LTD,29/06/2015,Z6008,Expense AP Accrual,Bolton MBC Balance Sheet,Bolton MBC Balance Sheet,552.00
2284291,3461394,JACKSON JACKSON & SONS LTD,29/06/2015,Z6008,Expense AP Accrual,Bolton MBC Balance Sheet,Bolton MBC Balance Sheet,525.00
2284291,3459105,JACKSON JACKSON & SONS LTD,29/06/2015,Z6008,Expense AP Accrual,Bolton MBC Balance Sheet,Bolton MBC Balance Sheet,518.00
2284291,3459355,JACKSON JACKSON & SONS LTD,29/06/2015,Z6008,Expense AP Accrual,Bolton MBC Balance Sheet,Bolton MBC Balance Sheet,545.60
4060,3441806,JAH-JIREH (BLACKPOOL),02/06/2015,54301,Residential Provision,Adult Service,OA  External Provision Residential,"3,390.08"
4070,3442301,JAMES LECKEY DESIGN LTD,04/06/2015,44051,Clients Aids & Adaptations,Adult Service,ICES,"2,658.00"
4070,3442304,JAMES LECKEY DESIGN LTD,04/06/2015,44051,Clients Aids & Adaptations,Adult Service,ICES,"1,567.00"
4070,3445685,JAMES LECKEY DESIGN LTD,08/06/2015,44051,Clients Aids & Adaptations,Adult Service,ICES,"2,468.00"
4070,3454919,JAMES LECKEY DESIGN LTD,22/06/2015,44051,Clients Aids & Adaptations,Adult Service,ICES,"1,649.00"
4070,3458540,JAMES LECKEY DESIGN LTD,25/06/2015,44051,Clients Aids & Adaptations,Adult Service,ICES,"1,988.00"
322879,3451684,REDACTED - PERSONAL DATA,18/06/2015,19100,Training Exps Tuition Fees,Childrens Services,CH43727 - WPD Project Link,"2,351.60"
322879,3451682,REDACTED - PERSONAL DATA,18/06/2015,19100,Training Exps Tuition Fees,Childrens Services,CH43727 - WPD Project Link,"2,169.80"
1714312,3447596,JANET(UK),15/06/2015,40100,Operational Equipment Purchase,Childrens Services,Admin IT (Schools),"10,640.00"
58799,3458166,JAY FOSTERING LIMITED,25/06/2015,52000,Vol Assoc Grants  General,Childrens Services,Res Serv Agency Placements,"3,387.90"
213806,3442220,JO HOSSLE-STANDRING T/A JORCHID,04/06/2015,55711,Medical Referees Fees,Chief Executives,CX21301 - Occ Health Holding Code,"1,701.37"
2691386,3453441,John Good Ltd,18/06/2015,48203,Marketing,Chief Executives,CX24002 - Marketing - Holding Code,650.00
4184,3458578,JOHN PACKER LTD,25/06/2015,40100,Operational Equipment Purchase,Childrens Services,Music ServInstru & Vocal Teach,"1,379.00"
1122809,3442866,JONES LIGHTING LTD,04/06/2015,Z6011,Z6011 - CR Bal Hold A/c Exp,Environmental Services,Environmental Services Balance sheet,"1,079.76"
1122809,3442802,JONES LIGHTING LTD,04/06/2015,Z1051,Work in Progress Additions,Highways,Stores,"1,419.78"
1122809,3442800,JONES LIGHTING LTD,04/06/2015,Z1051,Work in Progress Additions,Highways,Stores,549.87
1122809,3442801,JONES LIGHTING LTD,04/06/2015,Z1051,Work in Progress Additions,Highways,Stores,"1,233.82"
1122809,3453763,JONES LIGHTING LTD,18/06/2015,20501,Engineering Work,Environmental Services,Highway Services,549.87
1122809,3442170,JONES LIGHTING LTD,18/06/2015,20501,Engineering Work,Environmental Services,Lighting / Stores Billable Costs,500.11
18212,3453778,KAROMED LIMITED,18/06/2015,44051,Clients Aids & Adaptations,Adult Service,ICES,"1,267.00"
115484,3442630,KAYS TRAFFIC MANAGEMENT SYSTEMS LTD,04/06/2015,Z6008,Expense AP Accrual,Bolton MBC Balance Sheet,Bolton MBC Balance Sheet,800.00
115484,3442627,KAYS TRAFFIC MANAGEMENT SYSTEMS LTD,04/06/2015,Z6008,Expense AP Accrual,Bolton MBC Balance Sheet,Bolton MBC Balance Sheet,800.00
115484,3443713,KAYS TRAFFIC MANAGEMENT SYSTEMS LTD,08/06/2015,52200,Contracted Services,Environmental Services,Activities and Operations,"9,851.95"
115484,3443705,KAYS TRAFFIC MANAGEMENT SYSTEMS LTD,08/06/2015,52200,Contracted Services,Environmental Services,Activities and Operations,"4,585.00"
115484,3443712,KAYS TRAFFIC MANAGEMENT SYSTEMS LTD,08/06/2015,52200,Contracted Services,Environmental Services,Activities and Operations,"7,572.00"
115484,3453759,KAYS TRAFFIC MANAGEMENT SYSTEMS LTD,18/06/2015,52200,Contracted Services,Environmental Services,Activities and Operations,"2,542.75"
13963,3458962,KEARSLEY MEDICAL CENTRE#P82007,29/06/2015,52200,Contracted Services,Public Health,Primary Care,"1,028.00"
4316,3450332,REDACTED - PERSONAL DATA,15/06/2015,52200,Contracted Services,Environmental Services,Activities and Operations,"4,940.00"
7747,3441786,KENYON LODGE,02/06/2015,54301,Residential Provision,Adult Service,OA  External Provision Residential,"4,845.96"
4330,3447353,KERNOCK PARK PLANTS,11/06/2015,40609,Horticultural Materials,Environmental Services,Assets,"3,850.00"
2359321,3453351,KEYSOFT SOLUTIONS LTD,18/06/2015,45431,Computer Software Licences,Environmental Services,Activities and Operations,530.00
2503295,3450268,KIER FPS LIMITED,15/06/2015,33203,Contract Hire,Environmental Services,Transport Support Service,"22,835.83"
4365,3458963,KILDONAN HOUSE MEDICAL PRACTICE#P82003,29/06/2015,52200,Contracted Services,Public Health,Primary Care,"1,058.00"
4366,3444459,KILLGERM CHEMICALS LTD,11/06/2015,40605,Chemicals,Environmental Services,Activities and Operations,931.78
2740303,3454023,Kinder Castle Day Nursery,22/06/2015,44054,Other Clients Services,Childrens Services,LAC Team North,"2,199.50"
1989355,3441862,KINGARTH,02/06/2015,54301,Residential Provision,Adult Service,LD Purchaser Residential Care,"33,575.20"
2740305,3441733,Kingdom House,02/06/2015,54301,Residential Provision,Adult Service,PD Purchaser Residential Care,"4,286.73"
6434,3441792,KNIGHTSWOOD RESIDENTIAL HOME,02/06/2015,Z6011,Z6011 - CR Bal Hold A/c Exp,Adult Service,ADZ1201 - 3rd Party Social Care Contributions,"2,825.42"
6434,3441792,KNIGHTSWOOD RESIDENTIAL HOME,02/06/2015,54301,Residential Provision,Adult Service,OA  External Provision Residential,"15,147.30"
16168,3442912,KPR MIDLINK LTD,04/06/2015,45431,Computer Software Licences,Environmental Services,Markets  Rent Account,"2,388.95"
22454,3442778,L A ROYSE,04/06/2015,79000,Election Expenses,Chief Executives,CX13101 - Elections,850.00
2433402,3442149,LAFARGE TARMAC TRADING LIMITED,04/06/2015,40601,General Materials,Environmental Services,Activities and Operations,641.91
2433402,3442603,LAFARGE TARMAC TRADING LIMITED,04/06/2015,Z6008,Expense AP Accrual,Bolton MBC Balance Sheet,Bolton MBC Balance Sheet,"1,249.69"
2433402,3442608,LAFARGE TARMAC TRADING LIMITED,04/06/2015,Z6008,Expense AP Accrual,Bolton MBC Balance Sheet,Bolton MBC Balance Sheet,"1,262.90"
2433402,3442605,LAFARGE TARMAC TRADING LIMITED,04/06/2015,Z6008,Expense AP Accrual,Bolton MBC Balance Sheet,Bolton MBC Balance Sheet,"1,193.92"
2433402,3442647,LAFARGE TARMAC TRADING LIMITED,04/06/2015,Z6008,Expense AP Accrual,Bolton MBC Balance Sheet,Bolton MBC Balance Sheet,"1,466.88"
2433402,3446746,LAFARGE TARMAC TRADING LIMITED,11/06/2015,Z6008,Expense AP Accrual,Bolton MBC Balance Sheet,Bolton MBC Balance Sheet,"1,291.90"
2433402,3446745,LAFARGE TARMAC TRADING LIMITED,11/06/2015,Z6008,Expense AP Accrual,Bolton MBC Balance Sheet,Bolton MBC Balance Sheet,736.09
2433402,3445855,LAFARGE TARMAC TRADING LIMITED,11/06/2015,Z6008,Expense AP Accrual,Bolton MBC Balance Sheet,Bolton MBC Balance Sheet,"1,462.86"
2433402,3445857,LAFARGE TARMAC TRADING LIMITED,11/06/2015,Z6008,Expense AP Accrual,Bolton MBC Balance Sheet,Bolton MBC Balance Sheet,"1,438.36"
2433402,3446741,LAFARGE TARMAC TRADING LIMITED,11/06/2015,Z6008,Expense AP Accrual,Bolton MBC Balance Sheet,Bolton MBC Balance Sheet,"1,218.01"
2433402,3447971,LAFARGE TARMAC TRADING LIMITED,11/06/2015,Z6008,Expense AP Accrual,Bolton MBC Balance Sheet,Bolton MBC Balance Sheet,922.31
2433402,3447976,LAFARGE TARMAC TRADING LIMITED,11/06/2015,Z6008,Expense AP Accrual,Bolton MBC Balance Sheet,Bolton MBC Balance Sheet,"1,048.08"
2433402,3447969,LAFARGE TARMAC TRADING LIMITED,11/06/2015,Z6008,Expense AP Accrual,Bolton MBC Balance Sheet,Bolton MBC Balance Sheet,937.03
4457,3441814,LAKESIDE CARE HOME,02/06/2015,54301,Residential Provision,Adult Service,OA  External Provision Residential,"1,556.00"
413120,3445904,LAS MANCHESTER LTD,11/06/2015,48203,Marketing,Chief Executives,CX24002 - Marketing - Holding Code,"1,362.50"
1919290,3454017,LEEDS COMMERCIAL LIMITED,22/06/2015,33201,Transport Hire,Environmental Services,Transport Support Service,735.00
2273296,3454792,Lego Company Limited T/A Lego Education Europe,25/06/2015,45433,ECDL Courseware Hosting,Childrens Services,Admin IT (Schools),"1,859.83"
257679,3442199,Leigh Dogs and Cats Home Ltd,11/06/2015,52200,Contracted Services,Environmental Services,Activities and Operations,"2,160.00"
1015735,3441854,LEVER EDGE CARE HOME,02/06/2015,54301,Residential Provision,Adult Service,MH Residential External Provision,"1,647.08"
1015735,3441854,LEVER EDGE CARE HOME,02/06/2015,54301,Residential Provision,Adult Service,OA  External Provision Residential,"94,360.37"
4547,3460229,LEXISNEXIS UK,29/06/2015,19406,Professional Fees,Chief Executives,CX11000 - Legal Services Trading Account,"27,347.00"
1104799,3446102,LIAM TRIPPIER SCHOOL IMPROVEMENT LTD,11/06/2015,52200,Contracted Services,Childrens Services,CH84324 - SIP’s,"1,732.50"
2881313,3442843,Lifeways Community Care Ltd,04/06/2015,52200,Contracted Services,Adult Service,MH Residential External Provision,"1,029.60"
63440,3443186,Lisa Faragher#Interpreting & Translating Services,04/06/2015,48509,Other Fees,Adult Service,ACM  North,"1,995.00"
63440,3447881,Lisa Faragher#Interpreting & Translating Services,11/06/2015,48509,Other Fees,Adult Service,ACM  North,"2,730.00"
363536,3441850,LITTLE SISTERS OF THE POOR,02/06/2015,54301,Residential Provision,Adult Service,OA  External Provision Residential,"1,661.68"
2794579,3441741,Littleover Nursing Home,02/06/2015,54302,Nursing Provision,Adult Service,OA  External Provision Residential,"1,805.36"
130483,3450039,LLOYDS PHARMACY,15/06/2015,52200,Contracted Services,Adult Service,Drugs Pooled Treatment Budget,639.70
130483,3457667,LLOYDS PHARMACY,25/06/2015,52200,Contracted Services,Adult Service,Drugs Pooled Treatment Budget,541.20
6449,3441759,LYNGATE RESIDENTIAL HOME,02/06/2015,54301,Residential Provision,Adult Service,OA  External Provision Residential,"34,050.18"
2672328,3441726,Madison Court,02/06/2015,54301,Residential Provision,Adult Service,OA  External Provision Residential,"2,352.71"
6464,3450275,MAKING SPACE#4,15/06/2015,52000,Vol Assoc Grants  General,Adult Service,OA  Carers Grant,"8,333.33"
6464,3442723,MAKING SPACE#4,18/06/2015,52200,Contracted Services,Adult Service,Supporting People  Capital Financing,"5,395.39"
6467,3443225,Manchester City Council,04/06/2015,47200,General Subscriptions,Development & Regeneration,DR67110 - LMA Library Mgmt,"1,650.00"
6467,3443787,Manchester City Council,08/06/2015,55032,Procurement Hub,Chief Executives,CX55340 - Finance Dept Procurement Team,"22,929.28"
256264,3443675,MANCHESTER MEDICAL SERVICES LTD,11/06/2015,48203,Marketing,Chief Executives,CX24002 - Marketing - Holding Code,"2,400.00"
6461,3443565,Manchester Metropolitan University,08/06/2015,47200,General Subscriptions,Environmental Services,Regulatory Services Licensing,550.00
2416293,3459134,MANDALAY MEDICAL CENTRE#P82023,29/06/2015,52200,Contracted Services,Public Health,PH04460 - PH Commissioning,"1,404.00"
17968,3443535,MANGAR INTERNATIONAL,08/06/2015,44051,Clients Aids & Adaptations,Adult Service,ICES,"1,038.21"
130485,3450041,MANOR PHARMACY#VARIOUS CHEMISTS,15/06/2015,52200,Contracted Services,Adult Service,Drugs Pooled Treatment Budget,892.80
130485,3457669,MANOR PHARMACY#VARIOUS CHEMISTS,25/06/2015,52200,Contracted Services,Adult Service,Drugs Pooled Treatment Budget,925.50
17742,3458682,REDACTED - PERSONAL DATA,25/06/2015,19100,Training Exps Tuition Fees,Childrens Services,CH43727 - WPD Project Link,665.00
68,3443523,MARK EDUCATION LTD T/A ITN MARK EDUCATION,08/06/2015,53100,Agency Staff  Fulltime,Childrens Services,Connexions PAs,725.00
68,3445742,MARK EDUCATION LTD T/A ITN MARK EDUCATION,08/06/2015,53100,Agency Staff  Fulltime,Childrens Services,Connexions PAs,725.00
6458,3443075,MARK MANGNALL & SON,08/06/2015,Z6008,Expense AP Accrual,Bolton MBC Balance Sheet,Bolton MBC Balance Sheet,"1,780.00"
130486,3450042,MARKET PHARMACY#CLAMARY LTD,15/06/2015,52200,Contracted Services,Adult Service,Drugs Pooled Treatment Budget,608.30
130486,3457670,MARKET PHARMACY#CLAMARY LTD,25/06/2015,52200,Contracted Services,Adult Service,Drugs Pooled Treatment Budget,600.70
235105,3455005,Markland Hill Lawn Tennis Club,22/06/2015,79000,Election Expenses,Chief Executives,CX13101 - Elections,500.00
6470,3441793,MARLEY COURT  NURSING & RESIDENTAIL HOME,02/06/2015,54301,Residential Provision,Adult Service,OA  External Provision Residential,"4,944.00"
874657,3450031,MARSH (BOLTON) LTD T/A COHENS CHEMIST,15/06/2015,52200,Contracted Services,Adult Service,Drugs Pooled Treatment Budget,684.70
874657,3450029,MARSH (BOLTON) LTD T/A COHENS CHEMIST,15/06/2015,52200,Contracted Services,Adult Service,Drugs Pooled Treatment Budget,763.80
874657,3457660,MARSH (BOLTON) LTD T/A COHENS CHEMIST,25/06/2015,52200,Contracted Services,Adult Service,Drugs Pooled Treatment Budget,869.70
6472,3442811,MARWOOD ELECTRICAL COMPANY LTD,04/06/2015,Z1051,Work in Progress Additions,Highways,Stores,"28,635.92"
6472,3442804,MARWOOD ELECTRICAL COMPANY LTD,04/06/2015,Z1051,Work in Progress Additions,Highways,Stores,"61,629.48"
6472,3442808,MARWOOD ELECTRICAL COMPANY LTD,04/06/2015,Z1051,Work in Progress Additions,Highways,Stores,"51,357.90"
6472,3453675,MARWOOD ELECTRICAL COMPANY LTD,18/06/2015,Z1051,Work in Progress Additions,Highways,Stores,"64,430.82"
6472,3453678,MARWOOD ELECTRICAL COMPANY LTD,18/06/2015,Z1051,Work in Progress Additions,Highways,Stores,"24,900.80"
6472,3453672,MARWOOD ELECTRICAL COMPANY LTD,18/06/2015,Z1051,Work in Progress Additions,Highways,Stores,"53,847.98"
349230,3446819,MARWOOD GROUP LIMITED,11/06/2015,33202,Plant Hire,Environmental Services,Highways Maintenance Billable Costs,660.00
4808,3441777,MARY & JOSEPH HOUSE,02/06/2015,54301,Residential Provision,Adult Service,MH Residential External Provision,"3,898.00"
2852299,3446098,REDACTED - PERSONAL DATA,11/06/2015,53000,Private Contracted Services,Childrens Services,CH84800 - Educational Improvement - Sec,"1,237.00"
2497291,3441897,MAX POTENTIAL UK LTD,02/06/2015,54301,Residential Provision,Adult Service,MH Residential External Provision,"2,000.00"
2434291,3441894,MAYBANK HOUSE,02/06/2015,54301,Residential Provision,Adult Service,OA  External Provision Residential,"1,593.40"
38107,3441823,MEADOW BANK NURSING HOME,02/06/2015,54301,Residential Provision,Adult Service,OA  External Provision Residential,907.43
38107,3441823,MEADOW BANK NURSING HOME,02/06/2015,54302,Nursing Provision,Adult Service,OA  External Provision Residential,"3,852.24"
4856,3441808,MEADOWBANK HOUSE,02/06/2015,Z6011,Z6011 - CR Bal Hold A/c Exp,Adult Service,ADZ0802 - Health - Funded Nursing Care,"2,264.00"
4856,3441808,MEADOWBANK HOUSE,02/06/2015,54302,Nursing Provision,Adult Service,MH Residential External Provision,"1,647.08"
4856,3441808,MEADOWBANK HOUSE,02/06/2015,54301,Residential Provision,Adult Service,OA  External Provision Residential,"13,176.64"
4856,3441808,MEADOWBANK HOUSE,02/06/2015,54302,Nursing Provision,Adult Service,OA  External Provision Residential,"8,235.40"
1598332,3450672,MEARS CARE LTD,15/06/2015,52200,Contracted Services,Adult Service,OA  Home Care Services external provision,"11,335.35"
1598332,3450674,MEARS CARE LTD,15/06/2015,52200,Contracted Services,Adult Service,OA  Home Care Services external provision,"10,460.77"
1598332,3450671,MEARS CARE LTD,15/06/2015,52200,Contracted Services,Adult Service,OA  Home Care Services external provision,"11,395.71"
1598332,3450673,MEARS CARE LTD,15/06/2015,52200,Contracted Services,Adult Service,OA  Home Care Services external provision,"11,145.54"
1598332,3450277,MEARS CARE LTD,15/06/2015,52200,Contracted Services,Adult Service,OA  Home Care Services external provision,"10,335.95"
2794559,3442093,Melling Acres,02/06/2015,54301,Residential Provision,Adult Service,LD Purchaser Residential Care,"17,343.20"
267311,3450363,MERITEC LIMITED,15/06/2015,52200,Contracted Services,Chief Executives,CX56100 - Housing Benefits,"10,416.25"
267311,3450362,MERITEC LIMITED,15/06/2015,52200,Contracted Services,Chief Executives,CX56104 - Anti Poverty Measures,"7,301.18"
267311,3459508,MERITEC LIMITED,29/06/2015,53102,Agency Staff  Other,Chief Executives,CX56100 - Housing Benefits,"15,700.00"
267311,3459510,MERITEC LIMITED,29/06/2015,52200,Contracted Services,Chief Executives,CX56104 - Anti Poverty Measures,"6,375.00"
267311,3459514,MERITEC LIMITED,29/06/2015,52200,Contracted Services,Chief Executives,CX56104 - Anti Poverty Measures,"7,850.00"
267311,3459513,MERITEC LIMITED,29/06/2015,52200,Contracted Services,Chief Executives,CX56104 - Anti Poverty Measures,"8,900.00"
267311,3459511,MERITEC LIMITED,29/06/2015,53102,Agency Staff  Other,Chief Executives,CX56100 - Housing Benefits,"6,364.86"
1960294,3449569,METRONET (UK) LIMITED,15/06/2015,25105,Other Security,Environmental Services,NCP CCTV,"1,000.00"
814640,3456005,REDACTED - PERSONAL DATA,25/06/2015,48203,Marketing,Chief Executives,CX24002 - Marketing - Holding Code,501.30
10133,3441817,MILLVIEW NURSING HOME,02/06/2015,54301,Residential Provision,Adult Service,OA  External Provision Residential,"2,026.11"
10133,3441818,MILLVIEW NURSING HOME,02/06/2015,Z6011,Z6011 - CR Bal Hold A/c Exp,Adult Service,ADZ0802 - Health - Funded Nursing Care,"13,168.00"
10133,3441818,MILLVIEW NURSING HOME,02/06/2015,54302,Nursing Provision,Adult Service,LD Purchaser Residential Care,"1,625.96"
10133,3441818,MILLVIEW NURSING HOME,02/06/2015,54301,Residential Provision,Adult Service,MH Residential External Provision,"1,625.96"
10133,3441818,MILLVIEW NURSING HOME,02/06/2015,54301,Residential Provision,Adult Service,OA  External Provision Residential,"81,045.28"
10133,3441818,MILLVIEW NURSING HOME,02/06/2015,54302,Nursing Provision,Adult Service,OA  External Provision Residential,"47,401.52"
10133,3441818,MILLVIEW NURSING HOME,02/06/2015,54301,Residential Provision,Adult Service,PD Purchaser Residential Care,"4,064.90"
10133,3441818,MILLVIEW NURSING HOME,02/06/2015,54302,Nursing Provision,Adult Service,PD Purchaser Residential Care,"1,625.96"
527535,3446044,MISS ALISON WOODWARD,11/06/2015,48502,Legal Fees,Childrens Services,Management Team,960.00
221647,3451691,MISS THERESA PEPPER,18/06/2015,48502,Legal Fees,Childrens Services,Management Team,"1,300.00"
2620327,3442326,Mojo Trust,04/06/2015,55700,Grant Funded Expenditure,Environmental Services,Community Safety,851.53
2620327,3446924,Mojo Trust,11/06/2015,48509,Other Fees,Development & Regeneration,Development Management,"1,051.56"
2620327,3450754,Mojo Trust,15/06/2015,48509,Other Fees,Environmental Services,Community Safety,"3,750.00"
2620330,3441723,Moorfields Care Home,02/06/2015,54301,Residential Provision,Adult Service,OA  External Provision Residential,"1,641.24"
2626324,3441725,Morgan Care Ltd,02/06/2015,Z6011,Z6011 - CR Bal Hold A/c Exp,Adult Service,ADZ1201 - 3rd Party Social Care Contributions,"4,368.34"
2626324,3441725,Morgan Care Ltd,02/06/2015,54301,Residential Provision,Adult Service,OA  External Provision Residential,"22,807.52"
24159,3443616,MORSE WATCHMANS (UK) LTD,08/06/2015,20100,Day To Day Maintenance,Chief Executives,CX67216 - Libraries - Crescent,"17,592.25"
2147302,3441868,MOSTON GRANGE NURSING HOME,02/06/2015,54302,Nursing Provision,Adult Service,MH Residential External Provision,"3,700.00"
1993290,3446990,MOUNTAINEXPLOITS#CHRISTOPHER KIRKHAM,11/06/2015,52200,Contracted Services,Childrens Services,Youth Service Outdoor Education,970.00
2799299,3450359,MovveO Limited,15/06/2015,Z1051,Work in Progress Additions,Property Services,Property Services Balance Sheet,"3,850.00"
774632,3450343,MPLC#MOTION PICTURE LICENSING COMPANY,15/06/2015,48509,Other Fees,Childrens Services,Admin General,"13,418.84"
319861,3459928,Mr Eric Owen,29/06/2015,48502,Legal Fees,Chief Executives,CX43005 - Estates & Property Management,"4,256.25"
1579529,3442579,MRM STREET FURNITURE LTD,04/06/2015,40601,General Materials,Environmental Services,Bereavement Services,"1,500.00"
13833,3443059,MUSEUMS ASSOCIATION,04/06/2015,47200,General Subscriptions,Development & Regeneration,DR67260 - Museum Premises,904.32
2794565,3441739,Napier Lodge Limited,02/06/2015,54301,Residential Provision,Adult Service,OA  External Provision Residential,"1,674.96"
6504,3454629,NAS SERVICES LTD,22/06/2015,52200,Contracted Services,Adult Service,MH Residential External Provision,549.11
9982,3443639,NATIONAL CAR PARKS LTD#NCP,08/06/2015,37100,Car Parking,Chief Executives,CX21101 - Car Parking,"29,774.96"
2646319,3443199,Nationwide Safety & Training Ltd,04/06/2015,Z6008,Expense AP Accrual,Bolton MBC Balance Sheet,Bolton MBC Balance Sheet,"1,200.00"
2285319,3441877,NAZARETH HOUSE MANCHESTER#EPH,02/06/2015,54301,Residential Provision,Adult Service,OA  External Provision Residential,"1,647.52"
25103,3443671,NEATER SOLUTIONS LTD,08/06/2015,44051,Clients Aids & Adaptations,Adult Service,ICES,"1,029.00"
1237875,3444438,NEW START CHILDCARE,08/06/2015,52000,Vol Assoc Grants  General,Childrens Services,Res Serv Agency Placements,"7,762.86"
1237875,3450356,NEW START CHILDCARE,15/06/2015,52000,Vol Assoc Grants  General,Childrens Services,Res Serv Agency Placements,"18,513.00"
2613325,3464705,Newsquest Media Group,29/06/2015,48202,General Publicity,Development & Regeneration,Development Management,536.40
2535411,3450499,Next Stage 4 Life,15/06/2015,52000,Vol Assoc Grants  General,Childrens Services,Res Serv Agency Placements,"19,000.00"
2535411,3450501,Next Stage 4 Life,15/06/2015,52000,Vol Assoc Grants  General,Childrens Services,Res Serv Agency Placements,"10,800.00"
2265300,3457896,NEXT STAGE A WAY FORWARD LIMITED,25/06/2015,52200,Contracted Services,Adult Service,LD Purchaser Supported Housing,"15,347.20"
2265300,3458469,NEXT STAGE A WAY FORWARD LIMITED,25/06/2015,52000,Vol Assoc Grants  General,Childrens Services,Res Serv Agency Placements,"17,806.08"
2265300,3458163,NEXT STAGE A WAY FORWARD LIMITED,25/06/2015,52000,Vol Assoc Grants  General,Childrens Services,Res Serv Agency Placements,804.00
2265300,3459052,NEXT STAGE A WAY FORWARD LIMITED,29/06/2015,52200,Contracted Services,Adult Service,LD Purchaser Supported Housing,"2,887.50"
2265300,3459053,NEXT STAGE A WAY FORWARD LIMITED,29/06/2015,52200,Contracted Services,Adult Service,LD Purchaser Supported Housing,"2,887.50"
192870,3443534,NH ON-SITE LTD,08/06/2015,31305,Vehicle Servicing,Environmental Services,Transport Support Service,700.00
25063,3454910,NINEHUNDRED COMMUNICATIONS,22/06/2015,48203,Marketing,Chief Executives,CX24002 - Marketing - Holding Code,984.50
230,3442071,NISBETS,18/06/2015,40100,Operational Equipment Purchase,Environmental Services,Pavillion Cafe,629.86
6514,3453674,NORTH WEST EMPLOYERS,18/06/2015,47103,Miscellaneous Grants,Childrens Services,Admin DMT,"7,500.00"
6514,3457935,NORTH WEST EMPLOYERS,25/06/2015,47200,General Subscriptions,Chief Executives,CX22000 - Savings and Efficiencies Team,"24,939.46"
191678,3447124,NORTH WEST PORTABLES,11/06/2015,52200,Contracted Services,Childrens Services,Youth Offending Team,869.00
357290,3450745,NORTHERN RAIL LTD,18/06/2015,34104,Staff/Officers  Other Fares,Chief Executives,CX21104 - Travel Season Ticket Loan,"1,100.00"
357290,3450739,NORTHERN RAIL LTD,18/06/2015,34104,Staff/Officers  Other Fares,Chief Executives,CX21104 - Travel Season Ticket Loan,928.60
17346,3446935,NORTHGATE INFORMATION SOLUTIONS UK LIMITED,11/06/2015,43031,Blue Badge Stationery,Chief Executives,CX59500 - C.R.M. Operations,"2,286.20"
1838318,3461273,NORTHGATE VEHICLE HIRE LTD,29/06/2015,33201,Transport Hire,Environmental Services,Transport Support Service,"5,649.10"
10182,3445756,NPOWER LIMITED,08/06/2015,21100,Electricity  General,Chief Executives,CX41000 - Admin Buildings Portfolio,"1,249.35"
10182,3445756,NPOWER LIMITED,08/06/2015,21100,Electricity  General,Chief Executives,CX41200 - Adult Social Care Portfolio,"4,096.30"
10182,3445756,NPOWER LIMITED,08/06/2015,21100,Electricity  General,Chief Executives,CX44002 - Energy Payments Account,"2,494.51"
10182,3445756,NPOWER LIMITED,08/06/2015,21100,Electricity  General,Environmental Services,Depots,"1,683.30"
10182,3445756,NPOWER LIMITED,08/06/2015,21100,Electricity  General,Development & Regeneration,DR67210 - Libraries - Westhoughton,"1,376.66"
10182,3445756,NPOWER LIMITED,08/06/2015,21100,Electricity  General,Development & Regeneration,DR67260 - Museum Premises,548.77
10182,3445756,NPOWER LIMITED,08/06/2015,21100,Electricity  General,Childrens Services,Horwich Youth Centre (Yth Srv),546.95
10182,3445756,NPOWER LIMITED,08/06/2015,21100,Electricity  General,Childrens Services,Kearsley CC,529.65
10182,3445756,NPOWER LIMITED,08/06/2015,21100,Electricity  General,Environmental Services,Markets  Rent Account,541.52
2610298,3453790,NRS Healthcare#Nottingham Rehab Limited,18/06/2015,44051,Clients Aids & Adaptations,Adult Service,ICES,"2,071.53"
266933,3444253,NSL LIMITED#NSL SERVICES GROUP,08/06/2015,44202,Contract UnitNonLEA,Environmental Services,Parking Services  On Street,"36,836.03"
266933,3445995,NSL LIMITED#NSL SERVICES GROUP,11/06/2015,44202,Contract UnitNonLEA,Environmental Services,Parking Services  On Street,"3,956.51"
42754,3442839,OFSTED,04/06/2015,48509,Other Fees,Childrens Services,Res Serv Mayor Street,"2,113.00"
42754,3441689,OFSTED,04/06/2015,48509,Other Fees,Childrens Services,Res Serv Malton Avenue,"1,937.00"
2625433,3442718,O'Hagan Management Services Ltd,04/06/2015,20100,Day To Day Maintenance,Development & Regeneration,DR82700 - Middlebrook Arena,"7,550.00"
132953,3441834,OLD GATES NURSING HOME,02/06/2015,54302,Nursing Provision,Adult Service,OA  External Provision Residential,"1,726.40"
2428300,3458975,OLIVE FAMILY PRACTICE LIMITED#Y03366,29/06/2015,52200,Contracted Services,Public Health,Primary Care,600.00
2428300,3459136,OLIVE FAMILY PRACTICE LIMITED#Y03366,29/06/2015,52200,Contracted Services,Public Health,PH04460 - PH Commissioning,612.00
6529,3459428,OLM SYSTEMS LIMITED,29/06/2015,45431,Computer Software Licences,Childrens Services,Admin Info Mgemnt Unit,"33,784.00"
2397427,3441893,ORCHARD COURT,02/06/2015,54301,Residential Provision,Adult Service,OA  External Provision Residential,"1,671.88"
2832299,3459165,Orchard Medical Recruitment,29/06/2015,53102,Agency Staff  Other,Adult Service,ACM  Management,557.25
2441353,3442607,OSMIS EDUCATION LIMITED,04/06/2015,53000,Private Contracted Services,Childrens Services,Admin IT (Schools),"4,205.00"
6538,3452708,P J CARNEY & CO LTD,18/06/2015,52200,Contracted Services,Environmental Services,Activities and Operations,"9,490.00"
388,3446075,PARALLEL PARENTS,11/06/2015,52000,Vol Assoc Grants  General,Childrens Services,Res Serv Agency Placements,"2,987.16"
34703,3454198,PARK HOUSE HEALTHCARE LTD,22/06/2015,44051,Clients Aids & Adaptations,Adult Service,ICES,"2,200.00"
394,3446979,PARK LANE PLANTS LTD,11/06/2015,40609,Horticultural Materials,Environmental Services,Heaton Fold,595.50
7907,3441762,PARKVIEW NURSING & RESIDENTIAL HOME,02/06/2015,54301,Residential Provision,Adult Service,MH Residential External Provision,812.98
7907,3441762,PARKVIEW NURSING & RESIDENTIAL HOME,02/06/2015,54301,Residential Provision,Adult Service,OA  External Provision Residential,522.63
7907,3441763,PARKVIEW NURSING & RESIDENTIAL HOME,02/06/2015,54301,Residential Provision,Adult Service,OA  External Provision Residential,"36,759.81"
7907,3441763,PARKVIEW NURSING & RESIDENTIAL HOME,02/06/2015,54301,Residential Provision,Adult Service,PD Purchaser Residential Care,659.89
2781367,3454176,Pathway to Prospects Ltd,22/06/2015,52000,Vol Assoc Grants  General,Childrens Services,Res Serv Agency Placements,"4,007.03"
2781367,3454188,Pathway to Prospects Ltd,22/06/2015,52000,Vol Assoc Grants  General,Childrens Services,Res Serv Agency Placements,"2,700.00"
2781367,3453945,Pathway to Prospects Ltd,22/06/2015,52000,Vol Assoc Grants  General,Childrens Services,Res Serv Agency Placements,"3,180.00"
485511,3450095,PELL & BALDWIN (FABRICATIONS) LTD,15/06/2015,20501,Engineering Work,Environmental Services,Highway Management,"2,293.00"
688592,3451705,PENNY VINE,18/06/2015,48509,Other Fees,Childrens Services,Quality & inclusion,"1,741.14"
111260,3458169,PERPETUAL FOSTERING LTD,25/06/2015,52000,Vol Assoc Grants  General,Childrens Services,Disability Serv External Provision,"2,881.17"
22610,3453526,PETER DOUGLASS PLATFORMS,18/06/2015,33201,Transport Hire,Environmental Services,Transport Support Service,"1,170.00"
22610,3453514,PETER DOUGLASS PLATFORMS,18/06/2015,33201,Transport Hire,Environmental Services,Transport Support Service,"1,026.00"
6553,3442287,PETERS LTD,04/06/2015,40753,Book Fund Expenditure,Development & Regeneration,DR67323 - Schools Library Services,"4,574.18"
65281,3442315,PFB Self Drive,04/06/2015,33201,Transport Hire,Environmental Services,Transport Support Service,550.00
6558,3446805,PHS GROUP PLC,22/06/2015,Z6008,Expense AP Accrual,Bolton MBC Balance Sheet,Bolton MBC Balance Sheet,"3,609.16"
2428307,3458977,PIKE VIEW MEDICAL CENTRE#P82006#DR S MALHOTRA & PARTNERS,29/06/2015,52200,Contracted Services,Public Health,Primary Care,"1,614.00"
2428307,3459137,PIKE VIEW MEDICAL CENTRE#P82006#DR S MALHOTRA & PARTNERS,29/06/2015,52200,Contracted Services,Public Health,PH04460 - PH Commissioning,"1,992.00"
82258,3457693,PILAT EUROPE LTD,25/06/2015,48509,Other Fees,Chief Executives,CX21005 - HR - Corporate,"10,316.10"
350350,3446072,PIPS COURIER SERVICES#MR D BROWN,11/06/2015,48509,Other Fees,Childrens Services,Management Team,593.00
503,3458207,PITNEY BOWES LTD,25/06/2015,45001,Franking Machine,Environmental Services,Civic Cleaning,"1,024.83"
116750,3447030,PLACES FOR PEOPLE INDIVIDUAL SUPPORT,11/06/2015,52210,Contracted Services  Rental Voids,Adult Service,LD Provider  Supported Housing,"1,471.93"
116750,3447030,PLACES FOR PEOPLE INDIVIDUAL SUPPORT,11/06/2015,52210,Contracted Services  Rental Voids,Adult Service,LD Purchaser Supported Housing,"2,039.67"
78978,3450231,PLAY & LEISURE LTD,15/06/2015,Z1051,Work in Progress Additions,Environmental Services,Environmental Services Balance sheet,"11,752.00"
10273,3442303,PORTAKABIN,04/06/2015,79000,Election Expenses,Chief Executives,CX13101 - Elections,"2,560.00"
181712,3454283,PORTFOLIO#ROTHWELL COMPANY LTD,22/06/2015,48202,General Publicity,Public Health,Get Active,"3,169.80"
6568,3458238,Postage By Phone-Pitney Bowes Ltd,30/06/2015,45002,Postage Charge,Environmental Services,Couriers,"36,000.00"
35473,3443793,PREMIER CARE LTD#BOLTON CARE SERVICES,08/06/2015,52200,Contracted Services,Adult Service,OA  Home Care Services external provision,"9,740.37"
6572,3453454,PREMIER PAPER GROUP LIMITED,18/06/2015,43032,Office Stationery,Chief Executives,CX15002 - Printing Services,639.88
2501345,3442344,Primesight Ltd#1,08/06/2015,48203,Marketing,Chief Executives,CX24002 - Marketing - Holding Code,"2,249.74"
739608,3443025,PRISM MEDICAL UK,04/06/2015,44051,Clients Aids & Adaptations,Adult Service,ICES,"1,608.75"
739608,3443629,PRISM MEDICAL UK,08/06/2015,44051,Clients Aids & Adaptations,Adult Service,ICES,"4,372.11"
739608,3443188,PRISM MEDICAL UK,08/06/2015,44051,Clients Aids & Adaptations,Adult Service,ICES,"4,372.11"
739608,3453749,PRISM MEDICAL UK,18/06/2015,44051,Clients Aids & Adaptations,Adult Service,ICES,631.06
739608,3446936,PRISM MEDICAL UK,18/06/2015,44051,Clients Aids & Adaptations,Adult Service,ICES,519.77
739608,3447465,PRISM MEDICAL UK,18/06/2015,44051,Clients Aids & Adaptations,Adult Service,ICES,"2,331.00"
739608,3458066,PRISM MEDICAL UK,25/06/2015,44051,Clients Aids & Adaptations,Adult Service,ICES,"1,439.79"
2729460,3442886,Proactive Personnel Ltd,04/06/2015,53102,Agency Staff  Other,Environmental Services,Transport Support Service,846.19
2729460,3456089,Proactive Personnel Ltd,25/06/2015,53102,Agency Staff  Other,Environmental Services,Transport Support Service,846.19
2729460,3456080,Proactive Personnel Ltd,25/06/2015,53102,Agency Staff  Other,Environmental Services,Transport Support Service,869.06
49008,3455979,PROGRESS CARE HOUSING ASSOCIATION,25/06/2015,52210,Contracted Services  Rental Voids,Adult Service,LD Purchaser Supported Housing,"1,819.04"
48778,3450360,PROQUEST INFORMATION & LEARNING LIMITED,15/06/2015,40753,Book Fund Expenditure,Development & Regeneration,DR67420 - Libraries Info. Services,"6,355.00"
596,3446713,PSI (RESOURCES) LTD,11/06/2015,Z6007,Z6007 - Inventory AP Accrual,Property Services,EAM Holding,635.00
596,3446734,PSI (RESOURCES) LTD,11/06/2015,Z6007,Z6007 - Inventory AP Accrual,Property Services,EAM Holding,"5,385.00"
596,3446007,PSI (RESOURCES) LTD,11/06/2015,Z6008,Expense AP Accrual,Bolton MBC Balance Sheet,Bolton MBC Balance Sheet,"1,611.23"
596,3446023,PSI (RESOURCES) LTD,11/06/2015,Z6008,Expense AP Accrual,Bolton MBC Balance Sheet,Bolton MBC Balance Sheet,"1,005.00"
596,3446685,PSI (RESOURCES) LTD,11/06/2015,Z6008,Expense AP Accrual,Bolton MBC Balance Sheet,Bolton MBC Balance Sheet,741.00
2526292,3446142,PSP Bolton (GR) LLP,11/06/2015,52200,Contracted Services,Chief Executives,CX43005 - Estates & Property Management,"3,025.00"
6585,3442770,PUDSEY DIAMOND ENGINEERING LTD,04/06/2015,40610,Direct Materials,Environmental Services,Lighting / Stores Billable Costs,"5,918.00"
263720,3443111,PUGH & COMPANY,04/06/2015,48502,Legal Fees,Chief Executives,CX40000 - Land and Property Portfolios,"16,900.00"
265233,3445747,QUADRANT SECURITY GROUP LTD,08/06/2015,25106,C.C.T.V.,Environmental Services,Security Services,"1,948.00"
2318333,3446867,QUICKSECURE LTD,11/06/2015,52200,Contracted Services,Public Health,PH03150 - Tobacco Control,"1,098.09"
644,3446030,R S TYRER LTD,11/06/2015,34405,Clients  Swimming Fares,Environmental Services,SNT Childrens Servs,"4,250.00"
2845300,3441744,Radcliffe Meadows Nursing Home,02/06/2015,54301,Residential Provision,Adult Service,LD Purchaser Residential Care,"5,600.00"
1569294,3450366,RAISE THE YOUTH FOUNDATION LTD,15/06/2015,52200,Contracted Services,Childrens Services,Youth Offending Team,"5,750.00"
6595,3441764,RANDOMLIGHT LTD#HEIGHTSIDE HOUSE,02/06/2015,54301,Residential Provision,Adult Service,MH Residential External Provision,"2,270.12"
6595,3441764,RANDOMLIGHT LTD#HEIGHTSIDE HOUSE,02/06/2015,54302,Nursing Provision,Adult Service,MH Residential External Provision,"13,648.52"
691,3453464,Rapid Computers Ltd#Rapid Technologies,18/06/2015,40101,Operational Equipment Maint,Childrens Services,Admin IT (Schools),"1,995.00"
1800291,3442433,RAPID PRIVATE HIRE LTD,04/06/2015,34402,Clients  Taxi Fares,Environmental Services,SNT Childrens Servs,673.00
42398,3441830,REDBANK CARE HOME#PAYEE VOYAGE NORTH,02/06/2015,54301,Residential Provision,Adult Service,LD Purchaser Residential Care,"4,692.20"
2678357,3441728,Redbricks Care Home,02/06/2015,54301,Residential Provision,Adult Service,OA  External Provision Residential,"1,607.20"
220467,3451701,REFRESHMENT SYSTEMS LTD,18/06/2015,41101,Catering ProvisionsFood,Environmental Services,EN91014 - Moss Bank Park Pavilion,520.02
746,3443195,REHABILITATION MANUFACTURING SVS LTD,04/06/2015,44051,Clients Aids & Adaptations,Adult Service,ICES,"2,543.00"
7864,3442267,RELPHS FUNERAL SERVICE,04/06/2015,52300,Client Support Costs,Childrens Services,CH43661 - FIAT,"1,400.00"
2576374,3443689,Renray Healthcare Ltd,08/06/2015,Z1051,Work in Progress Additions,Adult Service,Adult Services Balance Sheet,"24,208.74"
45014,3458252,RICHER SOUNDS PLC,25/06/2015,48203,Marketing,Chief Executives,CX24002 - Marketing - Holding Code,"1,778.75"
10146,3455788,RICOH UK LIMITED,22/06/2015,40141,Office Equipment Maintenance,Chief Executives,CX15001 - Text & Reprographics,885.22
6615,3447588,RIVERSIDE TRUCK RENTAL LTD,11/06/2015,33201,Transport Hire,Environmental Services,Transport Support Service,950.00
6615,3453629,RIVERSIDE TRUCK RENTAL LTD,18/06/2015,36200,Uninsured Losses  Vehicles,Environmental Services,Transport Support Service,"1,413.39"
2509317,3441898,RIVERVIEW NURSING HOME,02/06/2015,54302,Nursing Provision,Adult Service,OA  External Provision Residential,"1,821.40"
2596318,3441721,Rivington Park Care Home,02/06/2015,54301,Residential Provision,Adult Service,OA  External Provision Residential,"1,790.00"
2173291,3463036,RIVINGTON PIKE DOG HOTEL,29/06/2015,52300,Client Support Costs,Adult Service,MH Residential External Provision,735.00
6617,3441766,RIVINGTON VIEW NURSING HOME,02/06/2015,Z6011,Z6011 - CR Bal Hold A/c Exp,Adult Service,ADZ0802 - Health - Funded Nursing Care,880.00
6617,3441766,RIVINGTON VIEW NURSING HOME,02/06/2015,54301,Residential Provision,Adult Service,LD Purchaser Residential Care,"1,603.00"
6617,3441766,RIVINGTON VIEW NURSING HOME,02/06/2015,54301,Residential Provision,Adult Service,OA  External Provision Residential,"6,140.48"
6617,3441766,RIVINGTON VIEW NURSING HOME,02/06/2015,54302,Nursing Provision,Adult Service,OA  External Provision Residential,"3,277.59"
6619,3444594,ROBINSON PLANT HIRE,08/06/2015,33202,Plant Hire,Environmental Services,Activities and Operations,661.78
6619,3446003,ROBINSON PLANT HIRE,11/06/2015,33202,Plant Hire,Environmental Services,Activities and Operations,529.75
6619,3454289,ROBINSON PLANT HIRE,22/06/2015,33202,Plant Hire,Environmental Services,Activities and Operations,661.78
6619,3459279,ROBINSON PLANT HIRE,29/06/2015,33202,Plant Hire,Environmental Services,Activities and Operations,661.78
255491,3451692,ROGER HILLMAN,18/06/2015,48502,Legal Fees,Adult Service,ACM  Management,825.00
2535349,3444453,Room Four Dessert Limited,08/06/2015,45914,Commissioning Worklessness,Development & Regeneration,The Work Programme,750.00
2535349,3463023,Room Four Dessert Limited,29/06/2015,45914,Commissioning Worklessness,Development & Regeneration,The Work Programme,750.00
6623,3441767,ROSE COURT NURSING HOME,02/06/2015,Z6011,Z6011 - CR Bal Hold A/c Exp,Adult Service,ADZ0802 - Health - Funded Nursing Care,920.00
6623,3441767,ROSE COURT NURSING HOME,02/06/2015,54301,Residential Provision,Adult Service,OA  External Provision Residential,"8,418.80"
6623,3441767,ROSE COURT NURSING HOME,02/06/2015,54302,Nursing Provision,Adult Service,OA  External Provision Residential,"12,086.99"
2845299,3441743,Roseacre,02/06/2015,54301,Residential Provision,Adult Service,OA  External Provision Residential,"1,596.00"
2806437,3441742,Rosemary Care Home Limited,02/06/2015,54301,Residential Provision,Adult Service,OA  External Provision Residential,"1,573.48"
41142,3447041,ROSSENDALES COLLECT LTD,11/06/2015,48509,Other Fees,Chief Executives,CX56200 - HB Overpayments Team,541.68
2013332,3441864,ROUNDHAM COURT#EPH,02/06/2015,54301,Residential Provision,Adult Service,OA  External Provision Residential,"1,724.00"
162251,3446861,ROWLANDS PHARMACY,11/06/2015,52200,Contracted Services,Public Health,PH03150 - Tobacco Control,"1,737.83"
162251,3450046,ROWLANDS PHARMACY,15/06/2015,52200,Contracted Services,Adult Service,Drugs Pooled Treatment Budget,653.50
162251,3450045,ROWLANDS PHARMACY,15/06/2015,52200,Contracted Services,Adult Service,Drugs Pooled Treatment Budget,608.10
162251,3457673,ROWLANDS PHARMACY,25/06/2015,52200,Contracted Services,Adult Service,Drugs Pooled Treatment Budget,538.90
162251,3457674,ROWLANDS PHARMACY,25/06/2015,52200,Contracted Services,Adult Service,Drugs Pooled Treatment Budget,611.30
6629,3442900,ROYAL MAIL GROUP LTD,04/06/2015,79000,Election Expenses,Chief Executives,CX13101 - Elections,759.67
6629,3443101,ROYAL MAIL GROUP LTD,04/06/2015,79000,Election Expenses,Chief Executives,CX13101 - Elections,"9,113.57"
6629,3442904,ROYAL MAIL GROUP LTD,04/06/2015,79000,Election Expenses,Chief Executives,CX13101 - Elections,"2,338.20"
6629,3442410,ROYAL MAIL GROUP LTD,04/06/2015,45000,Postages Direct Costs,Chief Executives,CX56100 - Housing Benefits,"1,048.51"
6629,3442410,ROYAL MAIL GROUP LTD,04/06/2015,45000,Postages Direct Costs,Chief Executives,CX57500 - Council Tax,"1,858.73"
6629,3445702,ROYAL MAIL GROUP LTD,08/06/2015,45000,Postages Direct Costs,Chief Executives,CX56100 - Housing Benefits,888.33
6629,3445702,ROYAL MAIL GROUP LTD,08/06/2015,45000,Postages Direct Costs,Chief Executives,CX57500 - Council Tax,"1,442.96"
6629,3453445,ROYAL MAIL GROUP LTD,18/06/2015,45000,Postages Direct Costs,Chief Executives,CX56100 - Housing Benefits,959.19
6629,3453445,ROYAL MAIL GROUP LTD,18/06/2015,45000,Postages Direct Costs,Chief Executives,CX57500 - Council Tax,"1,702.80"
6629,3453445,ROYAL MAIL GROUP LTD,18/06/2015,45000,Postages Direct Costs,Chief Executives,CX57610 - Accounts Receivable (R & B),823.04
6629,3458783,ROYAL MAIL GROUP LTD,25/06/2015,45000,Postages Direct Costs,Chief Executives,CX56100 - Housing Benefits,"1,015.76"
6629,3458783,ROYAL MAIL GROUP LTD,25/06/2015,45000,Postages Direct Costs,Chief Executives,CX57500 - Council Tax,"1,201.02"
65880,3442814,ROYAL MENCAP SOCIETY#MENCAP,04/06/2015,54301,Residential Provision,Adult Service,LD Purchaser Residential Care,"5,061.32"
132229,3443564,RPS TRAINING#PAYEE RICHARD STEPHENSON,11/06/2015,Z6008,Expense AP Accrual,Bolton MBC Balance Sheet,Bolton MBC Balance Sheet,"1,920.00"
132229,3443564,RPS TRAINING#PAYEE RICHARD STEPHENSON,11/06/2015,Z9765,EAM Suspense Account,Bolton MBC Balance Sheet,Bolton MBC Balance Sheet,720.00
268667,3457676,S & S PHARMACY#WELLBROOK,25/06/2015,52200,Contracted Services,Adult Service,Drugs Pooled Treatment Budget,544.80
1637,3456671,SAFETY KLEEN UK  LTD,25/06/2015,40101,Operational Equipment Maint,Environmental Services,Transport Support Service,674.67
10259,3448055,Salford City Council,11/06/2015,50002,Other Agency/Contracted Services,Childrens Services,CH43693 - Healthwatch,"6,762.50"
10259,3457923,Salford City Council,25/06/2015,20501,Engineering Work,Environmental Services,Highway Regulation & Inspection,"4,796.24"
2267457,3453465,SALFORD PROFESSIONAL DEVELOPMENT LTD,18/06/2015,19104,Training Exp  Ext Seminars,Environmental Services,Highway Management,900.00
2896298,3453137,Santia Consulting Limited,18/06/2015,19100,Training Exps Tuition Fees,Chief Executives,CX43000 - Business Support,"2,395.00"
46513,3445755,SCOTTISH & SOUTHERN ENERGY PLC,08/06/2015,21100,Electricity  General,Environmental Services,Assets,"3,716.90"
46513,3445755,SCOTTISH & SOUTHERN ENERGY PLC,08/06/2015,21100,Electricity  General,Chief Executives,CX44002 - Energy Payments Account,"1,662.58"
46513,3445755,SCOTTISH & SOUTHERN ENERGY PLC,08/06/2015,21100,Electricity  General,Environmental Services,Depots,"1,231.80"
46513,3445755,SCOTTISH & SOUTHERN ENERGY PLC,08/06/2015,21100,Electricity  General,Childrens Services,Farnworth Youth Centre (Yth Srv),692.86
46513,3445755,SCOTTISH & SOUTHERN ENERGY PLC,08/06/2015,21100,Electricity  General,Childrens Services,Harvey CC,"1,502.74"
46513,3445755,SCOTTISH & SOUTHERN ENERGY PLC,08/06/2015,21100,Electricity  General,Childrens Services,Heywood YP Centre,"1,428.12"
46513,3445755,SCOTTISH & SOUTHERN ENERGY PLC,08/06/2015,21100,Electricity  General,Childrens Services,Lord Street and Grosvenor CC,694.35
46513,3445691,SCOTTISH & SOUTHERN ENERGY PLC,08/06/2015,21100,Electricity  General,Chief Executives,CX41200 - Adult Social Care Portfolio,"2,999.18"
46513,3463093,SCOTTISH & SOUTHERN ENERGY PLC,29/06/2015,21100,Electricity  General,Housing GRF,Access & Advice Housing Options Centre,774.28
46513,3463093,SCOTTISH & SOUTHERN ENERGY PLC,29/06/2015,21100,Electricity  General,Chief Executives,CX40000 - Land and Property Portfolios,"2,947.18"
46513,3463093,SCOTTISH & SOUTHERN ENERGY PLC,29/06/2015,21100,Electricity  General,Chief Executives,CX41000 - Admin Buildings Portfolio,"2,947.18"
46513,3463093,SCOTTISH & SOUTHERN ENERGY PLC,29/06/2015,21100,Electricity  General,Chief Executives,CX41200 - Adult Social Care Portfolio,"8,886.19"
46513,3463093,SCOTTISH & SOUTHERN ENERGY PLC,29/06/2015,21100,Electricity  General,Environmental Services,Depots,"1,238.41"
46513,3463093,SCOTTISH & SOUTHERN ENERGY PLC,29/06/2015,21100,Electricity  General,Development & Regeneration,DR67221 - Smithills Hall Museum,"2,489.02"
46513,3463093,SCOTTISH & SOUTHERN ENERGY PLC,29/06/2015,21100,Electricity  General,Development & Regeneration,DR67260 - Museum Premises,892.12
46513,3463093,SCOTTISH & SOUTHERN ENERGY PLC,29/06/2015,21100,Electricity  General,Environmental Services,Markets  Rent Account,"1,362.71"
46513,3463093,SCOTTISH & SOUTHERN ENERGY PLC,29/06/2015,21100,Electricity  General,Development & Regeneration,The Leverhulme Centre,"4,017.18"
46513,3463117,SCOTTISH & SOUTHERN ENERGY PLC,29/06/2015,21100,Electricity  General,Environmental Services,Assets,"5,457.88"
46513,3463117,SCOTTISH & SOUTHERN ENERGY PLC,29/06/2015,21100,Electricity  General,Environmental Services,Bereavement Services,"1,894.22"
46513,3463117,SCOTTISH & SOUTHERN ENERGY PLC,29/06/2015,21100,Electricity  General,Chief Executives,CX23003 - Halliwell UCAN,723.86
46513,3463117,SCOTTISH & SOUTHERN ENERGY PLC,29/06/2015,21100,Electricity  General,Chief Executives,CX40000 - Land and Property Portfolios,"3,219.87"
46513,3463117,SCOTTISH & SOUTHERN ENERGY PLC,29/06/2015,21100,Electricity  General,Chief Executives,CX41000 - Admin Buildings Portfolio,"2,058.33"
46513,3463117,SCOTTISH & SOUTHERN ENERGY PLC,29/06/2015,21100,Electricity  General,Chief Executives,CX44002 - Energy Payments Account,"1,156.03"
46513,3463117,SCOTTISH & SOUTHERN ENERGY PLC,29/06/2015,21100,Electricity  General,Childrens Services,Disability Serv Trackside Approach,666.95
46513,3463117,SCOTTISH & SOUTHERN ENERGY PLC,29/06/2015,21100,Electricity  General,Development & Regeneration,DR67208 - Libraries - Harwood,"1,858.83"
46513,3463117,SCOTTISH & SOUTHERN ENERGY PLC,29/06/2015,21100,Electricity  General,Development & Regeneration,DR67210 - Libraries - Westhoughton,"2,058.22"
46513,3463117,SCOTTISH & SOUTHERN ENERGY PLC,29/06/2015,21100,Electricity  General,Development & Regeneration,DR67211 - Libraries - Blackrod,699.00
46513,3463117,SCOTTISH & SOUTHERN ENERGY PLC,29/06/2015,21100,Electricity  General,Development & Regeneration,DR67220 - Hall I'th Wood Museum,"1,073.92"
46513,3463117,SCOTTISH & SOUTHERN ENERGY PLC,29/06/2015,21100,Electricity  General,Childrens Services,Harwood Youth Centre (Yth Srv),990.53
46513,3463117,SCOTTISH & SOUTHERN ENERGY PLC,29/06/2015,21100,Electricity  General,Environmental Services,Heaton Fold,713.33
46513,3463117,SCOTTISH & SOUTHERN ENERGY PLC,29/06/2015,21100,Electricity  General,Childrens Services,Horwich Youth Centre (Yth Srv),668.78
46513,3463117,SCOTTISH & SOUTHERN ENERGY PLC,29/06/2015,21100,Electricity  General,Childrens Services,Oxford Grove CC,"1,045.49"
46513,3463115,SCOTTISH & SOUTHERN ENERGY PLC,29/06/2015,21100,Electricity  General,Housing GRF,Access & Advice Caravan Sites,"2,276.45"
46513,3463115,SCOTTISH & SOUTHERN ENERGY PLC,29/06/2015,21100,Electricity  General,Housing GRF,Access & Advice Housing Options Centre,682.96
46513,3463115,SCOTTISH & SOUTHERN ENERGY PLC,29/06/2015,21100,Electricity  General,Chief Executives,CX40000 - Land and Property Portfolios,"2,282.79"
46513,3463115,SCOTTISH & SOUTHERN ENERGY PLC,29/06/2015,21100,Electricity  General,Chief Executives,CX41000 - Admin Buildings Portfolio,"2,282.79"
46513,3463115,SCOTTISH & SOUTHERN ENERGY PLC,29/06/2015,21100,Electricity  General,Chief Executives,CX41200 - Adult Social Care Portfolio,"8,926.40"
46513,3463115,SCOTTISH & SOUTHERN ENERGY PLC,29/06/2015,21100,Electricity  General,Environmental Services,Depots,959.87
46513,3463115,SCOTTISH & SOUTHERN ENERGY PLC,29/06/2015,21100,Electricity  General,Development & Regeneration,DR67221 - Smithills Hall Museum,"1,928.06"
46513,3463115,SCOTTISH & SOUTHERN ENERGY PLC,29/06/2015,21100,Electricity  General,Development & Regeneration,DR67260 - Museum Premises,964.25
46513,3463115,SCOTTISH & SOUTHERN ENERGY PLC,29/06/2015,21100,Electricity  General,Environmental Services,Markets  Rent Account,"1,056.07"
46513,3463094,SCOTTISH & SOUTHERN ENERGY PLC,29/06/2015,21100,Electricity  General,Housing GRF,Dispersed Properties,665.27
16307,3454041,SEARCH MANCHESTER#DIVISION OF WILLIAM G SEARCH LTD,25/06/2015,48203,Marketing,Chief Executives,CX24002 - Marketing - Holding Code,645.00
2613299,3442735,Sector Security Services Limited,04/06/2015,53102,Agency Staff  Other,Environmental Services,Security Services,"1,247.12"
2613299,3442744,Sector Security Services Limited,04/06/2015,53102,Agency Staff  Other,Environmental Services,Security Services,596.05
2613299,3442736,Sector Security Services Limited,04/06/2015,53102,Agency Staff  Other,Environmental Services,Security Services,"1,412.18"
2613299,3442738,Sector Security Services Limited,04/06/2015,53102,Agency Staff  Other,Environmental Services,Security Services,565.42
2613299,3442746,Sector Security Services Limited,04/06/2015,53102,Agency Staff  Other,Environmental Services,Security Services,596.05
2613299,3442794,Sector Security Services Limited,04/06/2015,53102,Agency Staff  Other,Environmental Services,Security Services,536.45
2613299,3442733,Sector Security Services Limited,04/06/2015,53102,Agency Staff  Other,Environmental Services,Security Services,"1,357.16"
2613299,3442793,Sector Security Services Limited,04/06/2015,53102,Agency Staff  Other,Environmental Services,Security Services,742.77
2613299,3442795,Sector Security Services Limited,04/06/2015,44401,Other Security Expenses,Adult Service,LD Purchaser Supported Housing,"1,704.60"
2613299,3442740,Sector Security Services Limited,04/06/2015,53102,Agency Staff  Other,Environmental Services,Security Services,"1,549.73"
2613299,3453220,Sector Security Services Limited,18/06/2015,53102,Agency Staff  Other,Environmental Services,Security Services,825.30
2613299,3453222,Sector Security Services Limited,18/06/2015,53102,Agency Staff  Other,Environmental Services,Security Services,596.05
2613299,3453214,Sector Security Services Limited,18/06/2015,53102,Agency Staff  Other,Environmental Services,Security Services,"1,247.12"
2613299,3453236,Sector Security Services Limited,18/06/2015,53102,Agency Staff  Other,Environmental Services,Security Services,660.24
2613299,3453216,Sector Security Services Limited,22/06/2015,53102,Agency Staff  Other,Environmental Services,Security Services,"1,467.20"
10235,3448076,SECURE INDUSTRIAL DOORS,11/06/2015,Z1051,Work in Progress Additions,Highways,Stores,"8,500.00"
10235,3457902,SECURE INDUSTRIAL DOORS,25/06/2015,20101,Programmed Maint. Work,Environmental Services,Depots,"1,225.00"
1745,3454866,Sefton MBC,22/06/2015,48509,Other Fees,Chief Executives,CX10000 - Legal and Democratic Mgt,"1,000.00"
6656,3443791,SEVA LINE,08/06/2015,52200,Contracted Services,Adult Service,OA  Home Care Services external provision,"5,140.96"
1609312,3450312,SEVACARE UK LTD,15/06/2015,52200,Contracted Services,Adult Service,OA  Home Care Services external provision,"31,527.97"
6659,3441769,SHANNON COURT NURSING HOME,02/06/2015,Z6011,Z6011 - CR Bal Hold A/c Exp,Adult Service,ADZ0802 - Health - Funded Nursing Care,"8,934.57"
6659,3441769,SHANNON COURT NURSING HOME,02/06/2015,54302,Nursing Provision,Adult Service,MH Residential External Provision,"1,647.08"
6659,3441769,SHANNON COURT NURSING HOME,02/06/2015,54301,Residential Provision,Adult Service,OA  External Provision Residential,"34,624.88"
6659,3441769,SHANNON COURT NURSING HOME,02/06/2015,54302,Nursing Provision,Adult Service,OA  External Provision Residential,"35,708.32"
6659,3441768,SHANNON COURT NURSING HOME,02/06/2015,Z6011,Z6011 - CR Bal Hold A/c Exp,Adult Service,ADZ0802 - Health - Funded Nursing Care,839.14
6659,3441768,SHANNON COURT NURSING HOME,02/06/2015,54302,Nursing Provision,Adult Service,OA  External Provision Residential,"2,647.10"
91549,3458980,SHANTI MEDICAL CENTRE#P82609,29/06/2015,52200,Contracted Services,Public Health,Primary Care,526.00
91549,3459140,SHANTI MEDICAL CENTRE#P82609,29/06/2015,52200,Contracted Services,Public Health,PH04460 - PH Commissioning,"3,972.00"
183989,3446866,SHANTI MEDI-CARE LTD,11/06/2015,52200,Contracted Services,Public Health,PH03150 - Tobacco Control,588.50
152595,3443647,SHARED CARE#MAPLE LEAF CARE LIMITED,08/06/2015,52000,Vol Assoc Grants  General,Childrens Services,Res Serv Agency Placements,"6,100.00"
142271,3441836,SHAWCROSS CARE HOME#TAMENG CARE LTD,02/06/2015,54301,Residential Provision,Adult Service,OA  External Provision Residential,"1,556.00"
203373,3455000,SIGNHEALTH,22/06/2015,52200,Contracted Services,Adult Service,MH Residential External Provision,"1,317.88"
203373,3454996,SIGNHEALTH,22/06/2015,52200,Contracted Services,Adult Service,MH Residential External Provision,"1,113.01"
1827,3443545,SIGNPOST SOLUTIONS LTD T/A SIGNFIX,08/06/2015,Z6007,Z6007 - Inventory AP Accrual,Highways,Stores,"2,570.00"
2845301,3442893,Signs of the Times Ltd,04/06/2015,Z1051,Work in Progress Additions,Development & Regeneration,Development & Regeneration Capital,799.40
1097786,3447975,SIMPLYMED LTD,11/06/2015,44051,Clients Aids & Adaptations,Adult Service,ICES,"1,579.85"
1097786,3455994,SIMPLYMED LTD,25/06/2015,44051,Clients Aids & Adaptations,Adult Service,ICES,"1,095.00"
2267489,3441676,SK KITS,04/06/2015,42001,Uniforms,Childrens Services,Youth Service,987.00
2267489,3442201,SK KITS,04/06/2015,42001,Uniforms,Childrens Services,Yth Ser  Training & Development,"1,720.80"
132843,3459174,SKILLGATE LTD,29/06/2015,19100,Training Exps Tuition Fees,Chief Executives,CX21200 - Organisational Development,895.00
211749,3445978,SLATER SAFETY SUPPLIES,11/06/2015,Z6007,Z6007 - Inventory AP Accrual,Highways,Stores,596.40
164104,3442585,SMITHS EQUIPMENT HIRE LTD#2,04/06/2015,40102,Operational Equipment Rental,Environmental Services,Activities and Operations,760.00
164104,3453747,SMITHS EQUIPMENT HIRE LTD#2,18/06/2015,33202,Plant Hire,Environmental Services,Activities and Operations,849.24
1556141,3446084,SOCIAL CARE SERVICES GROUP,11/06/2015,52000,Vol Assoc Grants  General,Childrens Services,Disability Serv External Provision,"2,499.98"
1556141,3446917,SOCIAL CARE SERVICES GROUP,11/06/2015,52000,Vol Assoc Grants  General,Childrens Services,Res Serv Agency Placements,"4,675.00"
1556141,3457703,SOCIAL CARE SERVICES GROUP,25/06/2015,52000,Vol Assoc Grants  General,Childrens Services,Res Serv Agency Placements,"8,250.00"
1556141,3457705,SOCIAL CARE SERVICES GROUP,25/06/2015,52000,Vol Assoc Grants  General,Childrens Services,Res Serv Agency Placements,"8,250.00"
8492,3456710,SOFTWARE BOX LTD,25/06/2015,45431,Computer Software Licences,Chief Executives,CX58270 - Microsoft Licenses,"306,744.84"
1108806,3453425,SONGSMITH RECORDS LTD,18/06/2015,48203,Marketing,Chief Executives,CX24002 - Marketing - Holding Code,"2,000.00"
6672,3444796,SOUTHERNS OFFICE INTERIORS LTD,08/06/2015,40110,Op Equip Furniture Purchase,Childrens Services,Horwich Youth Centre (Yth Srv),980.00
6672,3445913,SOUTHERNS OFFICE INTERIORS LTD,11/06/2015,Z1051,Work in Progress Additions,Chief Executives,CXZ9999 - Chief Execs Balance Sheet,"2,011.00"
6672,3445920,SOUTHERNS OFFICE INTERIORS LTD,11/06/2015,Z1051,Work in Progress Additions,Chief Executives,CXZ9999 - Chief Execs Balance Sheet,"1,622.04"
6673,3441796,SOUTHLANDS RESIDENTIAL HOME#SOUTHLANDS,02/06/2015,Z6011,Z6011 - CR Bal Hold A/c Exp,Adult Service,ADZ1201 - 3rd Party Social Care Contributions,"1,885.71"
6673,3441796,SOUTHLANDS RESIDENTIAL HOME#SOUTHLANDS,02/06/2015,Z5211,Z5211 - Debit Bal Holding A/c Exp,Adult Service,ADZ1202 - Client Property Top Ups,"1,023.00"
6673,3441796,SOUTHLANDS RESIDENTIAL HOME#SOUTHLANDS,02/06/2015,54301,Residential Provision,Adult Service,OA  External Provision Residential,"15,248.36"
6673,3441795,SOUTHLANDS RESIDENTIAL HOME#SOUTHLANDS,02/06/2015,Z6011,Z6011 - CR Bal Hold A/c Exp,Adult Service,ADZ1201 - 3rd Party Social Care Contributions,"1,153.29"
6673,3441795,SOUTHLANDS RESIDENTIAL HOME#SOUTHLANDS,02/06/2015,Z5211,Z5211 - Debit Bal Holding A/c Exp,Adult Service,ADZ1202 - Client Property Top Ups,750.00
6673,3441795,SOUTHLANDS RESIDENTIAL HOME#SOUTHLANDS,02/06/2015,54301,Residential Provision,Adult Service,OA  External Provision Residential,"3,599.74"
6673,3444259,SOUTHLANDS RESIDENTIAL HOME#SOUTHLANDS,11/06/2015,54301,Residential Provision,Adult Service,OA  External Provision Residential,"5,209.75"
10140,3441820,SOUTHLEA RESIDENTIAL CARE HOME,02/06/2015,54301,Residential Provision,Adult Service,MH Residential External Provision,"1,683.76"
991723,3441852,SOUTHVIEW LODGE RESIDENTIAL CARE HOME,02/06/2015,54301,Residential Provision,Adult Service,OA  External Provision Residential,"1,444.00"
1899,3459162,SPECIAL NEEDS UNDER FIVES#SNUFS,29/06/2015,52000,Vol Assoc Grants  General,Childrens Services,Admin Commissioning,"10,000.00"
2595303,3453460,Specialised Homes and Lodgings Ltd,18/06/2015,52200,Contracted Services,Adult Service,LD Purchaser Supported Housing,"2,785.71"
2595303,3453471,Specialised Homes and Lodgings Ltd,18/06/2015,52200,Contracted Services,Adult Service,LD Purchaser Supported Housing,"3,985.71"
2595303,3453462,Specialised Homes and Lodgings Ltd,18/06/2015,52200,Contracted Services,Adult Service,LD Purchaser Supported Housing,"2,828.57"
2595303,3453463,Specialised Homes and Lodgings Ltd,18/06/2015,52200,Contracted Services,Adult Service,LD Purchaser Supported Housing,"3,857.14"
2338384,3441880,SPECIALITY CARE (REIT HOMES) LTD T/A HOUNDSWOOD HOUSE CARE HOME,02/06/2015,54301,Residential Provision,Adult Service,OA  External Provision Residential,"4,052.40"
6675,3443676,SPECTRA SECURITY LTD,08/06/2015,Z6008,Expense AP Accrual,Bolton MBC Balance Sheet,Bolton MBC Balance Sheet,"1,449.00"
6675,3454847,SPECTRA SECURITY LTD,22/06/2015,Z6008,Expense AP Accrual,Bolton MBC Balance Sheet,Bolton MBC Balance Sheet,580.00
6675,3445988,SPECTRA SECURITY LTD,22/06/2015,Z6008,Expense AP Accrual,Bolton MBC Balance Sheet,Bolton MBC Balance Sheet,612.00
113123,3441833,SPENNYMOOR CARE HOME LTD,02/06/2015,Z6011,Z6011 - CR Bal Hold A/c Exp,Adult Service,ADZ1201 - 3rd Party Social Care Contributions,"1,618.00"
113123,3441833,SPENNYMOOR CARE HOME LTD,02/06/2015,54301,Residential Provision,Adult Service,OA  External Provision Residential,"13,451.28"
40478,3442855,SPICE VALLEY RESTAURANTS LTD#2,04/06/2015,48509,Other Fees,Development & Regeneration,Marketing,"1,000.00"
2428314,3459143,Spring House Surgery#P82014,29/06/2015,52200,Contracted Services,Public Health,PH04460 - PH Commissioning,"2,484.00"
2310407,3459144,SPRING VIEW MEDICAL CENTRE#P82613,29/06/2015,52200,Contracted Services,Public Health,PH04460 - PH Commissioning,"1,332.00"
6679,3441771,ST CATHERINES CARE HOME,02/06/2015,Z6011,Z6011 - CR Bal Hold A/c Exp,Adult Service,ADZ0802 - Health - Funded Nursing Care,"6,992.57"
6679,3441771,ST CATHERINES CARE HOME,02/06/2015,54301,Residential Provision,Adult Service,OA  External Provision Residential,"2,709.39"
6679,3441771,ST CATHERINES CARE HOME,02/06/2015,54302,Nursing Provision,Adult Service,OA  External Provision Residential,"28,319.75"
6679,3441771,ST CATHERINES CARE HOME,02/06/2015,54301,Residential Provision,Adult Service,PD Purchaser Residential Care,"1,603.00"
6679,3441771,ST CATHERINES CARE HOME,02/06/2015,54302,Nursing Provision,Adult Service,PD Purchaser Residential Care,"1,545.00"
48719,3463048,St Philip's PCC,29/06/2015,79000,Election Expenses,Chief Executives,CX13101 - Elections,530.00
6682,3453468,ST VINCENTS HOUSING ASSOCIATION LTD,18/06/2015,52210,Contracted Services  Rental Voids,Adult Service,LD Purchaser Supported Housing,650.76
6682,3453469,ST VINCENTS HOUSING ASSOCIATION LTD,18/06/2015,52210,Contracted Services  Rental Voids,Adult Service,LD Purchaser Supported Housing,547.36
2397424,3441889,STANLEY GRANGE,02/06/2015,54301,Residential Provision,Adult Service,LD Purchaser Residential Care,"4,867.96"
6686,3441772,STARMOUNT VILLA RESIDENTIAL CARE HOME,02/06/2015,Z6011,Z6011 - CR Bal Hold A/c Exp,Adult Service,ADZ1201 - 3rd Party Social Care Contributions,"1,261.33"
6686,3441772,STARMOUNT VILLA RESIDENTIAL CARE HOME,02/06/2015,54301,Residential Provision,Adult Service,OA  External Provision Residential,"9,006.60"
798,3446923,Stockport MBC,11/06/2015,48509,Other Fees,Development & Regeneration,Development Management,"1,204.40"
22970,3454851,STOCKPORT PSYCHOLOGY SERVICES,22/06/2015,48509,Other Fees,Childrens Services,Management Team,550.20
22970,3454850,STOCKPORT PSYCHOLOGY SERVICES,22/06/2015,48509,Other Fees,Childrens Services,Management Team,965.45
801,3459145,STONEHILL MEDICAL CENTRE#P82008,29/06/2015,52200,Contracted Services,Public Health,PH04460 - PH Commissioning,"2,424.00"
801,3458985,STONEHILL MEDICAL CENTRE#P82008,29/06/2015,52200,Contracted Services,Public Health,Primary Care,"2,080.00"
66472,3451730,STONHAM,18/06/2015,52200,Contracted Services,Adult Service,Supporting People  Capital Financing,"117,000.00"
6691,3441798,STRATHMORE NURSING HOME#WHITEHILL HOMES LTD,02/06/2015,Z6011,Z6011 - CR Bal Hold A/c Exp,Adult Service,ADZ0802 - Health - Funded Nursing Care,"1,928.00"
6691,3441798,STRATHMORE NURSING HOME#WHITEHILL HOMES LTD,02/06/2015,54301,Residential Provision,Adult Service,OA  External Provision Residential,"2,268.82"
6691,3441798,STRATHMORE NURSING HOME#WHITEHILL HOMES LTD,02/06/2015,54302,Nursing Provision,Adult Service,OA  External Provision Residential,"6,910.33"
2427312,3459127,SUDHA LIMITED#P82034,29/06/2015,52200,Contracted Services,Public Health,PH04460 - PH Commissioning,"1,596.00"
2600299,3444809,Sue Lomas Ltd,08/06/2015,19100,Training Exps Tuition Fees,Chief Executives,CX21202 - Workforce Development Team,"1,125.00"
7857,3441800,SUNNYSIDE RESIDENTIAL HOME,02/06/2015,54301,Residential Provision,Adult Service,MH Residential External Provision,"1,545.00"
7857,3441800,SUNNYSIDE RESIDENTIAL HOME,02/06/2015,54301,Residential Provision,Adult Service,OA  External Provision Residential,"31,135.20"
6692,3447413,SUPPLIES TEAM LIMITED,11/06/2015,26001,Hygiene Requisite,Chief Executives,CX43001 - Operational Facilities Management,671.52
6692,3442293,SUPPLIES TEAM LIMITED,18/06/2015,45405,Computer Consumables,Childrens Services,"Sport, Health & Inclusion General",741.70
1966295,3444468,SUPPORTED HOUSING FOR  REDACTED - PERSONAL DATA#LIFEWAYS,08/06/2015,52200,Contracted Services,Adult Service,LD Purchaser Supported Housing,"13,619.80"
1966296,3444469,SUPPORTED HOUSING FOR  REDACTED - PERSONAL DATA#LIFEWAYS,08/06/2015,52200,Contracted Services,Adult Service,LD Purchaser Supported Housing,"21,837.00"
1967294,3444493,SUPPORTED HOUSING FOR  REDACTED - PERSONAL DATA#LIFEWAYS,08/06/2015,52200,Contracted Services,Adult Service,LD Purchaser Supported Housing,"11,590.70"
1967295,3444494,SUPPORTED HOUSING FOR  REDACTED - PERSONAL DATA#LIFEWAYS,08/06/2015,52200,Contracted Services,Adult Service,LD Purchaser Supported Housing,"12,112.85"
1966292,3444470,SUPPORTED HOUSING FOR  REDACTED - PERSONAL DATA#LIFEWAYS,08/06/2015,52200,Contracted Services,Adult Service,LD Purchaser Supported Housing,"10,563.88"
1967301,3444495,SUPPORTED HOUSING FOR  REDACTED - PERSONAL DATA#LIFEWAYS,08/06/2015,52200,Contracted Services,Adult Service,LD Purchaser Supported Housing,"7,192.00"
1847290,3444476,SUPPORTED HOUSING FOR  REDACTED - PERSONAL DATA#LIFEWAYS,08/06/2015,52200,Contracted Services,Adult Service,LD Purchaser Supported Housing,"6,742.40"
2335296,3444496,SUPPORTED HOUSING FOR  REDACTED - PERSONAL DATA#LIFEWAYS,08/06/2015,52200,Contracted Services,Adult Service,LD Purchaser Supported Housing,"12,252.00"
2335290,3444471,SUPPORTED HOUSING FOR  REDACTED - PERSONAL DATA#LIFEWAYS,08/06/2015,52200,Contracted Services,Adult Service,LD Purchaser Supported Housing,"17,664.13"
1967300,3444497,SUPPORTED HOUSING FOR  REDACTED - PERSONAL DATA#LIFEWAYS,08/06/2015,52200,Contracted Services,Adult Service,LD Purchaser Supported Housing,"18,469.00"
1967296,3444498,SUPPORTED HOUSING FOR  REDACTED - PERSONAL DATA#LIFEWAYS,08/06/2015,52200,Contracted Services,Adult Service,LD Purchaser Supported Housing,"12,378.50"
1967299,3444499,SUPPORTED HOUSING FOR  REDACTED - PERSONAL DATA#LIFEWAYS,08/06/2015,52200,Contracted Services,Adult Service,LD Purchaser Supported Housing,"6,433.00"
1967291,3444500,SUPPORTED HOUSING FOR  REDACTED - PERSONAL DATA#LIFEWAYS,08/06/2015,52200,Contracted Services,Adult Service,LD Purchaser Supported Housing,"6,433.00"
1967293,3444501,SUPPORTED HOUSING FOR  REDACTED - PERSONAL DATA#LIFEWAYS,08/06/2015,52200,Contracted Services,Adult Service,LD Purchaser Supported Housing,"11,746.00"
1967292,3444502,SUPPORTED HOUSING FOR  REDACTED - PERSONAL DATA#LIFEWAYS,08/06/2015,52200,Contracted Services,Adult Service,LD Purchaser Supported Housing,"6,433.00"
2335291,3444472,SUPPORTED HOUSING FOR  REDACTED - PERSONAL DATA#LIFEWAYS,08/06/2015,52200,Contracted Services,Adult Service,LD Purchaser Supported Housing,"11,310.60"
1966294,3444473,SUPPORTED HOUSING FOR  REDACTED - PERSONAL DATA#LIFEWAYS,08/06/2015,52200,Contracted Services,Adult Service,PD Purchaser Supported Housing,"18,137.80"
2335292,3444474,SUPPORTED HOUSING FOR  REDACTED - PERSONAL DATA#LIFEWAYS,08/06/2015,52200,Contracted Services,Adult Service,LD Purchaser Supported Housing,"11,348.25"
2335297,3444503,SUPPORTED HOUSING FOR  REDACTED - PERSONAL DATA#LIFEWAYS,08/06/2015,52200,Contracted Services,Adult Service,LD Purchaser Supported Housing,"12,688.43"
2335298,3444504,SUPPORTED HOUSING FOR  REDACTED - PERSONAL DATA#LIFEWAYS,08/06/2015,52200,Contracted Services,Adult Service,LD Purchaser Supported Housing,"14,124.20"
1967290,3444475,SUPPORTED HOUSING FOR  REDACTED - PERSONAL DATA#LIFEWAYS,08/06/2015,52200,Contracted Services,Adult Service,LD Purchaser Supported Housing,"6,039.60"
1967298,3444505,SUPPORTED HOUSING FOR  REDACTED - PERSONAL DATA#LIFEWAYS,08/06/2015,52200,Contracted Services,Adult Service,LD Purchaser Supported Housing,"7,419.70"
2335299,3444506,SUPPORTED HOUSING FOR  REDACTED - PERSONAL DATA#LIFEWAYS,08/06/2015,52200,Contracted Services,Adult Service,LD Purchaser Supported Housing,"13,264.00"
2335300,3444507,SUPPORTED HOUSING FOR  REDACTED - PERSONAL DATA#LIFEWAYS,08/06/2015,52200,Contracted Services,Adult Service,LD Purchaser Supported Housing,"10,987.00"
2335294,3444477,SUPPORTED HOUSING FOR  REDACTED - PERSONAL DATA#LIFEWAYS,08/06/2015,52200,Contracted Services,Adult Service,LD Purchaser Supported Housing,"14,056.00"
1966293,3444479,SUPPORTED HOUSING FOR  REDACTED - PERSONAL DATA#LIFEWAYS,08/06/2015,52200,Contracted Services,Adult Service,LD Purchaser Supported Housing,"8,298.60"
1966291,3444480,SUPPORTED HOUSING FOR  REDACTED - PERSONAL DATA#LIFEWAYS,08/06/2015,52200,Contracted Services,Adult Service,LD Purchaser Supported Housing,"13,353.20"
2335295,3444481,SUPPORTED HOUSING FOR  REDACTED - PERSONAL DATA#LIFEWAYS,08/06/2015,52200,Contracted Services,Adult Service,LD Purchaser Supported Housing,"11,398.45"
2335301,3444508,SUPPORTED HOUSING FOR  REDACTED - PERSONAL DATA#LIFEWAYS,08/06/2015,52200,Contracted Services,Adult Service,LD Purchaser Supported Housing,"11,037.60"
64293,3458986,SWAN LANE MEDICAL CENTRE#P82004,29/06/2015,52200,Contracted Services,Public Health,Primary Care,864.00
64293,3459146,SWAN LANE MEDICAL CENTRE#P82004,29/06/2015,52200,Contracted Services,Public Health,PH04460 - PH Commissioning,"3,168.00"
882,3442655,SWIIS FOSTER CARE LTD,04/06/2015,52000,Vol Assoc Grants  General,Childrens Services,Res Serv Agency Placements,780.01
882,3443219,SWIIS FOSTER CARE LTD,04/06/2015,52000,Vol Assoc Grants  General,Childrens Services,Res Serv Agency Placements,780.01
882,3457891,SWIIS FOSTER CARE LTD,25/06/2015,52000,Vol Assoc Grants  General,Childrens Services,Res Serv Agency Placements,780.01
41646,3449727,SYKES CHEMIST LTD,15/06/2015,52200,Contracted Services,Adult Service,Drugs Pooled Treatment Budget,"2,032.80"
41646,3450053,SYKES CHEMIST LTD,15/06/2015,52200,Contracted Services,Adult Service,Drugs Pooled Treatment Budget,"1,208.00"
41646,3450055,SYKES CHEMIST LTD,15/06/2015,52200,Contracted Services,Adult Service,Drugs Pooled Treatment Budget,"1,903.80"
41646,3450054,SYKES CHEMIST LTD,15/06/2015,52200,Contracted Services,Adult Service,Drugs Pooled Treatment Budget,"2,540.50"
41646,3457681,SYKES CHEMIST LTD,25/06/2015,52200,Contracted Services,Adult Service,Drugs Pooled Treatment Budget,"1,156.70"
41646,3457684,SYKES CHEMIST LTD,25/06/2015,52200,Contracted Services,Adult Service,Drugs Pooled Treatment Budget,528.00
41646,3457682,SYKES CHEMIST LTD,25/06/2015,52200,Contracted Services,Adult Service,Drugs Pooled Treatment Budget,"2,936.00"
41646,3457644,SYKES CHEMIST LTD,25/06/2015,52200,Contracted Services,Adult Service,Drugs Pooled Treatment Budget,"2,182.40"
41646,3457683,SYKES CHEMIST LTD,25/06/2015,52200,Contracted Services,Adult Service,Drugs Pooled Treatment Budget,"1,943.80"
251543,3442634,T LOWE & SON LIMITED,04/06/2015,20100,Day To Day Maintenance,Environmental Services,Assets,704.30
2583298,3459432,Take A Break Services#With Choices,29/06/2015,54302,Nursing Provision,Adult Service,PD Purchaser Residential Care,"5,900.00"
912,3442694,Tameside MBC,04/06/2015,52200,Contracted Services,Public Health,PH04460 - PH Commissioning,"144,140.00"
912,3447557,Tameside MBC,11/06/2015,48509,Other Fees,Development & Regeneration,DR67310 - Collections Access MUS,"1,000.00"
1299919,3447005,TARMAC BUILDING PRODUCTS LTD,11/06/2015,40601,General Materials,Environmental Services,Activities and Operations,"1,180.48"
21985,3447515,TAYLOR BROS (TREES),11/06/2015,52200,Contracted Services,Environmental Services,Assets,700.00
6706,3442437,TELECARS BOLTON,04/06/2015,34402,Clients  Taxi Fares,Environmental Services,SNT Childrens Servs,"2,582.50"
6706,3446750,TELECARS BOLTON,11/06/2015,34402,Clients  Taxi Fares,Environmental Services,SNT Childrens Servs,"2,662.50"
16265,3442164,THE AWARD SCHEME LTD,04/06/2015,47200,General Subscriptions,Childrens Services,Youth Service Outdoor Education,"1,460.00"
2288290,3441878,THE BIRCHES,02/06/2015,54301,Residential Provision,Adult Service,MH Residential External Provision,"4,997.84"
972,3441782,THE BRANDLES,02/06/2015,54301,Residential Provision,Adult Service,MH Residential External Provision,"3,451.72"
6438,3441758,THE BUNGALOW RESIDENTIAL HOME,02/06/2015,54301,Residential Provision,Adult Service,MH Residential External Provision,"1,858.00"
6438,3441758,THE BUNGALOW RESIDENTIAL HOME,02/06/2015,54301,Residential Provision,Adult Service,OA  External Provision Residential,"10,966.56"
6438,3441758,THE BUNGALOW RESIDENTIAL HOME,02/06/2015,54301,Residential Provision,Adult Service,PD Purchaser Residential Care,"1,625.96"
2236315,3441873,THE CHANTERS CARE HOME,02/06/2015,54301,Residential Provision,Adult Service,OA  External Provision Residential,"1,556.00"
10139,3441819,THE CLOUGH RESIDENTIAL HOME,02/06/2015,Z6011,Z6011 - CR Bal Hold A/c Exp,Adult Service,ADZ1201 - 3rd Party Social Care Contributions,"1,160.00"
10139,3441819,THE CLOUGH RESIDENTIAL HOME,02/06/2015,54301,Residential Provision,Adult Service,OA  External Provision Residential,"31,394.97"
10139,3442720,THE CLOUGH RESIDENTIAL HOME,11/06/2015,54301,Residential Provision,Adult Service,OA  External Provision Residential,"5,284.37"
88184,3444641,THE COLUMBARIA COMPANY,08/06/2015,40610,Direct Materials,Environmental Services,Bereavement Services,572.00
88184,3446975,THE COLUMBARIA COMPANY,11/06/2015,40610,Direct Materials,Environmental Services,Bereavement Services,530.00
88184,3454579,THE COLUMBARIA COMPANY,22/06/2015,40610,Direct Materials,Environmental Services,Bereavement Services,646.50
8597,3458575,THE DANWOOD GROUP LIMITED,25/06/2015,43030,Photocopying Lease/Maintenance,Housing GRF,Access & Advice Housing Options Centre,543.25
6713,3441811,THE DAVID LEWIS CENTRE,02/06/2015,54301,Residential Provision,Adult Service,LD Purchaser Residential Care,"12,746.64"
2697311,3441729,The Dukes House,02/06/2015,54301,Residential Provision,Adult Service,LD Purchaser Residential Care,"22,187.04"
358412,3459116,THE DUNSTAN PARTNERSHIP,29/06/2015,52200,Contracted Services,Public Health,PH04460 - PH Commissioning,"3,612.00"
358412,3458955,THE DUNSTAN PARTNERSHIP,29/06/2015,52200,Contracted Services,Public Health,Primary Care,"1,968.00"
18911,3458327,THE HARBOUR PROJECT,25/06/2015,52200,Contracted Services,Adult Service,Drugs Pooled Treatment Budget,836.25
2876386,3441747,The Lakes Care Centre,02/06/2015,54301,Residential Provision,Adult Service,OA  External Provision Residential,"1,849.71"
88171,3452865,THE LEAVING CARE TEAM,18/06/2015,52300,Client Support Costs,Childrens Services,Child Prot Leaving Care Team,"3,054.22"
88171,3458570,THE LEAVING CARE TEAM,25/06/2015,52300,Client Support Costs,Childrens Services,Child Prot Leaving Care Team,"1,915.33"
1604381,3441859,THE LIMES#MAKING SPACES,02/06/2015,54301,Residential Provision,Adult Service,MH Residential External Provision,"2,100.00"
207974,3444435,THE LOCAL CARE COMPANY (BOLTON) LTD,08/06/2015,52200,Contracted Services,Adult Service,OA  Home Care Services external provision,"30,204.93"
250891,3455793,The Mandhata Hitwardhak Mandal#Krishna Temple,22/06/2015,79000,Election Expenses,Chief Executives,CX13101 - Elections,600.00
995,3447082,THE NATIONAL FOSTERING AGENCY,11/06/2015,52000,Vol Assoc Grants  General,Childrens Services,Res Serv Agency Placements,"2,988.40"
151938,3446860,THE NEWPORT PHARMACY LIMITED,11/06/2015,52200,Contracted Services,Public Health,PH03150 - Tobacco Control,"1,401.46"
151938,3457671,THE NEWPORT PHARMACY LIMITED,25/06/2015,52200,Contracted Services,Adult Service,Drugs Pooled Treatment Budget,744.60
38184,3441825,THE OAKS,02/06/2015,54301,Residential Provision,Adult Service,OA  External Provision Residential,"1,814.00"
9243,3441815,THE OLD VICARAGE,02/06/2015,Z6011,Z6011 - CR Bal Hold A/c Exp,Adult Service,ADZ1201 - 3rd Party Social Care Contributions,"1,336.64"
9243,3441815,THE OLD VICARAGE,02/06/2015,54301,Residential Provision,Adult Service,OA  External Provision Residential,"3,091.36"
212365,3453740,The Play Inspection Company Limited,18/06/2015,20401,Landscape Work,Environmental Services,Activities and Operations,"2,790.00"
212365,3453740,The Play Inspection Company Limited,18/06/2015,20502,Maint Of Playgrounds,Environmental Services,Assets,"1,069.50"
1912,3441780,THE SPINAL UNIT ACTION GROUP,02/06/2015,54301,Residential Provision,Adult Service,PD Purchaser Residential Care,"2,192.40"
1054,3447422,THE SYCAMORE PROJECT#ZACS BAR,11/06/2015,52000,Vol Assoc Grants  General,Childrens Services,Admin Commissioning,"17,040.00"
39704,3458167,THE TOGETHER TRUST,25/06/2015,52000,Vol Assoc Grants  General,Childrens Services,Disability Serv External Provision,"4,448.61"
6720,3448035,The University Of Manchester,11/06/2015,47103,Miscellaneous Grants,Childrens Services,Education Psychology Service,"3,804.00"
6720,3451704,The University Of Manchester,18/06/2015,19100,Training Exps Tuition Fees,Childrens Services,CH43727 - WPD Project Link,"1,995.00"
66991,3450328,The Victoria Hall#Payee Bolton Methodist Mission,15/06/2015,46003,Staff Conference Expenses,Childrens Services,Music ServMusic Centre,"1,400.00"
78749,3442697,THE YOUTH JUSTICE BOARD,04/06/2015,52000,Vol Assoc Grants  General,Childrens Services,Res Serv Agency Placements,"5,310.00"
